Publisher Label,Publisher URI,Body Name,Service Area Categorisation,Service Division Categorisation,Expenses Type,Date,Transaction Number,Amount,Capital or Revenue,Supplier Name,Merchant Category
Peterborough,http://opendatacommunities.org/id/unitary-authority/peterborough,Peterborough City Council,Adult Social Care,Older People,Supplies and Services,02/01/2015 00:00,686288,1036.61,REVENUE,Hales Group Ltd,MH OLDER PEOPLE HOME CARE
Peterborough,http://opendatacommunities.org/id/unitary-authority/peterborough,Peterborough City Council,Children's & Education Services - Children's Social Care,Other Children's & Families Services,Employees,02/01/2015 00:00,689186,3483,REVENUE,Sanctuary Personnel Ltd,EXTERNAL TEMPORARY STAFF
Peterborough,http://opendatacommunities.org/id/unitary-authority/peterborough,Peterborough City Council,Adult Social Care,Older People,Supplies and Services,02/01/2015 00:00,693217,1029.2,REVENUE,Hales Group Ltd,MH OLDER PEOPLE HOME CARE
Peterborough,http://opendatacommunities.org/id/unitary-authority/peterborough,Peterborough City Council,Children's & Education Services - Children's Social Care,Children's Services - Commissioning and Social Work,Employees,02/01/2015 00:00,699083,2144.52,REVENUE,Sanctuary Personnel Ltd,EXTERNAL TEMPORARY STAFF
Peterborough,http://opendatacommunities.org/id/unitary-authority/peterborough,Peterborough City Council,Adult Social Care,Older People,Third Party Payments,02/01/2015 00:00,699968,39194.25,REVENUE,AGE UK,THIRD PARTY PAYMENTS - CONTRACT
Peterborough,http://opendatacommunities.org/id/unitary-authority/peterborough,Peterborough City Council,Support Services,Support Services,Supplies and Services,02/01/2015 00:00,703952,1957.46,REVENUE,Royal Mail,POSTAGE
Peterborough,http://opendatacommunities.org/id/unitary-authority/peterborough,Peterborough City Council,Children's & Education Services - Education,Early Years,Supplies and Services,02/01/2015 00:00,704866,2128.77,REVENUE,Family Action,GRANT PAYMENT
Peterborough,http://opendatacommunities.org/id/unitary-authority/peterborough,Peterborough City Council,Children's & Education Services - Education,Early Years,Supplies and Services,02/01/2015 00:00,704874,712.1,REVENUE,East Community Playgroup,GRANT PAYMENT
Peterborough,http://opendatacommunities.org/id/unitary-authority/peterborough,Peterborough City Council,Children's & Education Services - Education,Early Years,Supplies and Services,02/01/2015 00:00,704875,636.3,REVENUE,First Steps Nursery (Maxey) Ltd,GRANT PAYMENT
Peterborough,http://opendatacommunities.org/id/unitary-authority/peterborough,Peterborough City Council,Children's & Education Services - Education,Early Years,Supplies and Services,02/01/2015 00:00,704876,909,REVENUE,Flying Start Pre-School & Day Care Centre,GRANT PAYMENT
Peterborough,http://opendatacommunities.org/id/unitary-authority/peterborough,Peterborough City Council,Children's & Education Services - Education,Early Years,Supplies and Services,02/01/2015 00:00,704878,1350.88,REVENUE,Leighton Primary Pre-School,GRANT PAYMENT
Peterborough,http://opendatacommunities.org/id/unitary-authority/peterborough,Peterborough City Council,Children's & Education Services - Education,Early Years,Supplies and Services,02/01/2015 00:00,704918,722,REVENUE,Redacted Personal Data,GRANT PAYMENT
Peterborough,http://opendatacommunities.org/id/unitary-authority/peterborough,Peterborough City Council,Children's & Education Services - Children's Social Care,Children Looked After,Supplies and Services - Transfer Payments,02/01/2015 00:00,704958,3428.83,REVENUE,Acorn Fostering Services Ltd,BOARDING - OUT ALLOWANCES
Peterborough,http://opendatacommunities.org/id/unitary-authority/peterborough,Peterborough City Council,Cultural and Related Services,Support Services & Management Costs,Third Party Payments,02/01/2015 00:00,705241,777589.18,REVENUE,Vivacity Culture and Leisure,THIRD PARTY PAYMENTS - CONTRACT
Peterborough,http://opendatacommunities.org/id/unitary-authority/peterborough,Peterborough City Council,Adult Social Care,Support Services & Management Costs,Third Party Payments,02/01/2015 00:00,705360,3524.4,REVENUE,Inclusive Neighbourhoods Ltd,THIRD PARTY PAYMENTS - CONTRACT
Peterborough,http://opendatacommunities.org/id/unitary-authority/peterborough,Peterborough City Council,Children's & Education Services - Children's Social Care,Children Looked After,Supplies and Services - Transfer Payments,02/01/2015 00:00,705372,1623.85,REVENUE,PC Homes,BOARDING - OUT ALLOWANCES
Peterborough,http://opendatacommunities.org/id/unitary-authority/peterborough,Peterborough City Council,Children's & Education Services - Children's Social Care,Other Children's & Families Services,Supplies and Services,05/01/2015 00:00,672601,1150,REVENUE,Adoption UK,SUBSCRIPTIONS
Peterborough,http://opendatacommunities.org/id/unitary-authority/peterborough,Peterborough City Council,Children's & Education Services - Children's Social Care,Other Children's & Families Services,Employees,05/01/2015 00:00,684805,1998,REVENUE,Sanctuary Personnel Ltd,EXTERNAL TEMPORARY STAFF
Peterborough,http://opendatacommunities.org/id/unitary-authority/peterborough,Peterborough City Council,Children's & Education Services - Children's Social Care,Other Children's & Families Services,Employees,05/01/2015 00:00,693684,972,REVENUE,Medicare First,EXTERNAL TEMPORARY STAFF
Peterborough,http://opendatacommunities.org/id/unitary-authority/peterborough,Peterborough City Council,Children's & Education Services - Children's Social Care,Other Children's & Families Services,Employees,05/01/2015 00:00,696197,1620,REVENUE,Sanctuary Personnel Ltd,EXTERNAL TEMPORARY STAFF
Peterborough,http://opendatacommunities.org/id/unitary-authority/peterborough,Peterborough City Council,Capital,Capital,Capital Pending Update to BS,05/01/2015 00:00,698197,11799.78,CAPITAL,Honeywell Control Systems Ltd,BUILDING AND SITE WORKS
Peterborough,http://opendatacommunities.org/id/unitary-authority/peterborough,Peterborough City Council,Children's & Education Services - Children's Social Care,Other Children's & Families Services,Employees,05/01/2015 00:00,699068,3840,REVENUE,In-Trac Training & Consultancy Services,TRAINING
Peterborough,http://opendatacommunities.org/id/unitary-authority/peterborough,Peterborough City Council,Children's & Education Services - Children's Social Care,Children's and Young People's Safety,Supplies and Services,05/01/2015 00:00,699676,800,REVENUE,HHSCC,CONSULTANTS FEES
Peterborough,http://opendatacommunities.org/id/unitary-authority/peterborough,Peterborough City Council,Planning Services,Community Development,Third Party Payments,05/01/2015 00:00,699821,3227.7,REVENUE,Wittering Parish Council,GRANT-THIRD PARTY
Peterborough,http://opendatacommunities.org/id/unitary-authority/peterborough,Peterborough City Council,Capital,Capital,Capital Pending Update to BS,05/01/2015 00:00,699917,4950.89,CAPITAL,Princebuild Limited,BUILDING AND SITE WORKS
Peterborough,http://opendatacommunities.org/id/unitary-authority/peterborough,Peterborough City Council,Highways and Transport Services,Street Lighting,Supplies and Services,05/01/2015 00:00,700006,1238.4,REVENUE,UK Power Networks (operations) Ltd,CONTRACTORS
Peterborough,http://opendatacommunities.org/id/unitary-authority/peterborough,Peterborough City Council,Children's & Education Services - Children's Social Care,Other Children's & Families Services,Employees,05/01/2015 00:00,700007,1465.2,REVENUE,SWP Consulting,EXTERNAL TEMPORARY STAFF
Peterborough,http://opendatacommunities.org/id/unitary-authority/peterborough,Peterborough City Council,Support Services,Support Services,Supplies and Services,05/01/2015 00:00,700008,1003.07,REVENUE,Collectica Ltd,DEBT COLLECTION
Peterborough,http://opendatacommunities.org/id/unitary-authority/peterborough,Peterborough City Council,Highways and Transport Services,Street Lighting,Supplies and Services,05/01/2015 00:00,700046,714,REVENUE,UK Power Networks (operations) Ltd,CONTRACTORS
Peterborough,http://opendatacommunities.org/id/unitary-authority/peterborough,Peterborough City Council,Support Services,Support Services,Premises,05/01/2015 00:00,700048,5553.23,REVENUE,Baker Perkins Ltd,SERVICE CHARGES
Peterborough,http://opendatacommunities.org/id/unitary-authority/peterborough,Peterborough City Council,Highways and Transport Services,Street Lighting,Supplies and Services,05/01/2015 00:00,700049,594,REVENUE,UK Power Networks (operations) Ltd,CONTRACTORS
Peterborough,http://opendatacommunities.org/id/unitary-authority/peterborough,Peterborough City Council,More than one Service Area Category,More than one Service Division,Supplies and Services,05/01/2015 00:00,700080,560.22,REVENUE,O2 (UK) Ltd,MOBILE TELEPHONES
Peterborough,http://opendatacommunities.org/id/unitary-authority/peterborough,Peterborough City Council,Adult Social Care,Older People,Supplies and Services,05/01/2015 00:00,700209,809.52,REVENUE,Park Vista Care Home,OLDER PEOPLE RESIDENTIAL CARE
Peterborough,http://opendatacommunities.org/id/unitary-authority/peterborough,Peterborough City Council,Capital,Capital,Capital Pending Update to BS,05/01/2015 00:00,700318,141449.7,CAPITAL,Honeywell Control Systems Ltd,BUILDING AND SITE WORKS
Peterborough,http://opendatacommunities.org/id/unitary-authority/peterborough,Peterborough City Council,Housing Services,Private Sector Housing Renewal,Supplies and Services,05/01/2015 00:00,700321,1970.75,REVENUE,Nightingale Services,CONTRACTORS
Peterborough,http://opendatacommunities.org/id/unitary-authority/peterborough,Peterborough City Council,Children's & Education Services - Education,Services to Young People,Supplies and Services,05/01/2015 00:00,700323,664.06,REVENUE,C J Camps,PROGRAMMES
Peterborough,http://opendatacommunities.org/id/unitary-authority/peterborough,Peterborough City Council,Planning Services,Economic Development,Supplies and Services,05/01/2015 00:00,700326,1420.8,REVENUE,Whitworth Bros Limited,SECURITY
Peterborough,http://opendatacommunities.org/id/unitary-authority/peterborough,Peterborough City Council,Highways and Transport Services,"Transport planning, policy and strategy",Supplies and Services,05/01/2015 00:00,700362,6600,REVENUE,Peterborough United Football Club,ROAD SAFETY
Peterborough,http://opendatacommunities.org/id/unitary-authority/peterborough,Peterborough City Council,Children's & Education Services - Education,Secondary,Supplies and Services,05/01/2015 00:00,700500,34165.92,REVENUE,IIC by Education (P'boro) Ltd,SERVICE CHARGE
Peterborough,http://opendatacommunities.org/id/unitary-authority/peterborough,Peterborough City Council,Children's & Education Services - Education,Secondary,Employees,05/01/2015 00:00,700552,899.87,REVENUE,IIC by Education (P'boro) Ltd,PENSIONS
Peterborough,http://opendatacommunities.org/id/unitary-authority/peterborough,Peterborough City Council,More than one Service Area Category,More than one Service Division,More than one Expenses Type,05/01/2015 00:00,700592,8129.2,"Mixture of Capital, Revenue and/or Balance Sheet",IIC by Education (P'boro) Ltd,TAX ONLY
Peterborough,http://opendatacommunities.org/id/unitary-authority/peterborough,Peterborough City Council,Children's & Education Services - Education,Secondary,Employees,05/01/2015 00:00,700833,540,REVENUE,Vision for Education Ltd,SUPPLY TEACHERS
Peterborough,http://opendatacommunities.org/id/unitary-authority/peterborough,Peterborough City Council,Adult Social Care,Older People,Supplies and Services,05/01/2015 00:00,700957,1247.2,REVENUE,THE TUDORS,MH OLDER PEOPLE RESIDENTIAL CARE
Peterborough,http://opendatacommunities.org/id/unitary-authority/peterborough,Peterborough City Council,Adult Social Care,Older People,Supplies and Services,05/01/2015 00:00,700959,1040.08,REVENUE,THE TUDORS,OLDER PEOPLE RESIDENTIAL CARE
Peterborough,http://opendatacommunities.org/id/unitary-authority/peterborough,Peterborough City Council,Children's & Education Services - Children's Social Care,Other Children's & Families Services,Employees,05/01/2015 00:00,700961,1620.6,REVENUE,Medicare First,EXTERNAL TEMPORARY STAFF
Peterborough,http://opendatacommunities.org/id/unitary-authority/peterborough,Peterborough City Council,Adult Social Care,Older People,Supplies and Services,05/01/2015 00:00,700962,1284.16,REVENUE,THE TUDORS,OLDER PEOPLE RESIDENTIAL CARE
Peterborough,http://opendatacommunities.org/id/unitary-authority/peterborough,Peterborough City Council,Children's & Education Services - Children's Social Care,Other Children's & Families Services,Employees,05/01/2015 00:00,700963,2131.2,REVENUE,Medicare First,EXTERNAL TEMPORARY STAFF
Peterborough,http://opendatacommunities.org/id/unitary-authority/peterborough,Peterborough City Council,Adult Social Care,Older People,Supplies and Services,05/01/2015 00:00,700964,1276.96,REVENUE,THE TUDORS,MH OLDER PEOPLE RESIDENTIAL CARE
Peterborough,http://opendatacommunities.org/id/unitary-authority/peterborough,Peterborough City Council,Children's & Education Services - Children's Social Care,Other Children's & Families Services,Employees,05/01/2015 00:00,700965,1656.08,REVENUE,Medicare First,EXTERNAL TEMPORARY STAFF
Peterborough,http://opendatacommunities.org/id/unitary-authority/peterborough,Peterborough City Council,Adult Social Care,Older People,Supplies and Services,05/01/2015 00:00,700966,1177.84,REVENUE,THE TUDORS,OLDER PEOPLE RESIDENTIAL CARE
Peterborough,http://opendatacommunities.org/id/unitary-authority/peterborough,Peterborough City Council,Adult Social Care,Older People,Supplies and Services,05/01/2015 00:00,700972,1284.16,REVENUE,THE TUDORS,OLDER PEOPLE RESIDENTIAL CARE
Peterborough,http://opendatacommunities.org/id/unitary-authority/peterborough,Peterborough City Council,Adult Social Care,Older People,Supplies and Services,05/01/2015 00:00,700973,1258.84,REVENUE,THE TUDORS,OLDER PEOPLE RESIDENTIAL CARE
Peterborough,http://opendatacommunities.org/id/unitary-authority/peterborough,Peterborough City Council,Children's & Education Services - Children's Social Care,Children's Services - Commissioning and Social Work,Supplies and Services,05/01/2015 00:00,700976,2000,REVENUE,Cambs Police Amateur Boxing Club,FINANCIAL ASSISTANCE
Peterborough,http://opendatacommunities.org/id/unitary-authority/peterborough,Peterborough City Council,Adult Social Care,Older People,Supplies and Services,05/01/2015 00:00,701023,924.12,REVENUE,THE TUDORS,OLDER PEOPLE RESIDENTIAL CARE
Peterborough,http://opendatacommunities.org/id/unitary-authority/peterborough,Peterborough City Council,Adult Social Care,Older People,Supplies and Services,05/01/2015 00:00,701025,1246.16,REVENUE,Barchester Healthcare (Werrington Lodge),OLDER PEOPLE RESIDENTIAL CARE
Peterborough,http://opendatacommunities.org/id/unitary-authority/peterborough,Peterborough City Council,Adult Social Care,Older People,Supplies and Services,05/01/2015 00:00,701028,1052.32,REVENUE,THE TUDORS,OLDER PEOPLE RESIDENTIAL CARE
Peterborough,http://opendatacommunities.org/id/unitary-authority/peterborough,Peterborough City Council,Adult Social Care,Older People,Supplies and Services,05/01/2015 00:00,701029,1569.76,REVENUE,Barchester Healthcare (Werrington Lodge),MH OLDER PEOPLE RESIDENTIAL CARE
Peterborough,http://opendatacommunities.org/id/unitary-authority/peterborough,Peterborough City Council,Adult Social Care,Older People,Supplies and Services,05/01/2015 00:00,701031,1140.52,REVENUE,THE TUDORS,OLDER PEOPLE RESIDENTIAL CARE
Peterborough,http://opendatacommunities.org/id/unitary-authority/peterborough,Peterborough City Council,Adult Social Care,Older People,Supplies and Services,05/01/2015 00:00,701033,644.92,REVENUE,Barchester Healthcare (Werrington Lodge),OLDER PEOPLE RESIDENTIAL CARE
Peterborough,http://opendatacommunities.org/id/unitary-authority/peterborough,Peterborough City Council,Adult Social Care,Older People,Supplies and Services,05/01/2015 00:00,701035,1594.8,REVENUE,Barchester Healthcare (Werrington Lodge),MH OLDER PEOPLE RESIDENTIAL CARE
Peterborough,http://opendatacommunities.org/id/unitary-authority/peterborough,Peterborough City Council,Adult Social Care,Older People,Supplies and Services,05/01/2015 00:00,701037,1569.76,REVENUE,Barchester Healthcare (Werrington Lodge),MH OLDER PEOPLE RESIDENTIAL CARE
Peterborough,http://opendatacommunities.org/id/unitary-authority/peterborough,Peterborough City Council,Adult Social Care,Older People,Supplies and Services,05/01/2015 00:00,701038,1510.24,REVENUE,Barchester Healthcare (Werrington Lodge),OLDER PEOPLE RESIDENTIAL CARE
Peterborough,http://opendatacommunities.org/id/unitary-authority/peterborough,Peterborough City Council,Adult Social Care,Older People,Supplies and Services,05/01/2015 00:00,701040,1244.16,REVENUE,THE TUDORS,OLDER PEOPLE RESIDENTIAL CARE
Peterborough,http://opendatacommunities.org/id/unitary-authority/peterborough,Peterborough City Council,Adult Social Care,Older People,Supplies and Services,05/01/2015 00:00,701042,1227.08,REVENUE,THE TUDORS,OLDER PEOPLE RESIDENTIAL CARE
Peterborough,http://opendatacommunities.org/id/unitary-authority/peterborough,Peterborough City Council,Adult Social Care,Older People,Supplies and Services,05/01/2015 00:00,701045,970.16,REVENUE,THE TUDORS,OLDER PEOPLE RESIDENTIAL CARE
Peterborough,http://opendatacommunities.org/id/unitary-authority/peterborough,Peterborough City Council,Adult Social Care,Older People,Supplies and Services,05/01/2015 00:00,701047,1142.76,REVENUE,THE TUDORS,OLDER PEOPLE RESIDENTIAL CARE
Peterborough,http://opendatacommunities.org/id/unitary-authority/peterborough,Peterborough City Council,Adult Social Care,Older People,Supplies and Services,05/01/2015 00:00,701050,1284.16,REVENUE,THE TUDORS,OLDER PEOPLE RESIDENTIAL CARE
Peterborough,http://opendatacommunities.org/id/unitary-authority/peterborough,Peterborough City Council,Children's & Education Services - Children's Social Care,Other Children's & Families Services,Employees,05/01/2015 00:00,701051,2331,REVENUE,Medicare First,EXTERNAL TEMPORARY STAFF
Peterborough,http://opendatacommunities.org/id/unitary-authority/peterborough,Peterborough City Council,Adult Social Care,Older People,Supplies and Services,05/01/2015 00:00,701054,1251.04,REVENUE,THE TUDORS,OLDER PEOPLE RESIDENTIAL CARE
Peterborough,http://opendatacommunities.org/id/unitary-authority/peterborough,Peterborough City Council,Adult Social Care,Older People,Supplies and Services,05/01/2015 00:00,701056,1293.96,REVENUE,THE TUDORS,OLDER PEOPLE RESIDENTIAL CARE
Peterborough,http://opendatacommunities.org/id/unitary-authority/peterborough,Peterborough City Council,Adult Social Care,Older People,Supplies and Services,05/01/2015 00:00,701058,1284.16,REVENUE,THE TUDORS,OLDER PEOPLE RESIDENTIAL CARE
Peterborough,http://opendatacommunities.org/id/unitary-authority/peterborough,Peterborough City Council,Adult Social Care,Older People,Supplies and Services,05/01/2015 00:00,701061,2065.56,REVENUE,Barchester Healthcare (Werrington Lodge),MH OLDER PEOPLE RESIDENTIAL CARE
Peterborough,http://opendatacommunities.org/id/unitary-authority/peterborough,Peterborough City Council,Support Services,Support Services,Supplies and Services,05/01/2015 00:00,701064,660,REVENUE,"Bramwell, Mr Christopher",LEGAL COSTS
Peterborough,http://opendatacommunities.org/id/unitary-authority/peterborough,Peterborough City Council,Adult Social Care,Older People,Supplies and Services,05/01/2015 00:00,701065,1381.08,REVENUE,Barchester Healthcare (Werrington Lodge),OLDER PEOPLE RESIDENTIAL CARE
Peterborough,http://opendatacommunities.org/id/unitary-authority/peterborough,Peterborough City Council,Adult Social Care,Older People,Supplies and Services,05/01/2015 00:00,701068,1525.76,REVENUE,Barchester Healthcare (Werrington Lodge),OLDER PEOPLE RESIDENTIAL CARE
Peterborough,http://opendatacommunities.org/id/unitary-authority/peterborough,Peterborough City Council,Adult Social Care,Older People,Supplies and Services,05/01/2015 00:00,701070,1609.76,REVENUE,Barchester Healthcare (Werrington Lodge),MH OLDER PEOPLE RESIDENTIAL CARE
Peterborough,http://opendatacommunities.org/id/unitary-authority/peterborough,Peterborough City Council,Adult Social Care,Older People,Supplies and Services,05/01/2015 00:00,701073,1218.96,REVENUE,Barchester Healthcare (Werrington Lodge),MH OLDER PEOPLE RESIDENTIAL CARE
Peterborough,http://opendatacommunities.org/id/unitary-authority/peterborough,Peterborough City Council,Adult Social Care,Older People,Supplies and Services,05/01/2015 00:00,701075,1340.16,REVENUE,THE TUDORS,OLDER PEOPLE RESIDENTIAL CARE
Peterborough,http://opendatacommunities.org/id/unitary-authority/peterborough,Peterborough City Council,Adult Social Care,Older People,Supplies and Services,05/01/2015 00:00,701077,1284.16,REVENUE,THE TUDORS,OLDER PEOPLE RESIDENTIAL CARE
Peterborough,http://opendatacommunities.org/id/unitary-authority/peterborough,Peterborough City Council,Adult Social Care,Older People,Supplies and Services,05/01/2015 00:00,701079,594.84,REVENUE,THE TUDORS,OLDER PEOPLE RESIDENTIAL CARE
Peterborough,http://opendatacommunities.org/id/unitary-authority/peterborough,Peterborough City Council,Adult Social Care,Older People,Supplies and Services,05/01/2015 00:00,701082,1455.08,REVENUE,Barchester Healthcare (Werrington Lodge),OLDER PEOPLE RESIDENTIAL CARE
Peterborough,http://opendatacommunities.org/id/unitary-authority/peterborough,Peterborough City Council,Children's & Education Services - Children's Social Care,Family Support Services,Premises,05/01/2015 00:00,701092,1679.28,REVENUE,Britannia Fire & Security Ltd,MAINTENANCE
Peterborough,http://opendatacommunities.org/id/unitary-authority/peterborough,Peterborough City Council,Children's & Education Services - Children's Social Care,Other Children's & Families Services,Employees,05/01/2015 00:00,701102,960,REVENUE,In-Trac Training & Consultancy Services,TRAINING
Peterborough,http://opendatacommunities.org/id/unitary-authority/peterborough,Peterborough City Council,Adult Social Care,Adult Learning Disabilities,Supplies and Services,05/01/2015 00:00,701112,6352.32,REVENUE,Home From Home Care,LEARNING DISABILITY HOME CARE
Peterborough,http://opendatacommunities.org/id/unitary-authority/peterborough,Peterborough City Council,Adult Social Care,Adult Learning Disabilities,Supplies and Services,05/01/2015 00:00,701114,8314.72,REVENUE,Home From Home Care,LEARNING DISABILITY HOME CARE
Peterborough,http://opendatacommunities.org/id/unitary-authority/peterborough,Peterborough City Council,Adult Social Care,Adult Learning Disabilities,Supplies and Services,05/01/2015 00:00,701115,7808.02,REVENUE,Home From Home Care,LEARNING DISABILITY HOME CARE
Peterborough,http://opendatacommunities.org/id/unitary-authority/peterborough,Peterborough City Council,Adult Social Care,Adult Learning Disabilities,Supplies and Services,05/01/2015 00:00,701116,7007.44,REVENUE,Home From Home Care,LEARNING DISABILITY HOME CARE
Peterborough,http://opendatacommunities.org/id/unitary-authority/peterborough,Peterborough City Council,Adult Social Care,Adult Learning Disabilities,Supplies and Services,05/01/2015 00:00,701117,858,REVENUE,Mencap,LEARNING DISABILITY HOME CARE
Peterborough,http://opendatacommunities.org/id/unitary-authority/peterborough,Peterborough City Council,Adult Social Care,Adult Learning Disabilities,Supplies and Services,05/01/2015 00:00,701119,6520.56,REVENUE,Mencap,LEARNING DISABILITY HOME CARE
Peterborough,http://opendatacommunities.org/id/unitary-authority/peterborough,Peterborough City Council,Adult Social Care,Adult Learning Disabilities,Supplies and Services,05/01/2015 00:00,701124,6265.4,REVENUE,Mencap,LEARNING DISABILITY HOME CARE
Peterborough,http://opendatacommunities.org/id/unitary-authority/peterborough,Peterborough City Council,Adult Social Care,Adult Learning Disabilities,Supplies and Services,05/01/2015 00:00,701126,824.88,REVENUE,Mencap,LEARNING DISABILITY HOME CARE
Peterborough,http://opendatacommunities.org/id/unitary-authority/peterborough,Peterborough City Council,Adult Social Care,Adult Learning Disabilities,Supplies and Services,05/01/2015 00:00,701127,739.2,REVENUE,Mencap,LEARNING DISABILITY HOME CARE
Peterborough,http://opendatacommunities.org/id/unitary-authority/peterborough,Peterborough City Council,Adult Social Care,Adult Learning Disabilities,Supplies and Services,05/01/2015 00:00,701129,960.08,REVENUE,Mencap,LEARNING DISABILITY HOME CARE
Peterborough,http://opendatacommunities.org/id/unitary-authority/peterborough,Peterborough City Council,Adult Social Care,Adult Learning Disabilities,Supplies and Services,05/01/2015 00:00,701135,773.4,REVENUE,Mencap,LEARNING DISABILITY HOME CARE
Peterborough,http://opendatacommunities.org/id/unitary-authority/peterborough,Peterborough City Council,Adult Social Care,Adult Learning Disabilities,Supplies and Services,05/01/2015 00:00,701137,3774.2,REVENUE,Mencap,LEARNING DISABILITY HOME CARE
Peterborough,http://opendatacommunities.org/id/unitary-authority/peterborough,Peterborough City Council,Adult Social Care,Adult Learning Disabilities,Supplies and Services,05/01/2015 00:00,701141,1323.88,REVENUE,Mencap,LEARNING DISABILITY HOME CARE
Peterborough,http://opendatacommunities.org/id/unitary-authority/peterborough,Peterborough City Council,Adult Social Care,Adult Learning Disabilities,Supplies and Services,05/01/2015 00:00,701147,1604.56,REVENUE,Mencap,LEARNING DISABILITY HOME CARE
Peterborough,http://opendatacommunities.org/id/unitary-authority/peterborough,Peterborough City Council,Adult Social Care,Adult Learning Disabilities,Supplies and Services,05/01/2015 00:00,701150,633.6,REVENUE,Mencap,LEARNING DISABILITY HOME CARE
Peterborough,http://opendatacommunities.org/id/unitary-authority/peterborough,Peterborough City Council,Adult Social Care,Adult Learning Disabilities,Supplies and Services,05/01/2015 00:00,701310,660.52,REVENUE,Mencap,LEARNING DISABILITY HOME CARE
Peterborough,http://opendatacommunities.org/id/unitary-authority/peterborough,Peterborough City Council,Adult Social Care,Adult Learning Disabilities,Supplies and Services,05/01/2015 00:00,701311,897.6,REVENUE,Mencap,LEARNING DISABILITY HOME CARE
Peterborough,http://opendatacommunities.org/id/unitary-authority/peterborough,Peterborough City Council,Adult Social Care,Adult Learning Disabilities,Supplies and Services,05/01/2015 00:00,701314,6000.44,REVENUE,Mencap,LEARNING DISABILITY HOME CARE
Peterborough,http://opendatacommunities.org/id/unitary-authority/peterborough,Peterborough City Council,Children's & Education Services - Children's Social Care,Children Looked After,Supplies and Services - Transfer Payments,05/01/2015 00:00,701328,13800,REVENUE,Lincoln House Childrens Services,BOARDING - OUT ALLOWANCES
Peterborough,http://opendatacommunities.org/id/unitary-authority/peterborough,Peterborough City Council,Corporate & Democratic Core,Democratic Representation & Managemetn,Supplies and Services,05/01/2015 00:00,701354,3240,REVENUE,Cambridgeshire County Council,JOINT COMMITTEES
Peterborough,http://opendatacommunities.org/id/unitary-authority/peterborough,Peterborough City Council,Children's & Education Services - Education,Secondary,Employees,05/01/2015 00:00,701364,600,REVENUE,Vision for Education Ltd,SUPPLY TEACHERS
Peterborough,http://opendatacommunities.org/id/unitary-authority/peterborough,Peterborough City Council,Adult Social Care,Adult Learning Disabilities,Supplies and Services,05/01/2015 00:00,701433,792,REVENUE,Mencap,LEARNING DISABILITY HOME CARE
Peterborough,http://opendatacommunities.org/id/unitary-authority/peterborough,Peterborough City Council,Adult Social Care,Adult Learning Disabilities,Supplies and Services,05/01/2015 00:00,701434,805.2,REVENUE,Mencap,LEARNING DISABILITY HOME CARE
Peterborough,http://opendatacommunities.org/id/unitary-authority/peterborough,Peterborough City Council,Adult Social Care,Older People,Supplies and Services,05/01/2015 00:00,701437,2960.84,REVENUE,Princess Christian (Nellsar Ltd),MH OLDER PEOPLE RESIDENTIAL CARE
Peterborough,http://opendatacommunities.org/id/unitary-authority/peterborough,Peterborough City Council,Adult Social Care,Older People,Supplies and Services,05/01/2015 00:00,701439,4536,REVENUE,Mencap,LEARNING DISABILITY HOME CARE
Peterborough,http://opendatacommunities.org/id/unitary-authority/peterborough,Peterborough City Council,Adult Social Care,Older People,Supplies and Services,05/01/2015 00:00,701456,841.08,REVENUE,Avery House (Peterborough) t/a Brighterkind,OLDER PEOPLE RESIDENTIAL CARE
Peterborough,http://opendatacommunities.org/id/unitary-authority/peterborough,Peterborough City Council,Adult Social Care,Older People,Supplies and Services,05/01/2015 00:00,701457,742.88,REVENUE,Avery House (Peterborough) t/a Brighterkind,OLDER PEOPLE RESIDENTIAL CARE
Peterborough,http://opendatacommunities.org/id/unitary-authority/peterborough,Peterborough City Council,Adult Social Care,Adult Learning Disabilities,Supplies and Services,05/01/2015 00:00,701458,5343.84,REVENUE,OAKFIELD (EASTON MAUDIT) LTD,LEARNING DISABILITY RESIDENTIAL CARE
Peterborough,http://opendatacommunities.org/id/unitary-authority/peterborough,Peterborough City Council,Adult Social Care,Older People,Supplies and Services,05/01/2015 00:00,701460,628.52,REVENUE,Avery House (Peterborough) t/a Brighterkind,OLDER PEOPLE RESIDENTIAL CARE
Peterborough,http://opendatacommunities.org/id/unitary-authority/peterborough,Peterborough City Council,Adult Social Care,Older People,Supplies and Services,05/01/2015 00:00,701462,1624.64,REVENUE,Avery House (Peterborough) t/a Brighterkind,OLDER PEOPLE RESIDENTIAL CARE
Peterborough,http://opendatacommunities.org/id/unitary-authority/peterborough,Peterborough City Council,Adult Social Care,Older People,Supplies and Services,05/01/2015 00:00,701471,1307.56,REVENUE,Avery House (Peterborough) t/a Brighterkind,PROFESSIONAL SERVICES
Peterborough,http://opendatacommunities.org/id/unitary-authority/peterborough,Peterborough City Council,Adult Social Care,Older People,Supplies and Services,05/01/2015 00:00,701474,1284.16,REVENUE,Avery House (Peterborough) t/a Brighterkind,OLDER PEOPLE RESIDENTIAL CARE
Peterborough,http://opendatacommunities.org/id/unitary-authority/peterborough,Peterborough City Council,Adult Social Care,Older People,Supplies and Services,05/01/2015 00:00,701476,965.52,REVENUE,Avery House (Peterborough) t/a Brighterkind,OLDER PEOPLE RESIDENTIAL CARE
Peterborough,http://opendatacommunities.org/id/unitary-authority/peterborough,Peterborough City Council,Adult Social Care,Older People,Supplies and Services,05/01/2015 00:00,701484,1251,REVENUE,Avery House (Peterborough) t/a Brighterkind,OLDER PEOPLE RESIDENTIAL CARE
Peterborough,http://opendatacommunities.org/id/unitary-authority/peterborough,Peterborough City Council,Adult Social Care,Older People,Supplies and Services,05/01/2015 00:00,701486,554.04,REVENUE,Avery House (Peterborough) t/a Brighterkind,OLDER PEOPLE RESIDENTIAL CARE
Peterborough,http://opendatacommunities.org/id/unitary-authority/peterborough,Peterborough City Council,Adult Social Care,Older People,Supplies and Services,05/01/2015 00:00,701487,1263.16,REVENUE,Avery House (Peterborough) t/a Brighterkind,OLDER PEOPLE RESIDENTIAL CARE
Peterborough,http://opendatacommunities.org/id/unitary-authority/peterborough,Peterborough City Council,Adult Social Care,Older People,Supplies and Services,05/01/2015 00:00,701488,953.76,REVENUE,Avery House (Peterborough) t/a Brighterkind,OLDER PEOPLE RESIDENTIAL CARE
Peterborough,http://opendatacommunities.org/id/unitary-authority/peterborough,Peterborough City Council,Capital,Capital,Capital Pending Update to BS,05/01/2015 00:00,701570,2154,CAPITAL,Peterborough United Football Club,BUILDING AND SITE WORKS
Peterborough,http://opendatacommunities.org/id/unitary-authority/peterborough,Peterborough City Council,Support Services,Support Services,Employees,05/01/2015 00:00,701582,1306.8,REVENUE,Sellick Partnership Group Limited,EXTERNAL TEMPORARY STAFF
Peterborough,http://opendatacommunities.org/id/unitary-authority/peterborough,Peterborough City Council,Support Services,Support Services,Employees,05/01/2015 00:00,701586,2088,REVENUE,Sellick Partnership Group Limited,EXTERNAL TEMPORARY STAFF
Peterborough,http://opendatacommunities.org/id/unitary-authority/peterborough,Peterborough City Council,Adult Social Care,Adult Learning Disabilities,Supplies and Services,05/01/2015 00:00,701629,625,REVENUE,Thera East Anglia,LEARNING DISABILITY DAY CARE
Peterborough,http://opendatacommunities.org/id/unitary-authority/peterborough,Peterborough City Council,Adult Social Care,Adult Learning Disabilities,Supplies and Services,05/01/2015 00:00,701632,2950,REVENUE,Thera East Anglia,LEARNING DISABILITY DAY CARE
Peterborough,http://opendatacommunities.org/id/unitary-authority/peterborough,Peterborough City Council,Adult Social Care,Older People,Supplies and Services,05/01/2015 00:00,701638,1176,REVENUE,St Georges Glatton Hall,OLDER PEOPLE RESIDENTIAL CARE
Peterborough,http://opendatacommunities.org/id/unitary-authority/peterborough,Peterborough City Council,Adult Social Care,Older People,Supplies and Services,05/01/2015 00:00,701640,7904,REVENUE,The Huntercombe Group,OLDER PEOPLE RESIDENTIAL CARE
Peterborough,http://opendatacommunities.org/id/unitary-authority/peterborough,Peterborough City Council,Children's & Education Services - Children's Social Care,Other Children's & Families Services,Employees,05/01/2015 00:00,701641,2436.84,REVENUE,Medicare First,EXTERNAL TEMPORARY STAFF
Peterborough,http://opendatacommunities.org/id/unitary-authority/peterborough,Peterborough City Council,Children's & Education Services - Children's Social Care,Other Children's & Families Services,Employees,05/01/2015 00:00,701652,2363.58,REVENUE,Medicare First,EXTERNAL TEMPORARY STAFF
Peterborough,http://opendatacommunities.org/id/unitary-authority/peterborough,Peterborough City Council,Children's & Education Services - Children's Social Care,Other Children's & Families Services,Employees,05/01/2015 00:00,701654,2331,REVENUE,Medicare First,EXTERNAL TEMPORARY STAFF
Peterborough,http://opendatacommunities.org/id/unitary-authority/peterborough,Peterborough City Council,Children's & Education Services - Children's Social Care,Other Children's & Families Services,Employees,05/01/2015 00:00,701655,2331,REVENUE,Medicare First,EXTERNAL TEMPORARY STAFF
Peterborough,http://opendatacommunities.org/id/unitary-authority/peterborough,Peterborough City Council,Children's & Education Services - Children's Social Care,Other Children's & Families Services,Employees,05/01/2015 00:00,701660,2331,REVENUE,Medicare First,EXTERNAL TEMPORARY STAFF
Peterborough,http://opendatacommunities.org/id/unitary-authority/peterborough,Peterborough City Council,Children's & Education Services - Children's Social Care,Other Children's & Families Services,Employees,05/01/2015 00:00,701661,2331,REVENUE,Medicare First,EXTERNAL TEMPORARY STAFF
Peterborough,http://opendatacommunities.org/id/unitary-authority/peterborough,Peterborough City Council,Adult Social Care,Older People,Supplies and Services,05/01/2015 00:00,701699,1052.32,REVENUE,Avery House (Peterborough) t/a Brighterkind,OLDER PEOPLE RESIDENTIAL CARE
Peterborough,http://opendatacommunities.org/id/unitary-authority/peterborough,Peterborough City Council,Adult Social Care,Older People,Supplies and Services,05/01/2015 00:00,701702,1284.16,REVENUE,Avery House (Peterborough) t/a Brighterkind,OLDER PEOPLE RESIDENTIAL CARE
Peterborough,http://opendatacommunities.org/id/unitary-authority/peterborough,Peterborough City Council,Adult Social Care,Older People,Supplies and Services,05/01/2015 00:00,701703,1278.6,REVENUE,Avery House (Peterborough) t/a Brighterkind,OLDER PEOPLE RESIDENTIAL CARE
Peterborough,http://opendatacommunities.org/id/unitary-authority/peterborough,Peterborough City Council,Adult Social Care,Older People,Supplies and Services,05/01/2015 00:00,701706,905.88,REVENUE,Avery House (Peterborough) t/a Brighterkind,OLDER PEOPLE RESIDENTIAL CARE
Peterborough,http://opendatacommunities.org/id/unitary-authority/peterborough,Peterborough City Council,Adult Social Care,Adult Learning Disabilities,Supplies and Services,05/01/2015 00:00,701710,1126.52,REVENUE,Avery House (Peterborough) t/a Brighterkind,LEARNING DISABILITY RESIDENTIAL CARE
Peterborough,http://opendatacommunities.org/id/unitary-authority/peterborough,Peterborough City Council,Adult Social Care,Older People,Supplies and Services,05/01/2015 00:00,701713,863.36,REVENUE,Avery House (Peterborough) t/a Brighterkind,OLDER PEOPLE RESIDENTIAL CARE
Peterborough,http://opendatacommunities.org/id/unitary-authority/peterborough,Peterborough City Council,Adult Social Care,Older People,Supplies and Services,05/01/2015 00:00,701714,928.84,REVENUE,Avery House (Peterborough) t/a Brighterkind,OLDER PEOPLE RESIDENTIAL CARE
Peterborough,http://opendatacommunities.org/id/unitary-authority/peterborough,Peterborough City Council,Adult Social Care,Older People,Supplies and Services,05/01/2015 00:00,701715,1013.96,REVENUE,Avery House (Peterborough) t/a Brighterkind,MH OLDER PEOPLE RESIDENTIAL CARE
Peterborough,http://opendatacommunities.org/id/unitary-authority/peterborough,Peterborough City Council,Adult Social Care,Older People,Supplies and Services,05/01/2015 00:00,701716,981.84,REVENUE,Avery House (Peterborough) t/a Brighterkind,OLDER PEOPLE RESIDENTIAL CARE
Peterborough,http://opendatacommunities.org/id/unitary-authority/peterborough,Peterborough City Council,Adult Social Care,Older People,Supplies and Services,05/01/2015 00:00,701722,1213.76,REVENUE,Avery House (Peterborough) t/a Brighterkind,OLDER PEOPLE RESIDENTIAL CARE
Peterborough,http://opendatacommunities.org/id/unitary-authority/peterborough,Peterborough City Council,Adult Social Care,Older People,Supplies and Services,05/01/2015 00:00,701727,1043.68,REVENUE,Avery House (Peterborough) t/a Brighterkind,OLDER PEOPLE RESIDENTIAL CARE
Peterborough,http://opendatacommunities.org/id/unitary-authority/peterborough,Peterborough City Council,Adult Social Care,Older People,Supplies and Services,05/01/2015 00:00,701731,699.24,REVENUE,Avery House (Peterborough) t/a Brighterkind,OLDER PEOPLE RESIDENTIAL CARE
Peterborough,http://opendatacommunities.org/id/unitary-authority/peterborough,Peterborough City Council,Adult Social Care,Older People,Supplies and Services,05/01/2015 00:00,702479,1462.11,REVENUE,Avery House (Peterborough) t/a Brighterkind,OLDER PEOPLE RESIDENTIAL CARE
Peterborough,http://opendatacommunities.org/id/unitary-authority/peterborough,Peterborough City Council,Children's & Education Services - Children's Social Care,Children Looked After,Employees,05/01/2015 00:00,702710,546,REVENUE,Wrixon Care Services,EXTERNAL TEMPORARY STAFF
Peterborough,http://opendatacommunities.org/id/unitary-authority/peterborough,Peterborough City Council,Children's & Education Services - Children's Social Care,Children Looked After,Employees,05/01/2015 00:00,702711,500.4,REVENUE,Wrixon Care Services,EXTERNAL TEMPORARY STAFF
Peterborough,http://opendatacommunities.org/id/unitary-authority/peterborough,Peterborough City Council,Adult Social Care,Older People,Employees,05/01/2015 00:00,702756,1239.06,REVENUE,Medicare First,EXTERNAL TEMPORARY STAFF
Peterborough,http://opendatacommunities.org/id/unitary-authority/peterborough,Peterborough City Council,Adult Social Care,Adult Mental Health,Supplies and Services,05/01/2015 00:00,702771,2424,REVENUE,The Regard Partnership Limited,LEARNING DISABILITY RESIDENTIAL CARE
Peterborough,http://opendatacommunities.org/id/unitary-authority/peterborough,Peterborough City Council,Adult Social Care,Adult Mental Health,Supplies and Services,05/01/2015 00:00,702797,1634.16,REVENUE,The Regard Partnership Limited,PROFESSIONAL SERVICES
Peterborough,http://opendatacommunities.org/id/unitary-authority/peterborough,Peterborough City Council,Adult Social Care,Adult Mental Health,Supplies and Services,05/01/2015 00:00,702799,2968.04,REVENUE,The Regard Partnership Limited,PROFESSIONAL SERVICES
Peterborough,http://opendatacommunities.org/id/unitary-authority/peterborough,Peterborough City Council,Adult Social Care,Adult Learning Disabilities,Supplies and Services,05/01/2015 00:00,702808,3269.64,REVENUE,Consensus Support Services Ltd,LEARNING DISABILITY NURSING CARE
Peterborough,http://opendatacommunities.org/id/unitary-authority/peterborough,Peterborough City Council,Adult Social Care,Adult Learning Disabilities,Supplies and Services,05/01/2015 00:00,702809,9105.76,REVENUE,Consensus Support Services Ltd,LEARNING DISABILITY NURSING CARE
Peterborough,http://opendatacommunities.org/id/unitary-authority/peterborough,Peterborough City Council,Adult Social Care,Adult Learning Disabilities,Supplies and Services,05/01/2015 00:00,702812,688.64,REVENUE,Consensus Support Services Ltd,LEARNING DISABILITY NURSING CARE
Peterborough,http://opendatacommunities.org/id/unitary-authority/peterborough,Peterborough City Council,Adult Social Care,Older People,Supplies and Services,05/01/2015 00:00,702815,863.56,REVENUE,ARGYLE PARK NURSING HOME 2011,OLDER PEOPLE NURSING CARE
Peterborough,http://opendatacommunities.org/id/unitary-authority/peterborough,Peterborough City Council,Children's & Education Services - Children's Social Care,Children Looked After,Employees,05/01/2015 00:00,702961,954,REVENUE,The K A Wing Group Ltd,BUILDING MAINTENANCE
Peterborough,http://opendatacommunities.org/id/unitary-authority/peterborough,Peterborough City Council,Cultural and Related Services,Tourism,Supplies and Services,05/01/2015 00:00,704030,700,REVENUE,Cresset Leisure Services Ltd,TICKETS
Peterborough,http://opendatacommunities.org/id/unitary-authority/peterborough,Peterborough City Council,Deficit/(Surplus) on Trading Undertakings,Trading Account Surpluses & Deficits,Supplies and Services,05/01/2015 00:00,704264,1132.2,REVENUE,Barron Clark Castings Ltd,ITEMS FOR RESALE
Peterborough,http://opendatacommunities.org/id/unitary-authority/peterborough,Peterborough City Council,Capital,Capital,Capital Pending Update to BS,05/01/2015 00:00,704773,546705.84,CAPITAL,Kier Eastern,BUILDING AND SITE WORKS
Peterborough,http://opendatacommunities.org/id/unitary-authority/peterborough,Peterborough City Council,Adult Social Care,Older People,Employees,05/01/2015 00:00,704996,1631.7,REVENUE,Medicare First,EXTERNAL TEMPORARY STAFF
Peterborough,http://opendatacommunities.org/id/unitary-authority/peterborough,Peterborough City Council,Children's & Education Services - Children's Social Care,Asylum Seekers,Supplies and Services,05/01/2015 00:00,705370,2500,REVENUE,Legal Acumen,COURSE FEES
Peterborough,http://opendatacommunities.org/id/unitary-authority/peterborough,Peterborough City Council,Housing Services,Homelessness,Supplies and Services,05/01/2015 00:00,705375,780,REVENUE,Property 77,FINANCIAL ASSISTANCE
Peterborough,http://opendatacommunities.org/id/unitary-authority/peterborough,Peterborough City Council,Adult Social Care,Adult Learning Disabilities,Supplies and Services,05/01/2015 00:00,705393,2868,REVENUE,Augusta Care Ltd,LEARNING DISABILITY HOME CARE
Peterborough,http://opendatacommunities.org/id/unitary-authority/peterborough,Peterborough City Council,Adult Social Care,Older People,Supplies and Services,05/01/2015 00:00,705399,739.42,REVENUE,Atlas Care Services Ltd,OLDER PEOPLE HOME CARE
Peterborough,http://opendatacommunities.org/id/unitary-authority/peterborough,Peterborough City Council,Adult Social Care,Older People,Supplies and Services,05/01/2015 00:00,705404,1116.06,REVENUE,Atlas Care Services Ltd,PHYSICAL DISABILITY HOME CARE
Peterborough,http://opendatacommunities.org/id/unitary-authority/peterborough,Peterborough City Council,Adult Social Care,Older People,Supplies and Services,05/01/2015 00:00,705406,643.72,REVENUE,Atlas Care Services Ltd,OLDER PEOPLE HOME CARE
Peterborough,http://opendatacommunities.org/id/unitary-authority/peterborough,Peterborough City Council,Adult Social Care,Older People,Supplies and Services,05/01/2015 00:00,705411,641.52,REVENUE,Atlas Care Services Ltd,PHYSICAL DISABILITY HOME CARE
Peterborough,http://opendatacommunities.org/id/unitary-authority/peterborough,Peterborough City Council,Adult Social Care,Older People,Supplies and Services,05/01/2015 00:00,705416,952.38,REVENUE,Atlas Care Services Ltd,OLDER PEOPLE HOME CARE
Peterborough,http://opendatacommunities.org/id/unitary-authority/peterborough,Peterborough City Council,Adult Social Care,Older People,Supplies and Services,05/01/2015 00:00,705417,1278.2,REVENUE,Atlas Care Services Ltd,PHYSICAL DISABILITY HOME CARE
Peterborough,http://opendatacommunities.org/id/unitary-authority/peterborough,Peterborough City Council,Adult Social Care,Older People,Supplies and Services,05/01/2015 00:00,705420,547.36,REVENUE,Atlas Care Services Ltd,PHYSICAL DISABILITY HOME CARE
Peterborough,http://opendatacommunities.org/id/unitary-authority/peterborough,Peterborough City Council,Adult Social Care,Older People,Supplies and Services,05/01/2015 00:00,705422,705.98,REVENUE,Atlas Care Services Ltd,PHYSICAL DISABILITY HOME CARE
Peterborough,http://opendatacommunities.org/id/unitary-authority/peterborough,Peterborough City Council,Adult Social Care,Adult Learning Disabilities,Supplies and Services,05/01/2015 00:00,705423,6280.21,REVENUE,Atlas Care Services Ltd,LEARNING DISABILITY HOME CARE
Peterborough,http://opendatacommunities.org/id/unitary-authority/peterborough,Peterborough City Council,Adult Social Care,Older People,Supplies and Services,05/01/2015 00:00,705424,738.1,REVENUE,Atlas Care Services Ltd,OLDER PEOPLE HOME CARE
Peterborough,http://opendatacommunities.org/id/unitary-authority/peterborough,Peterborough City Council,Adult Social Care,Older People,Supplies and Services,05/01/2015 00:00,705425,1943.92,REVENUE,Atlas Care Services Ltd,OLDER PEOPLE HOME CARE
Peterborough,http://opendatacommunities.org/id/unitary-authority/peterborough,Peterborough City Council,Adult Social Care,Older People,Supplies and Services,05/01/2015 00:00,705430,555.06,REVENUE,Atlas Care Services Ltd,OLDER PEOPLE HOME CARE
Peterborough,http://opendatacommunities.org/id/unitary-authority/peterborough,Peterborough City Council,Adult Social Care,Older People,Supplies and Services,05/01/2015 00:00,705433,704.88,REVENUE,Atlas Care Services Ltd,OLDER PEOPLE HOME CARE
Peterborough,http://opendatacommunities.org/id/unitary-authority/peterborough,Peterborough City Council,Adult Social Care,Older People,Supplies and Services,05/01/2015 00:00,705434,1224.08,REVENUE,Atlas Care Services Ltd,OLDER PEOPLE HOME CARE
Peterborough,http://opendatacommunities.org/id/unitary-authority/peterborough,Peterborough City Council,Adult Social Care,Older People,Supplies and Services,05/01/2015 00:00,705435,1006.5,REVENUE,Atlas Care Services Ltd,OLDER PEOPLE HOME CARE
Peterborough,http://opendatacommunities.org/id/unitary-authority/peterborough,Peterborough City Council,Adult Social Care,Older People,More than one Expenses Type,05/01/2015 00:00,705436,650.46,REVENUE,Atlas Care Services Ltd,PHYSICAL DISABILITY HOME CARE
Peterborough,http://opendatacommunities.org/id/unitary-authority/peterborough,Peterborough City Council,Adult Social Care,Older People,Supplies and Services,05/01/2015 00:00,705438,872.74,REVENUE,Atlas Care Services Ltd,OLDER PEOPLE HOME CARE
Peterborough,http://opendatacommunities.org/id/unitary-authority/peterborough,Peterborough City Council,Adult Social Care,Older People,Supplies and Services,05/01/2015 00:00,705442,2938.98,REVENUE,Atlas Care Services Ltd,OLDER PEOPLE HOME CARE
Peterborough,http://opendatacommunities.org/id/unitary-authority/peterborough,Peterborough City Council,Adult Social Care,Older People,Supplies and Services,05/01/2015 00:00,705444,2929.96,REVENUE,Atlas Care Services Ltd,OLDER PEOPLE HOME CARE
Peterborough,http://opendatacommunities.org/id/unitary-authority/peterborough,Peterborough City Council,Adult Social Care,Adult Learning Disabilities,Supplies and Services,05/01/2015 00:00,705446,879.56,REVENUE,Atlas Care Services Ltd,LEARNING DISABILITY HOME CARE
Peterborough,http://opendatacommunities.org/id/unitary-authority/peterborough,Peterborough City Council,Adult Social Care,Older People,Supplies and Services,05/01/2015 00:00,705447,591.14,REVENUE,Atlas Care Services Ltd,PHYSICAL DISABILITY HOME CARE
Peterborough,http://opendatacommunities.org/id/unitary-authority/peterborough,Peterborough City Council,Adult Social Care,Older People,Supplies and Services,05/01/2015 00:00,705450,545.38,REVENUE,Atlas Care Services Ltd,OLDER PEOPLE HOME CARE
Peterborough,http://opendatacommunities.org/id/unitary-authority/peterborough,Peterborough City Council,Adult Social Care,Older People,Supplies and Services,05/01/2015 00:00,705451,786.06,REVENUE,Atlas Care Services Ltd,OLDER PEOPLE HOME CARE
Peterborough,http://opendatacommunities.org/id/unitary-authority/peterborough,Peterborough City Council,Adult Social Care,Older People,Supplies and Services,05/01/2015 00:00,705452,556.6,REVENUE,Atlas Care Services Ltd,OLDER PEOPLE HOME CARE
Peterborough,http://opendatacommunities.org/id/unitary-authority/peterborough,Peterborough City Council,Adult Social Care,Older People,Supplies and Services,05/01/2015 00:00,705454,728.64,REVENUE,Atlas Care Services Ltd,PHYSICAL DISABILITY HOME CARE
Peterborough,http://opendatacommunities.org/id/unitary-authority/peterborough,Peterborough City Council,Adult Social Care,Adult Learning Disabilities,Supplies and Services,05/01/2015 00:00,705456,14541.16,REVENUE,Atlas Care Services Ltd,LEARNING DISABILITY HOME CARE
Peterborough,http://opendatacommunities.org/id/unitary-authority/peterborough,Peterborough City Council,Adult Social Care,Older People,Supplies and Services,05/01/2015 00:00,705458,550.22,REVENUE,Atlas Care Services Ltd,OLDER PEOPLE HOME CARE
Peterborough,http://opendatacommunities.org/id/unitary-authority/peterborough,Peterborough City Council,Adult Social Care,Older People,Supplies and Services,05/01/2015 00:00,705461,2678.3,REVENUE,TA HOME CARE SOLUTIONS,OLDER PEOPLE HOME CARE
Peterborough,http://opendatacommunities.org/id/unitary-authority/peterborough,Peterborough City Council,Adult Social Care,Older People,Supplies and Services,05/01/2015 00:00,705462,657.18,REVENUE,TA HOME CARE SOLUTIONS,OLDER PEOPLE HOME CARE
Peterborough,http://opendatacommunities.org/id/unitary-authority/peterborough,Peterborough City Council,Adult Social Care,Adult Learning Disabilities,Supplies and Services,05/01/2015 00:00,705463,578.63,REVENUE,TA HOME CARE SOLUTIONS,LEARNING DISABILITY HOME CARE
Peterborough,http://opendatacommunities.org/id/unitary-authority/peterborough,Peterborough City Council,Adult Social Care,Adult Learning Disabilities,Supplies and Services,05/01/2015 00:00,705464,1932,REVENUE,TA HOME CARE SOLUTIONS,LEARNING DISABILITY HOME CARE
Peterborough,http://opendatacommunities.org/id/unitary-authority/peterborough,Peterborough City Council,Adult Social Care,Adult Learning Disabilities,Supplies and Services,05/01/2015 00:00,705465,922.4,REVENUE,TA HOME CARE SOLUTIONS,LEARNING DISABILITY HOME CARE
Peterborough,http://opendatacommunities.org/id/unitary-authority/peterborough,Peterborough City Council,Adult Social Care,Older People,Supplies and Services,05/01/2015 00:00,705466,602.89,REVENUE,TA HOME CARE SOLUTIONS,OLDER PEOPLE HOME CARE
Peterborough,http://opendatacommunities.org/id/unitary-authority/peterborough,Peterborough City Council,Adult Social Care,Older People,Supplies and Services,05/01/2015 00:00,705467,783.09,REVENUE,TA HOME CARE SOLUTIONS,OLDER PEOPLE HOME CARE
Peterborough,http://opendatacommunities.org/id/unitary-authority/peterborough,Peterborough City Council,Adult Social Care,Older People,Supplies and Services,05/01/2015 00:00,705468,741.58,REVENUE,TA HOME CARE SOLUTIONS,OLDER PEOPLE HOME CARE
Peterborough,http://opendatacommunities.org/id/unitary-authority/peterborough,Peterborough City Council,Adult Social Care,Older People,Supplies and Services,05/01/2015 00:00,705470,701.92,REVENUE,TA HOME CARE SOLUTIONS,PHYSICAL DISABILITY HOME CARE
Peterborough,http://opendatacommunities.org/id/unitary-authority/peterborough,Peterborough City Council,Adult Social Care,Older People,Supplies and Services,05/01/2015 00:00,705471,713.38,REVENUE,TA HOME CARE SOLUTIONS,PHYSICAL DISABILITY HOME CARE
Peterborough,http://opendatacommunities.org/id/unitary-authority/peterborough,Peterborough City Council,Adult Social Care,Older People,Supplies and Services,05/01/2015 00:00,705472,1932.13,REVENUE,TA HOME CARE SOLUTIONS,OLDER PEOPLE HOME CARE
Peterborough,http://opendatacommunities.org/id/unitary-authority/peterborough,Peterborough City Council,Adult Social Care,Older People,Supplies and Services,05/01/2015 00:00,705473,7005.6,REVENUE,TA HOME CARE SOLUTIONS,PHYSICAL DISABILITY HOME CARE
Peterborough,http://opendatacommunities.org/id/unitary-authority/peterborough,Peterborough City Council,Adult Social Care,Older People,Supplies and Services,05/01/2015 00:00,705474,7005.6,REVENUE,TA HOME CARE SOLUTIONS,PHYSICAL DISABILITY HOME CARE
Peterborough,http://opendatacommunities.org/id/unitary-authority/peterborough,Peterborough City Council,Adult Social Care,Older People,Supplies and Services,05/01/2015 00:00,705480,924.6,REVENUE,TA HOME CARE SOLUTIONS,PHYSICAL DISABILITY HOME CARE
Peterborough,http://opendatacommunities.org/id/unitary-authority/peterborough,Peterborough City Council,Adult Social Care,Older People,Supplies and Services,05/01/2015 00:00,705482,541.84,REVENUE,TA HOME CARE SOLUTIONS,OLDER PEOPLE HOME CARE
Peterborough,http://opendatacommunities.org/id/unitary-authority/peterborough,Peterborough City Council,Adult Social Care,Older People,Supplies and Services,05/01/2015 00:00,705484,2637.8,REVENUE,TA HOME CARE SOLUTIONS,OLDER PEOPLE HOME CARE
Peterborough,http://opendatacommunities.org/id/unitary-authority/peterborough,Peterborough City Council,Children's & Education Services - Education,Secondary,Employees,05/01/2015 00:00,705664,540,REVENUE,Vision for Education Ltd,SUPPLY TEACHERS
Peterborough,http://opendatacommunities.org/id/unitary-authority/peterborough,Peterborough City Council,Children's & Education Services - Education,Secondary,Employees,05/01/2015 00:00,705665,540,REVENUE,Vision for Education Ltd,SUPPLY TEACHERS
Peterborough,http://opendatacommunities.org/id/unitary-authority/peterborough,Peterborough City Council,More than one Service Area Category,More than one Service Division,Balance Sheet,05/01/2015 00:00,705673,774200.16,Balance Sheet,Teachers Pensions,PENSIONS
Peterborough,http://opendatacommunities.org/id/unitary-authority/peterborough,Peterborough City Council,Children's & Education Services - Children's Social Care,Other Children's & Families Services,Employees,05/01/2015 00:00,705695,-972,REVENUE,Medicare First,EXTERNAL TEMPORARY STAFF
Peterborough,http://opendatacommunities.org/id/unitary-authority/peterborough,Peterborough City Council,Housing Services,Homelessness,Supplies and Services,05/01/2015 00:00,705708,562,REVENUE,Belvoir Property Management,FINANCIAL ASSISTANCE
Peterborough,http://opendatacommunities.org/id/unitary-authority/peterborough,Peterborough City Council,Public Health,Sexual Health,Third Party Payments,07/01/2015 00:00,669194,128092.24,REVENUE,Cambridgeshire Community Services,THIRD PARTY PAYMENTS - CONTRACT
Peterborough,http://opendatacommunities.org/id/unitary-authority/peterborough,Peterborough City Council,Public Health,More than one Service Division,Third Party Payments,07/01/2015 00:00,675777,8771.42,REVENUE,Cambs & P'boro NHS Foundation Trust,THIRD PARTY PAYMENTS - CONTRACT
Peterborough,http://opendatacommunities.org/id/unitary-authority/peterborough,Peterborough City Council,Adult Social Care,Adult Physical Disability & Sensory Impairment,Supplies and Services,07/01/2015 00:00,680861,4000,REVENUE,Longueville Court (Barchester),OLDER PEOPLE RESIDENTIAL CARE
Peterborough,http://opendatacommunities.org/id/unitary-authority/peterborough,Peterborough City Council,Adult Social Care,Older People,Supplies and Services,07/01/2015 00:00,683135,3060.9,REVENUE,ABOUT ME CARE AND SUPPORT LTD,SENSORY IMPAIRED HOME CARE
Peterborough,http://opendatacommunities.org/id/unitary-authority/peterborough,Peterborough City Council,Adult Social Care,Older People,Supplies and Services,07/01/2015 00:00,685255,2034.24,REVENUE,BUPA Care Homes,OLDER PEOPLE RESIDENTIAL CARE
Peterborough,http://opendatacommunities.org/id/unitary-authority/peterborough,Peterborough City Council,Adult Social Care,Older People,Supplies and Services,07/01/2015 00:00,686286,2657.48,REVENUE,Hales Group Ltd,PHYSICAL DISABILITY HOME CARE
Peterborough,http://opendatacommunities.org/id/unitary-authority/peterborough,Peterborough City Council,Capital,Capital,Capital Pending Update to BS,07/01/2015 00:00,687815,48251.48,CAPITAL,IIC by Education (P'boro) Ltd,BUILDING AND SITE WORKS
Peterborough,http://opendatacommunities.org/id/unitary-authority/peterborough,Peterborough City Council,Children's & Education Services - Education,Secondary,Supplies and Services,07/01/2015 00:00,689298,845276.61,REVENUE,IIC by Education (P'boro) Ltd,CONTRACT SERVICES
Peterborough,http://opendatacommunities.org/id/unitary-authority/peterborough,Peterborough City Council,Adult Social Care,Older People,Supplies and Services,07/01/2015 00:00,691569,1779.96,REVENUE,BUPA Care Homes,OLDER PEOPLE RESIDENTIAL CARE
Peterborough,http://opendatacommunities.org/id/unitary-authority/peterborough,Peterborough City Council,Adult Social Care,Older People,Supplies and Services,07/01/2015 00:00,693363,3024.78,REVENUE,Hales Group Ltd,OLDER PEOPLE HOME CARE
Peterborough,http://opendatacommunities.org/id/unitary-authority/peterborough,Peterborough City Council,Children's & Education Services - Education,Other School -related Education Functions,Supplies and Services - Transfer Payments,07/01/2015 00:00,696804,16330.41,REVENUE,Sedbergh School,BOARDING - OUT ALLOWANCES
Peterborough,http://opendatacommunities.org/id/unitary-authority/peterborough,Peterborough City Council,Adult Social Care,Older People,Supplies and Services,07/01/2015 00:00,697822,1199.92,REVENUE,BUPA Care Homes,OLDER PEOPLE RESIDENTIAL CARE
Peterborough,http://opendatacommunities.org/id/unitary-authority/peterborough,Peterborough City Council,Adult Social Care,Older People,Supplies and Services,07/01/2015 00:00,698047,1145.18,REVENUE,St Georges Glatton Hall,OLDER PEOPLE RESIDENTIAL CARE
Peterborough,http://opendatacommunities.org/id/unitary-authority/peterborough,Peterborough City Council,Support Services,Support Services,Supplies and Services,07/01/2015 00:00,698143,5394.8,REVENUE,Weightmans LLP,LEGAL COSTS
Peterborough,http://opendatacommunities.org/id/unitary-authority/peterborough,Peterborough City Council,Children's & Education Services - Children's Social Care,Children Looked After,Supplies and Services - Transfer Payments,07/01/2015 00:00,699089,3435.64,REVENUE,Foster Care Associates Ltd FCA,BOARDING - OUT ALLOWANCES
Peterborough,http://opendatacommunities.org/id/unitary-authority/peterborough,Peterborough City Council,Support Services,Support Services,Supplies and Services,07/01/2015 00:00,700052,10179.52,REVENUE,GSL Dardan Ltd,SECURITY
Peterborough,http://opendatacommunities.org/id/unitary-authority/peterborough,Peterborough City Council,Cultural and Related Services,Recreation & Sport,Supplies and Services,07/01/2015 00:00,700327,720,REVENUE,RMIS Ltd,ADMINISTRATION EXPENSES
Peterborough,http://opendatacommunities.org/id/unitary-authority/peterborough,Peterborough City Council,Children's & Education Services - Children's Social Care,Children Looked After,Employees,07/01/2015 00:00,700345,600,REVENUE,Redacted Personal Data,HIRED SERVICES
Peterborough,http://opendatacommunities.org/id/unitary-authority/peterborough,Peterborough City Council,Children's & Education Services - Education,Other School -related Education Functions,Supplies and Services,07/01/2015 00:00,700383,5895,REVENUE,Newark Play Association Ltd,EDUCATION EXPENSES
Peterborough,http://opendatacommunities.org/id/unitary-authority/peterborough,Peterborough City Council,Children's & Education Services - Education,Other School -related Education Functions,Supplies and Services,07/01/2015 00:00,700385,4230,REVENUE,Newark Play Association Ltd,EDUCATION EXPENSES
Peterborough,http://opendatacommunities.org/id/unitary-authority/peterborough,Peterborough City Council,Adult Social Care,Older People,Supplies and Services,07/01/2015 00:00,700756,997.48,REVENUE,Cozy Care,PHYSICAL DISABILITY HOME CARE
Peterborough,http://opendatacommunities.org/id/unitary-authority/peterborough,Peterborough City Council,Capital,Capital,Capital Pending Update to BS,07/01/2015 00:00,700813,2647.56,CAPITAL,Western Power Distribution,INFRASTRUCTURE
Peterborough,http://opendatacommunities.org/id/unitary-authority/peterborough,Peterborough City Council,Children's & Education Services - Children's Social Care,Children Looked After,Supplies and Services - Transfer Payments,07/01/2015 00:00,700855,3950,REVENUE,I S P,BOARDING - OUT ALLOWANCES
Peterborough,http://opendatacommunities.org/id/unitary-authority/peterborough,Peterborough City Council,Support Services,Support Services,Employees,07/01/2015 00:00,700933,1396.5,REVENUE,Venn Group Ltd,EXTERNAL TEMPORARY STAFF
Peterborough,http://opendatacommunities.org/id/unitary-authority/peterborough,Peterborough City Council,Support Services,Support Services,Employees,07/01/2015 00:00,700934,1777.55,REVENUE,Venn Group Ltd,EXTERNAL TEMPORARY STAFF
Peterborough,http://opendatacommunities.org/id/unitary-authority/peterborough,Peterborough City Council,Support Services,Support Services,Employees,07/01/2015 00:00,700952,1519.8,REVENUE,Venn Group Ltd,EXTERNAL TEMPORARY STAFF
Peterborough,http://opendatacommunities.org/id/unitary-authority/peterborough,Peterborough City Council,Support Services,Support Services,Supplies and Services,07/01/2015 00:00,701055,1440,REVENUE,"Bennett, Mr Jonathan",LEGAL COSTS
Peterborough,http://opendatacommunities.org/id/unitary-authority/peterborough,Peterborough City Council,Environmental and Regulatory Services,"Cemetery, Crematorium & Mortuary Services",Premises,07/01/2015 00:00,701089,534,REVENUE,Fenland Stoneworks,MAINTENANCE
Peterborough,http://opendatacommunities.org/id/unitary-authority/peterborough,Peterborough City Council,Cultural and Related Services,Culture & Heritage,Supplies and Services,07/01/2015 00:00,701192,2384.4,REVENUE,Elveden Farms Ltd,TREES/LANDSCAPING MATERIALS
Peterborough,http://opendatacommunities.org/id/unitary-authority/peterborough,Peterborough City Council,Support Services,Support Services,Supplies and Services,07/01/2015 00:00,701211,660,REVENUE,"Sleight, Mr Nigel",LEGAL COSTS
Peterborough,http://opendatacommunities.org/id/unitary-authority/peterborough,Peterborough City Council,Children's & Education Services - Education,Early Years,Supplies and Services,07/01/2015 00:00,701224,30054.42,REVENUE,Manor House Nursery (Peterborough) Ltd,GRANT PAYMENT
Peterborough,http://opendatacommunities.org/id/unitary-authority/peterborough,Peterborough City Council,Cultural and Related Services,Recreation & Sport,Premises,07/01/2015 00:00,701249,739.68,REVENUE,WN Li & YP Li,SERVICE CHARGES
Peterborough,http://opendatacommunities.org/id/unitary-authority/peterborough,Peterborough City Council,Support Services,Support Services,Supplies and Services,07/01/2015 00:00,701317,1400,REVENUE,Clinical Skills Training Serv.,COURSE INSTRUCTORS FEES
Peterborough,http://opendatacommunities.org/id/unitary-authority/peterborough,Peterborough City Council,Housing Services,Homelessness,Supplies and Services,07/01/2015 00:00,701361,552.3,REVENUE,Eastfield Guesthouse,HOMELESSNESS BED AND B/FAST
Peterborough,http://opendatacommunities.org/id/unitary-authority/peterborough,Peterborough City Council,Support Services,Support Services,Supplies and Services,07/01/2015 00:00,701373,787.15,REVENUE,Collectica Ltd,DEBT COLLECTION
Peterborough,http://opendatacommunities.org/id/unitary-authority/peterborough,Peterborough City Council,Children's & Education Services - Education,Other School -related Education Functions,Supplies and Services,07/01/2015 00:00,701396,960,REVENUE,Top Class Tutors,EDUCATION EXPENSES
Peterborough,http://opendatacommunities.org/id/unitary-authority/peterborough,Peterborough City Council,Adult Social Care,Adult Learning Disabilities,Supplies and Services,07/01/2015 00:00,701466,720,REVENUE,SOCIAL CARE SOLUTIONS LTD,LEARNING DISABILITY HOME CARE
Peterborough,http://opendatacommunities.org/id/unitary-authority/peterborough,Peterborough City Council,Cultural and Related Services,Recreation & Sport,Premises,07/01/2015 00:00,701489,1452,REVENUE,CCL Supplies Ltd,EQUIPMENT
Peterborough,http://opendatacommunities.org/id/unitary-authority/peterborough,Peterborough City Council,Capital,Capital,Capital Pending Update to BS,07/01/2015 00:00,701557,7337.12,CAPITAL,Princebuild Limited,BUILDING AND SITE WORKS
Peterborough,http://opendatacommunities.org/id/unitary-authority/peterborough,Peterborough City Council,Highways and Transport Services,"Transport planning, policy and strategy",Supplies and Services,07/01/2015 00:00,701594,3192,REVENUE,CWS Sound & Lighting,EQUIPMENT HIRE
Peterborough,http://opendatacommunities.org/id/unitary-authority/peterborough,Peterborough City Council,Adult Social Care,Adult Learning Disabilities,Supplies and Services,07/01/2015 00:00,701653,3903.2,REVENUE,SOCIAL CARE SOLUTIONS LTD,LEARNING DISABILITY HOME CARE
Peterborough,http://opendatacommunities.org/id/unitary-authority/peterborough,Peterborough City Council,Adult Social Care,Adult Learning Disabilities,Supplies and Services,07/01/2015 00:00,701656,6064.8,REVENUE,SOCIAL CARE SOLUTIONS LTD,LEARNING DISABILITY HOME CARE
Peterborough,http://opendatacommunities.org/id/unitary-authority/peterborough,Peterborough City Council,Adult Social Care,Adult Learning Disabilities,Supplies and Services,07/01/2015 00:00,701659,3223.2,REVENUE,SOCIAL CARE SOLUTIONS LTD,LEARNING DISABILITY HOME CARE
Peterborough,http://opendatacommunities.org/id/unitary-authority/peterborough,Peterborough City Council,Adult Social Care,Adult Learning Disabilities,Supplies and Services,07/01/2015 00:00,701662,13809.6,REVENUE,SOCIAL CARE SOLUTIONS LTD,LEARNING DISABILITY HOME CARE
Peterborough,http://opendatacommunities.org/id/unitary-authority/peterborough,Peterborough City Council,Adult Social Care,Adult Learning Disabilities,Supplies and Services,07/01/2015 00:00,701664,3211.2,REVENUE,SOCIAL CARE SOLUTIONS LTD,LEARNING DISABILITY HOME CARE
Peterborough,http://opendatacommunities.org/id/unitary-authority/peterborough,Peterborough City Council,Support Services,Support Services,Employees,07/01/2015 00:00,701665,1680,REVENUE,Go Management Ltd TA GoUmbrella,EXTERNAL TEMPORARY STAFF
Peterborough,http://opendatacommunities.org/id/unitary-authority/peterborough,Peterborough City Council,Adult Social Care,Adult Learning Disabilities,Supplies and Services,07/01/2015 00:00,701666,2983.2,REVENUE,SOCIAL CARE SOLUTIONS LTD,LEARNING DISABILITY HOME CARE
Peterborough,http://opendatacommunities.org/id/unitary-authority/peterborough,Peterborough City Council,Adult Social Care,Adult Learning Disabilities,Supplies and Services,07/01/2015 00:00,701667,1549.12,REVENUE,PRIME LIFE LTD,LEARNING DISABILITY RESIDENTIAL CARE
Peterborough,http://opendatacommunities.org/id/unitary-authority/peterborough,Peterborough City Council,Adult Social Care,Adult Learning Disabilities,Supplies and Services,07/01/2015 00:00,701668,3223.2,REVENUE,SOCIAL CARE SOLUTIONS LTD,LEARNING DISABILITY HOME CARE
Peterborough,http://opendatacommunities.org/id/unitary-authority/peterborough,Peterborough City Council,Adult Social Care,Adult Learning Disabilities,Supplies and Services,07/01/2015 00:00,701670,3740.12,REVENUE,SOCIAL CARE SOLUTIONS LTD,LEARNING DISABILITY HOME CARE
Peterborough,http://opendatacommunities.org/id/unitary-authority/peterborough,Peterborough City Council,Capital,Capital,Capital Pending Update to BS,07/01/2015 00:00,701672,12907.2,CAPITAL,Littlethorpe of Leicester Ltd,BUILDING AND SITE WORKS
Peterborough,http://opendatacommunities.org/id/unitary-authority/peterborough,Peterborough City Council,Adult Social Care,Adult Learning Disabilities,Supplies and Services,07/01/2015 00:00,701676,6064.8,REVENUE,SOCIAL CARE SOLUTIONS LTD,LEARNING DISABILITY HOME CARE
Peterborough,http://opendatacommunities.org/id/unitary-authority/peterborough,Peterborough City Council,Adult Social Care,Adult Learning Disabilities,Supplies and Services,07/01/2015 00:00,701677,5589.6,REVENUE,SOCIAL CARE SOLUTIONS LTD,LEARNING DISABILITY HOME CARE
Peterborough,http://opendatacommunities.org/id/unitary-authority/peterborough,Peterborough City Council,Adult Social Care,Adult Learning Disabilities,Supplies and Services,07/01/2015 00:00,701678,1260,REVENUE,SOCIAL CARE SOLUTIONS LTD,LEARNING DISABILITY HOME CARE
Peterborough,http://opendatacommunities.org/id/unitary-authority/peterborough,Peterborough City Council,Adult Social Care,Adult Learning Disabilities,Supplies and Services,07/01/2015 00:00,701684,5434.8,REVENUE,SOCIAL CARE SOLUTIONS LTD,LEARNING DISABILITY HOME CARE
Peterborough,http://opendatacommunities.org/id/unitary-authority/peterborough,Peterborough City Council,Children's & Education Services - Education,Other School -related Education Functions,Employees,07/01/2015 00:00,701685,4584.6,REVENUE,Top Class Tutors,SUPPLY TEACHERS
Peterborough,http://opendatacommunities.org/id/unitary-authority/peterborough,Peterborough City Council,Capital,Capital,Capital Pending Update to BS,07/01/2015 00:00,701696,960,CAPITAL,Valuation Office Agency,CONSULTANTS FEES
Peterborough,http://opendatacommunities.org/id/unitary-authority/peterborough,Peterborough City Council,Capital,Capital,Capital Pending Update to BS,07/01/2015 00:00,701743,4913.28,CAPITAL,VIX ACIS Ltd,INFRASTRUCTURE
Peterborough,http://opendatacommunities.org/id/unitary-authority/peterborough,Peterborough City Council,More than one Service Area Category,More than one Service Division,Supplies and Services,07/01/2015 00:00,701759,541.2,REVENUE,Vodafone Ltd,MOBILE TELEPHONES
Peterborough,http://opendatacommunities.org/id/unitary-authority/peterborough,Peterborough City Council,Highways and Transport Services,Public Transport,Supplies and Services,07/01/2015 00:00,701762,15913.17,REVENUE,First Eastern Counties Buses Ltd,CONTRACTORS
Peterborough,http://opendatacommunities.org/id/unitary-authority/peterborough,Peterborough City Council,Children's & Education Services - Education,Other School -related Education Functions,Supplies and Services - Transfer Payments,07/01/2015 00:00,702273,39613,REVENUE,Chelfham Mill School Ltd,BOARDING - OUT ALLOWANCES
Peterborough,http://opendatacommunities.org/id/unitary-authority/peterborough,Peterborough City Council,Support Services,Support Services,Supplies and Services,07/01/2015 00:00,702274,720,REVENUE,Clinical Skills Training Serv.,COURSE INSTRUCTORS FEES
Peterborough,http://opendatacommunities.org/id/unitary-authority/peterborough,Peterborough City Council,Adult Social Care,Older People,Supplies and Services,07/01/2015 00:00,702450,2686.08,REVENUE,Hales Group Ltd,PHYSICAL DISABILITY HOME CARE
Peterborough,http://opendatacommunities.org/id/unitary-authority/peterborough,Peterborough City Council,Adult Social Care,Adult Learning Disabilities,Supplies and Services,07/01/2015 00:00,702533,616.4,REVENUE,Thera East Anglia,LEARNING DISABILITY DAY CARE
Peterborough,http://opendatacommunities.org/id/unitary-authority/peterborough,Peterborough City Council,Adult Social Care,Adult Learning Disabilities,Supplies and Services,07/01/2015 00:00,702535,783.6,REVENUE,Thera East Anglia,LEARNING DISABILITY DAY CARE
Peterborough,http://opendatacommunities.org/id/unitary-authority/peterborough,Peterborough City Council,Adult Social Care,Adult Learning Disabilities,Supplies and Services,07/01/2015 00:00,702540,616.4,REVENUE,Thera East Anglia,LEARNING DISABILITY DAY CARE
Peterborough,http://opendatacommunities.org/id/unitary-authority/peterborough,Peterborough City Council,Adult Social Care,Adult Learning Disabilities,Supplies and Services,07/01/2015 00:00,702541,2204.8,REVENUE,Thera East Anglia,LEARNING DISABILITY DAY CARE
Peterborough,http://opendatacommunities.org/id/unitary-authority/peterborough,Peterborough City Council,Adult Social Care,Adult Learning Disabilities,Supplies and Services,07/01/2015 00:00,702546,672.96,REVENUE,Thera East Anglia,LEARNING DISABILITY DAY CARE
Peterborough,http://opendatacommunities.org/id/unitary-authority/peterborough,Peterborough City Council,Adult Social Care,Adult Learning Disabilities,Supplies and Services,07/01/2015 00:00,702547,783.6,REVENUE,Thera East Anglia,LEARNING DISABILITY DAY CARE
Peterborough,http://opendatacommunities.org/id/unitary-authority/peterborough,Peterborough City Council,Adult Social Care,Adult Learning Disabilities,Supplies and Services,07/01/2015 00:00,702550,671.6,REVENUE,Thera East Anglia,LEARNING DISABILITY DAY CARE
Peterborough,http://opendatacommunities.org/id/unitary-authority/peterborough,Peterborough City Council,Adult Social Care,Adult Learning Disabilities,Supplies and Services,07/01/2015 00:00,702552,616.4,REVENUE,Thera East Anglia,LEARNING DISABILITY DAY CARE
Peterborough,http://opendatacommunities.org/id/unitary-authority/peterborough,Peterborough City Council,Adult Social Care,Adult Learning Disabilities,Supplies and Services,07/01/2015 00:00,702553,783.6,REVENUE,Thera East Anglia,LEARNING DISABILITY DAY CARE
Peterborough,http://opendatacommunities.org/id/unitary-authority/peterborough,Peterborough City Council,Adult Social Care,Adult Learning Disabilities,Supplies and Services,07/01/2015 00:00,702556,2035.2,REVENUE,Thera East Anglia,LEARNING DISABILITY DAY CARE
Peterborough,http://opendatacommunities.org/id/unitary-authority/peterborough,Peterborough City Council,Adult Social Care,Adult Learning Disabilities,Supplies and Services,07/01/2015 00:00,702558,781.8,REVENUE,Thera East Anglia,LEARNING DISABILITY DAY CARE
Peterborough,http://opendatacommunities.org/id/unitary-authority/peterborough,Peterborough City Council,Adult Social Care,Adult Learning Disabilities,Supplies and Services,07/01/2015 00:00,702559,763.2,REVENUE,Thera East Anglia,LEARNING DISABILITY DAY CARE
Peterborough,http://opendatacommunities.org/id/unitary-authority/peterborough,Peterborough City Council,Adult Social Care,Adult Learning Disabilities,Supplies and Services,07/01/2015 00:00,702560,783.6,REVENUE,Thera East Anglia,LEARNING DISABILITY DAY CARE
Peterborough,http://opendatacommunities.org/id/unitary-authority/peterborough,Peterborough City Council,Adult Social Care,Adult Learning Disabilities,Supplies and Services,07/01/2015 00:00,702563,616.4,REVENUE,Thera East Anglia,LEARNING DISABILITY DAY CARE
Peterborough,http://opendatacommunities.org/id/unitary-authority/peterborough,Peterborough City Council,Children's & Education Services - Children's Social Care,Other Children's & Families Services,Employees,07/01/2015 00:00,702564,4312.5,REVENUE,Tempest Resourcing,EXTERNAL TEMPORARY STAFF
Peterborough,http://opendatacommunities.org/id/unitary-authority/peterborough,Peterborough City Council,Adult Social Care,Adult Learning Disabilities,Supplies and Services,07/01/2015 00:00,702565,2204.8,REVENUE,Thera East Anglia,LEARNING DISABILITY DAY CARE
Peterborough,http://opendatacommunities.org/id/unitary-authority/peterborough,Peterborough City Council,Adult Social Care,Adult Learning Disabilities,Supplies and Services,07/01/2015 00:00,702566,645.76,REVENUE,Thera East Anglia,LEARNING DISABILITY DAY CARE
Peterborough,http://opendatacommunities.org/id/unitary-authority/peterborough,Peterborough City Council,Adult Social Care,Adult Learning Disabilities,Supplies and Services,07/01/2015 00:00,702567,616.4,REVENUE,Thera East Anglia,LEARNING DISABILITY DAY CARE
Peterborough,http://opendatacommunities.org/id/unitary-authority/peterborough,Peterborough City Council,Adult Social Care,Adult Learning Disabilities,Supplies and Services,07/01/2015 00:00,702569,1968,REVENUE,Thera East Anglia,LEARNING DISABILITY DAY CARE
Peterborough,http://opendatacommunities.org/id/unitary-authority/peterborough,Peterborough City Council,Adult Social Care,Adult Learning Disabilities,Supplies and Services,07/01/2015 00:00,702574,2035.2,REVENUE,Thera East Anglia,LEARNING DISABILITY DAY CARE
Peterborough,http://opendatacommunities.org/id/unitary-authority/peterborough,Peterborough City Council,Adult Social Care,Adult Learning Disabilities,Supplies and Services,07/01/2015 00:00,702576,3442.8,REVENUE,Thera East Anglia,LEARNING DISABILITY DAY CARE
Peterborough,http://opendatacommunities.org/id/unitary-authority/peterborough,Peterborough City Council,Highways and Transport Services,"Transport planning, policy and strategy",Employees,07/01/2015 00:00,702594,6601.68,REVENUE,Randstad CPE,RECRUITMENT FEES
Peterborough,http://opendatacommunities.org/id/unitary-authority/peterborough,Peterborough City Council,Adult Social Care,Adult Learning Disabilities,Supplies and Services,07/01/2015 00:00,702604,5112.64,REVENUE,Community Care Solutions Ltd,LEARNING DISABILITY RESIDENTIAL CARE
Peterborough,http://opendatacommunities.org/id/unitary-authority/peterborough,Peterborough City Council,Adult Social Care,Adult Learning Disabilities,Supplies and Services,07/01/2015 00:00,702610,4828.6,REVENUE,Community Care Solutions Ltd,LEARNING DISABILITY RESIDENTIAL CARE
Peterborough,http://opendatacommunities.org/id/unitary-authority/peterborough,Peterborough City Council,Adult Social Care,Adult Learning Disabilities,Supplies and Services,07/01/2015 00:00,702613,10726.08,REVENUE,Community Care Solutions Ltd,LEARNING DISABILITY RESIDENTIAL CARE
Peterborough,http://opendatacommunities.org/id/unitary-authority/peterborough,Peterborough City Council,Adult Social Care,Adult Learning Disabilities,Supplies and Services,07/01/2015 00:00,702620,5190.44,REVENUE,Community Care Solutions Ltd,LEARNING DISABILITY RESIDENTIAL CARE
Peterborough,http://opendatacommunities.org/id/unitary-authority/peterborough,Peterborough City Council,Adult Social Care,Older People,Supplies and Services,07/01/2015 00:00,702631,960.2,REVENUE,Barchester Healthcare Ltd (Tixover),OLDER PEOPLE RESIDENTIAL CARE
Peterborough,http://opendatacommunities.org/id/unitary-authority/peterborough,Peterborough City Council,Adult Social Care,Older People,Supplies and Services,07/01/2015 00:00,702633,1021.88,REVENUE,Barchester Healthcare Ltd (Tixover),OLDER PEOPLE RESIDENTIAL CARE
Peterborough,http://opendatacommunities.org/id/unitary-authority/peterborough,Peterborough City Council,Children's & Education Services - Education,Other School -related Education Functions,Supplies and Services - Transfer Payments,07/01/2015 00:00,702650,28146.59,REVENUE,Park House School,BOARDING - OUT ALLOWANCES
Peterborough,http://opendatacommunities.org/id/unitary-authority/peterborough,Peterborough City Council,Highways and Transport Services,Parking Services,Supplies and Services,07/01/2015 00:00,702672,1606.2,REVENUE,keltic Ltd,UNIFORM/PROTECTIVE CLOTHING
Peterborough,http://opendatacommunities.org/id/unitary-authority/peterborough,Peterborough City Council,Highways and Transport Services,"Transport planning, policy and strategy",Supplies and Services,07/01/2015 00:00,702680,900.04,REVENUE,Johnston Press Midlands Division,ADVERTISING
Peterborough,http://opendatacommunities.org/id/unitary-authority/peterborough,Peterborough City Council,Highways and Transport Services,"Transport planning, policy and strategy",Supplies and Services,07/01/2015 00:00,702681,589.68,REVENUE,Johnston Press Midlands Division,ADVERTISING
Peterborough,http://opendatacommunities.org/id/unitary-authority/peterborough,Peterborough City Council,Planning Services,Economic Development,Third Party Payments,07/01/2015 00:00,702683,1896,REVENUE,Enterprise Managed Services Limited,CONTRACT SERVICES
Peterborough,http://opendatacommunities.org/id/unitary-authority/peterborough,Peterborough City Council,Planning Services,Development Control,Supplies and Services,07/01/2015 00:00,702687,557.28,REVENUE,Johnston Press Midlands Division,ADVERTISING
Peterborough,http://opendatacommunities.org/id/unitary-authority/peterborough,Peterborough City Council,Environmental and Regulatory Services,"Cemetery, Crematorium & Mortuary Services",Supplies and Services,07/01/2015 00:00,702695,794.16,REVENUE,Fibrous Ltd,MEMORIALS
Peterborough,http://opendatacommunities.org/id/unitary-authority/peterborough,Peterborough City Council,Children's & Education Services - Children's Social Care,Other Children's & Families Services,Supplies and Services,07/01/2015 00:00,702697,39500,REVENUE,Cambridgeshire County Council,PURCHASED SOCIAL CARE SERVICES
Peterborough,http://opendatacommunities.org/id/unitary-authority/peterborough,Peterborough City Council,Capital,Capital,Capital Pending Update to BS,07/01/2015 00:00,702698,6197.76,CAPITAL,Garfield Builders Ltd,BUILDING AND SITE WORKS
Peterborough,http://opendatacommunities.org/id/unitary-authority/peterborough,Peterborough City Council,Children's & Education Services - Children's Social Care,Other Children's & Families Services,Employees,07/01/2015 00:00,702701,1513.62,REVENUE,Randstad Care Ltd,EXTERNAL TEMPORARY STAFF
Peterborough,http://opendatacommunities.org/id/unitary-authority/peterborough,Peterborough City Council,Children's & Education Services - Children's Social Care,Other Children's & Families Services,Employees,07/01/2015 00:00,702704,1513.62,REVENUE,Randstad Care Ltd,EXTERNAL TEMPORARY STAFF
Peterborough,http://opendatacommunities.org/id/unitary-authority/peterborough,Peterborough City Council,Adult Social Care,Older People,Supplies and Services,07/01/2015 00:00,702714,3340,REVENUE,Longueville Court (Barchester),OLDER PEOPLE RESIDENTIAL CARE
Peterborough,http://opendatacommunities.org/id/unitary-authority/peterborough,Peterborough City Council,Adult Social Care,Adult Physical Disability & Sensory Impairment,Supplies and Services,07/01/2015 00:00,702717,3336,REVENUE,Longueville Court (Barchester),SENSORY IMPAIRED RESIDENTIAL CARE
Peterborough,http://opendatacommunities.org/id/unitary-authority/peterborough,Peterborough City Council,Adult Social Care,Older People,Supplies and Services,07/01/2015 00:00,702724,1431.12,REVENUE,Longueville Court (Barchester),OLDER PEOPLE RESIDENTIAL CARE
Peterborough,http://opendatacommunities.org/id/unitary-authority/peterborough,Peterborough City Council,Adult Social Care,Older People,Supplies and Services,07/01/2015 00:00,702727,1569.76,REVENUE,Longueville Court (Barchester),OLDER PEOPLE RESIDENTIAL CARE
Peterborough,http://opendatacommunities.org/id/unitary-authority/peterborough,Peterborough City Council,Adult Social Care,Older People,Third Party Payments,07/01/2015 00:00,702731,3479.44,REVENUE,Longueville Court (Barchester),THIRD PARTY PAYMENTS - CONTRACT
Peterborough,http://opendatacommunities.org/id/unitary-authority/peterborough,Peterborough City Council,Adult Social Care,Older People,Supplies and Services,07/01/2015 00:00,702734,3237.4,REVENUE,Longueville Court (Barchester),OLDER PEOPLE RESIDENTIAL CARE
Peterborough,http://opendatacommunities.org/id/unitary-authority/peterborough,Peterborough City Council,Adult Social Care,Older People,Supplies and Services,07/01/2015 00:00,702737,4595.52,REVENUE,Longueville Court (Barchester),PHYSICAL DISABILITY RESIDENTIAL CARE
Peterborough,http://opendatacommunities.org/id/unitary-authority/peterborough,Peterborough City Council,Adult Social Care,Older People,Supplies and Services,07/01/2015 00:00,702740,2107.28,REVENUE,Longueville Court (Barchester),OLDER PEOPLE RESIDENTIAL CARE
Peterborough,http://opendatacommunities.org/id/unitary-authority/peterborough,Peterborough City Council,Children's & Education Services - Education,Secondary,Employees,07/01/2015 00:00,702741,600,REVENUE,Vision for Education Ltd,SUPPLY TEACHERS
Peterborough,http://opendatacommunities.org/id/unitary-authority/peterborough,Peterborough City Council,Deficit/(Surplus) on Trading Undertakings,Trading Account Surpluses & Deficits,Supplies and Services,07/01/2015 00:00,702744,643.82,REVENUE,Safetykleen UK Ltd,HYGIENE SUPPLIES
Peterborough,http://opendatacommunities.org/id/unitary-authority/peterborough,Peterborough City Council,Adult Social Care,Older People,Supplies and Services,07/01/2015 00:00,702751,3853.48,REVENUE,Longueville Court (Barchester),PHYSICAL DISABILITY RESIDENTIAL CARE
Peterborough,http://opendatacommunities.org/id/unitary-authority/peterborough,Peterborough City Council,Adult Social Care,Older People,Supplies and Services,07/01/2015 00:00,702769,3480.6,REVENUE,Longueville Court (Barchester),PHYSICAL DISABILITY RESIDENTIAL CARE
Peterborough,http://opendatacommunities.org/id/unitary-authority/peterborough,Peterborough City Council,Highways and Transport Services,Street Lighting,Premises,07/01/2015 00:00,702770,3135.02,REVENUE,EDF Energy Networks Ltd,ELECTRICITY
Peterborough,http://opendatacommunities.org/id/unitary-authority/peterborough,Peterborough City Council,Adult Social Care,Adult Physical Disability & Sensory Impairment,Supplies and Services,07/01/2015 00:00,702793,7571.43,REVENUE,Longueville Court (Barchester),OLDER PEOPLE RESIDENTIAL CARE
Peterborough,http://opendatacommunities.org/id/unitary-authority/peterborough,Peterborough City Council,Adult Social Care,Older People,Supplies and Services,07/01/2015 00:00,702794,2100.12,REVENUE,Longueville Court (Barchester),OLDER PEOPLE RESIDENTIAL CARE
Peterborough,http://opendatacommunities.org/id/unitary-authority/peterborough,Peterborough City Council,Adult Social Care,Older People,Supplies and Services,07/01/2015 00:00,702795,2708.8,REVENUE,Longueville Court (Barchester),PHYSICAL DISABILITY RESIDENTIAL CARE
Peterborough,http://opendatacommunities.org/id/unitary-authority/peterborough,Peterborough City Council,Adult Social Care,Adult Learning Disabilities,Supplies and Services,07/01/2015 00:00,702806,2655.84,REVENUE,Longueville Court (Barchester),LEARNING DISABILITY RESIDENTIAL CARE
Peterborough,http://opendatacommunities.org/id/unitary-authority/peterborough,Peterborough City Council,Adult Social Care,Older People,Supplies and Services,07/01/2015 00:00,702807,3541.2,REVENUE,Longueville Court (Barchester),PHYSICAL DISABILITY RESIDENTIAL CARE
Peterborough,http://opendatacommunities.org/id/unitary-authority/peterborough,Peterborough City Council,Adult Social Care,Older People,Supplies and Services,07/01/2015 00:00,702816,3644,REVENUE,Bandrum Nursing Home Ltd,PHYSICAL DISABILITY NURSING CARE
Peterborough,http://opendatacommunities.org/id/unitary-authority/peterborough,Peterborough City Council,Adult Social Care,Adult Learning Disabilities,Employees,07/01/2015 00:00,702852,1533,REVENUE,Caritas Recruitment,EXTERNAL TEMPORARY STAFF
Peterborough,http://opendatacommunities.org/id/unitary-authority/peterborough,Peterborough City Council,Adult Social Care,Adult Learning Disabilities,Employees,07/01/2015 00:00,702861,1627.44,REVENUE,Caritas Recruitment,EXTERNAL TEMPORARY STAFF
Peterborough,http://opendatacommunities.org/id/unitary-authority/peterborough,Peterborough City Council,Adult Social Care,Adult Learning Disabilities,Employees,07/01/2015 00:00,702864,1260,REVENUE,Caritas Recruitment,EXTERNAL TEMPORARY STAFF
Peterborough,http://opendatacommunities.org/id/unitary-authority/peterborough,Peterborough City Council,More than one Service Area Category,More than one Service Division,Supplies and Services,07/01/2015 00:00,702870,1696.5,REVENUE,Whistl London Ltd,POSTAGE
Peterborough,http://opendatacommunities.org/id/unitary-authority/peterborough,Peterborough City Council,Adult Social Care,Adult Learning Disabilities,Employees,07/01/2015 00:00,702875,1545.3,REVENUE,Pulse,EXTERNAL TEMPORARY STAFF
Peterborough,http://opendatacommunities.org/id/unitary-authority/peterborough,Peterborough City Council,Adult Social Care,Adult Learning Disabilities,Supplies and Services,07/01/2015 00:00,703417,7929.6,REVENUE,SOCIAL CARE SOLUTIONS LTD,LEARNING DISABILITY HOME CARE
Peterborough,http://opendatacommunities.org/id/unitary-authority/peterborough,Peterborough City Council,Children's & Education Services - Children's Social Care,Other Children's & Families Services,Employees,07/01/2015 00:00,703439,2280,REVENUE,Sanctuary Personnel Ltd,EXTERNAL TEMPORARY STAFF
Peterborough,http://opendatacommunities.org/id/unitary-authority/peterborough,Peterborough City Council,Children's & Education Services - Children's Social Care,Children's Services - Commissioning and Social Work,Employees,07/01/2015 00:00,703441,2144.52,REVENUE,Sanctuary Personnel Ltd,EXTERNAL TEMPORARY STAFF
Peterborough,http://opendatacommunities.org/id/unitary-authority/peterborough,Peterborough City Council,Children's & Education Services - Children's Social Care,Other Children's & Families Services,Employees,07/01/2015 00:00,703443,1530,REVENUE,Sanctuary Personnel Ltd,EXTERNAL TEMPORARY STAFF
Peterborough,http://opendatacommunities.org/id/unitary-authority/peterborough,Peterborough City Council,Children's & Education Services - Children's Social Care,Other Children's & Families Services,Employees,07/01/2015 00:00,703445,1820.4,REVENUE,Sanctuary Personnel Ltd,EXTERNAL TEMPORARY STAFF
Peterborough,http://opendatacommunities.org/id/unitary-authority/peterborough,Peterborough City Council,Children's & Education Services - Children's Social Care,Other Children's & Families Services,Employees,07/01/2015 00:00,703447,1998,REVENUE,Sanctuary Personnel Ltd,EXTERNAL TEMPORARY STAFF
Peterborough,http://opendatacommunities.org/id/unitary-authority/peterborough,Peterborough City Council,Children's & Education Services - Children's Social Care,Other Children's & Families Services,Employees,07/01/2015 00:00,703448,2619.6,REVENUE,Sanctuary Personnel Ltd,EXTERNAL TEMPORARY STAFF
Peterborough,http://opendatacommunities.org/id/unitary-authority/peterborough,Peterborough City Council,Children's & Education Services - Children's Social Care,Other Children's & Families Services,Employees,07/01/2015 00:00,703452,2727,REVENUE,Sanctuary Personnel Ltd,EXTERNAL TEMPORARY STAFF
Peterborough,http://opendatacommunities.org/id/unitary-authority/peterborough,Peterborough City Council,Children's & Education Services - Children's Social Care,Other Children's & Families Services,Employees,07/01/2015 00:00,703454,799.2,REVENUE,Sanctuary Personnel Ltd,EXTERNAL TEMPORARY STAFF
Peterborough,http://opendatacommunities.org/id/unitary-authority/peterborough,Peterborough City Council,Children's & Education Services - Children's Social Care,Other Children's & Families Services,Employees,07/01/2015 00:00,703457,1998,REVENUE,Sanctuary Personnel Ltd,EXTERNAL TEMPORARY STAFF
Peterborough,http://opendatacommunities.org/id/unitary-authority/peterborough,Peterborough City Council,Children's & Education Services - Children's Social Care,Other Children's & Families Services,Employees,07/01/2015 00:00,703459,1715.62,REVENUE,Sanctuary Personnel Ltd,EXTERNAL TEMPORARY STAFF
Peterborough,http://opendatacommunities.org/id/unitary-authority/peterborough,Peterborough City Council,Deficit/(Surplus) on Trading Undertakings,Trading Account Surpluses & Deficits,Supplies and Services,07/01/2015 00:00,703461,2610.79,REVENUE,Thomas Dudley Ltd,ITEMS FOR RESALE
Peterborough,http://opendatacommunities.org/id/unitary-authority/peterborough,Peterborough City Council,Children's & Education Services - Children's Social Care,Children's Services - Commissioning and Social Work,Employees,07/01/2015 00:00,703933,2144.52,REVENUE,Sanctuary Personnel Ltd,EXTERNAL TEMPORARY STAFF
Peterborough,http://opendatacommunities.org/id/unitary-authority/peterborough,Peterborough City Council,Children's & Education Services - Children's Social Care,Other Children's & Families Services,Employees,07/01/2015 00:00,703935,2144.52,REVENUE,Sanctuary Personnel Ltd,EXTERNAL TEMPORARY STAFF
Peterborough,http://opendatacommunities.org/id/unitary-authority/peterborough,Peterborough City Council,Children's & Education Services - Children's Social Care,Other Children's & Families Services,Employees,07/01/2015 00:00,703937,2144.52,REVENUE,Sanctuary Personnel Ltd,EXTERNAL TEMPORARY STAFF
Peterborough,http://opendatacommunities.org/id/unitary-authority/peterborough,Peterborough City Council,Children's & Education Services - Children's Social Care,Other Children's & Families Services,Employees,07/01/2015 00:00,703938,2144.52,REVENUE,Sanctuary Personnel Ltd,EXTERNAL TEMPORARY STAFF
Peterborough,http://opendatacommunities.org/id/unitary-authority/peterborough,Peterborough City Council,Children's & Education Services - Children's Social Care,Other Children's & Families Services,Employees,07/01/2015 00:00,703940,2144.52,REVENUE,Sanctuary Personnel Ltd,EXTERNAL TEMPORARY STAFF
Peterborough,http://opendatacommunities.org/id/unitary-authority/peterborough,Peterborough City Council,Children's & Education Services - Children's Social Care,Other Children's & Families Services,Employees,07/01/2015 00:00,703941,2144.52,REVENUE,Sanctuary Personnel Ltd,EXTERNAL TEMPORARY STAFF
Peterborough,http://opendatacommunities.org/id/unitary-authority/peterborough,Peterborough City Council,Children's & Education Services - Children's Social Care,Other Children's & Families Services,Employees,07/01/2015 00:00,703942,1800,REVENUE,Sanctuary Personnel Ltd,EXTERNAL TEMPORARY STAFF
Peterborough,http://opendatacommunities.org/id/unitary-authority/peterborough,Peterborough City Council,Children's & Education Services - Children's Social Care,Other Children's & Families Services,Employees,07/01/2015 00:00,703951,2234.4,REVENUE,Sanctuary Personnel Ltd,EXTERNAL TEMPORARY STAFF
Peterborough,http://opendatacommunities.org/id/unitary-authority/peterborough,Peterborough City Council,Children's & Education Services - Children's Social Care,Other Children's & Families Services,Employees,07/01/2015 00:00,703953,2619.6,REVENUE,Sanctuary Personnel Ltd,EXTERNAL TEMPORARY STAFF
Peterborough,http://opendatacommunities.org/id/unitary-authority/peterborough,Peterborough City Council,Children's & Education Services - Children's Social Care,Other Children's & Families Services,Employees,07/01/2015 00:00,703954,2259,REVENUE,Sanctuary Personnel Ltd,EXTERNAL TEMPORARY STAFF
Peterborough,http://opendatacommunities.org/id/unitary-authority/peterborough,Peterborough City Council,Children's & Education Services - Children's Social Care,Other Children's & Families Services,Employees,07/01/2015 00:00,703956,2144.52,REVENUE,Sanctuary Personnel Ltd,EXTERNAL TEMPORARY STAFF
Peterborough,http://opendatacommunities.org/id/unitary-authority/peterborough,Peterborough City Council,Children's & Education Services - Children's Social Care,Other Children's & Families Services,Employees,07/01/2015 00:00,703957,2144.52,REVENUE,Sanctuary Personnel Ltd,EXTERNAL TEMPORARY STAFF
Peterborough,http://opendatacommunities.org/id/unitary-authority/peterborough,Peterborough City Council,Children's & Education Services - Children's Social Care,Other Children's & Families Services,Employees,07/01/2015 00:00,703959,2144.52,REVENUE,Sanctuary Personnel Ltd,EXTERNAL TEMPORARY STAFF
Peterborough,http://opendatacommunities.org/id/unitary-authority/peterborough,Peterborough City Council,Adult Social Care,Older People,Third Party Payments,07/01/2015 00:00,704059,5039.2,REVENUE,MEARS GROUP,THIRD PARTY PAYMENTS - CONTRACT
Peterborough,http://opendatacommunities.org/id/unitary-authority/peterborough,Peterborough City Council,Children's & Education Services - Children's Social Care,Children Looked After,Supplies and Services - Transfer Payments,07/01/2015 00:00,704114,2871.05,REVENUE,Transition Care Peterborough Ltd,BOARDING - OUT ALLOWANCES
Peterborough,http://opendatacommunities.org/id/unitary-authority/peterborough,Peterborough City Council,Children's & Education Services - Children's Social Care,Children Looked After,Supplies and Services - Transfer Payments,07/01/2015 00:00,704116,2834.75,REVENUE,Transition Care Peterborough Ltd,BOARDING - OUT ALLOWANCES
Peterborough,http://opendatacommunities.org/id/unitary-authority/peterborough,Peterborough City Council,Capital,Capital,Capital Pending Update to BS,07/01/2015 00:00,704146,27918,CAPITAL,Redacted Personal Data,GRANT PAYMENT
Peterborough,http://opendatacommunities.org/id/unitary-authority/peterborough,Peterborough City Council,More than one Service Area Category,More than one Service Division,Balance Sheet,07/01/2015 00:00,704177,3925,Balance Sheet,Accountant General of the Senior Courts,INSURANCE CLAIMS
Peterborough,http://opendatacommunities.org/id/unitary-authority/peterborough,Peterborough City Council,Deficit/(Surplus) on Trading Undertakings,Trading Account Surpluses & Deficits,Supplies and Services,07/01/2015 00:00,704225,1147.3,REVENUE,Barron Clark Castings Ltd,ITEMS FOR RESALE
Peterborough,http://opendatacommunities.org/id/unitary-authority/peterborough,Peterborough City Council,Deficit/(Surplus) on Trading Undertakings,Trading Account Surpluses & Deficits,Supplies and Services,07/01/2015 00:00,704233,1186.8,REVENUE,Barron Clark Castings Ltd,ITEMS FOR RESALE
Peterborough,http://opendatacommunities.org/id/unitary-authority/peterborough,Peterborough City Council,Children's & Education Services - Children's Social Care,Children Looked After,Supplies and Services - Transfer Payments,07/01/2015 00:00,704772,-2973.15,REVENUE,Foster Care Associates Ltd FCA,BOARDING - OUT ALLOWANCES
Peterborough,http://opendatacommunities.org/id/unitary-authority/peterborough,Peterborough City Council,Adult Social Care,Older People,Supplies and Services,07/01/2015 00:00,704782,883.52,REVENUE,Cozy Care,PHYSICAL DISABILITY HOME CARE
Peterborough,http://opendatacommunities.org/id/unitary-authority/peterborough,Peterborough City Council,Adult Social Care,Adult Physical Disability & Sensory Impairment,Supplies and Services,07/01/2015 00:00,704792,8000,REVENUE,Longueville Court (Barchester),OLDER PEOPLE RESIDENTIAL CARE
Peterborough,http://opendatacommunities.org/id/unitary-authority/peterborough,Peterborough City Council,Adult Social Care,Older People,Supplies and Services,07/01/2015 00:00,704794,2536.82,REVENUE,Cozy Care,PHYSICAL DISABILITY HOME CARE
Peterborough,http://opendatacommunities.org/id/unitary-authority/peterborough,Peterborough City Council,Adult Social Care,Older People,Supplies and Services,07/01/2015 00:00,704798,866.36,REVENUE,Cozy Care,PHYSICAL DISABILITY HOME CARE
Peterborough,http://opendatacommunities.org/id/unitary-authority/peterborough,Peterborough City Council,Adult Social Care,Older People,Supplies and Services,07/01/2015 00:00,704808,694.76,REVENUE,Cozy Care,PHYSICAL DISABILITY HOME CARE
Peterborough,http://opendatacommunities.org/id/unitary-authority/peterborough,Peterborough City Council,Children's & Education Services - Children's Social Care,Children's Services - Commissioning and Social Work,Employees,07/01/2015 00:00,704819,622.93,REVENUE,Reed Specialist Recruitment,EXTERNAL TEMPORARY STAFF
Peterborough,http://opendatacommunities.org/id/unitary-authority/peterborough,Peterborough City Council,Adult Social Care,Older People,Supplies and Services,07/01/2015 00:00,704823,2180.86,REVENUE,MEARS GROUP,OLDER PEOPLE HOME CARE
Peterborough,http://opendatacommunities.org/id/unitary-authority/peterborough,Peterborough City Council,Adult Social Care,Older People,Supplies and Services,07/01/2015 00:00,704824,503.7,REVENUE,MEARS GROUP,PHYSICAL DISABILITY HOME CARE
Peterborough,http://opendatacommunities.org/id/unitary-authority/peterborough,Peterborough City Council,Adult Social Care,Older People,Third Party Payments,07/01/2015 00:00,704853,7174.6,REVENUE,MEARS GROUP,THIRD PARTY PAYMENTS - CONTRACT
Peterborough,http://opendatacommunities.org/id/unitary-authority/peterborough,Peterborough City Council,Children's & Education Services - Education,Early Years,Supplies and Services,07/01/2015 00:00,704864,626,REVENUE,Redacted Personal Data,GRANT PAYMENT
Peterborough,http://opendatacommunities.org/id/unitary-authority/peterborough,Peterborough City Council,More than one Service Area Category,More than one Service Division,Balance Sheet,07/01/2015 00:00,704919,600,Balance Sheet,Dept for Work & Pensions,INSURANCE CLAIMS
Peterborough,http://opendatacommunities.org/id/unitary-authority/peterborough,Peterborough City Council,Adult Social Care,Older People,Employees,07/01/2015 00:00,704992,2835,REVENUE,Caritas Recruitment,EXTERNAL TEMPORARY STAFF
Peterborough,http://opendatacommunities.org/id/unitary-authority/peterborough,Peterborough City Council,Adult Social Care,Older People,Employees,07/01/2015 00:00,704993,1281,REVENUE,Caritas Recruitment,EXTERNAL TEMPORARY STAFF
Peterborough,http://opendatacommunities.org/id/unitary-authority/peterborough,Peterborough City Council,Adult Social Care,Older People,Employees,07/01/2015 00:00,704994,1585.56,REVENUE,Caritas Recruitment,EXTERNAL TEMPORARY STAFF
Peterborough,http://opendatacommunities.org/id/unitary-authority/peterborough,Peterborough City Council,Adult Social Care,Adult Physical Disability & Sensory Impairment,Supplies and Services,07/01/2015 00:00,705017,-1843.7,REVENUE,ABOUT ME CARE AND SUPPORT LTD,SENSORY IMPAIRED HOME CARE
Peterborough,http://opendatacommunities.org/id/unitary-authority/peterborough,Peterborough City Council,More than one Service Area Category,More than one Service Division,Balance Sheet,07/01/2015 00:00,705018,10000,Balance Sheet,Plexus Law,INSURANCE CLAIMS
Peterborough,http://opendatacommunities.org/id/unitary-authority/peterborough,Peterborough City Council,Support Services,Support Services,Supplies and Services,07/01/2015 00:00,705019,23131.69,REVENUE,Edenred,CHILDCARE
Peterborough,http://opendatacommunities.org/id/unitary-authority/peterborough,Peterborough City Council,Deficit/(Surplus) on Trading Undertakings,Trading Account Surpluses & Deficits,Premises,07/01/2015 00:00,705057,1891.26,REVENUE,British Gas Business,ELECTRICITY
Peterborough,http://opendatacommunities.org/id/unitary-authority/peterborough,Peterborough City Council,Highways and Transport Services,Public Transport,Supplies and Services,07/01/2015 00:00,705061,15384.62,REVENUE,Stagecoach in Peterborough,CONTRACTORS
Peterborough,http://opendatacommunities.org/id/unitary-authority/peterborough,Peterborough City Council,Highways and Transport Services,Public Transport,Supplies and Services,07/01/2015 00:00,705063,178385.59,REVENUE,Stagecoach in Peterborough,CONTRACTORS
Peterborough,http://opendatacommunities.org/id/unitary-authority/peterborough,Peterborough City Council,Support Services,Support Services,Supplies and Services,07/01/2015 00:00,705094,717.6,REVENUE,Speedy Couriers,DISASTER RECOVERY
Peterborough,http://opendatacommunities.org/id/unitary-authority/peterborough,Peterborough City Council,Adult Social Care,Adult Mental Health,Supplies and Services,07/01/2015 00:00,705105,3244,REVENUE,2Care,PROFESSIONAL SERVICES
Peterborough,http://opendatacommunities.org/id/unitary-authority/peterborough,Peterborough City Council,Adult Social Care,Adult Mental Health,Supplies and Services,07/01/2015 00:00,705106,2551.32,REVENUE,2Care,PROFESSIONAL SERVICES
Peterborough,http://opendatacommunities.org/id/unitary-authority/peterborough,Peterborough City Council,Adult Social Care,Adult Learning Disabilities,Employees,07/01/2015 00:00,705139,1188,REVENUE,Randstad Care Ltd,EXTERNAL TEMPORARY STAFF
Peterborough,http://opendatacommunities.org/id/unitary-authority/peterborough,Peterborough City Council,Adult Social Care,Adult Learning Disabilities,Supplies and Services,07/01/2015 00:00,705145,830,REVENUE,Mencap,LEARNING DISABILITY HOME CARE
Peterborough,http://opendatacommunities.org/id/unitary-authority/peterborough,Peterborough City Council,Adult Social Care,Older People,Supplies and Services,07/01/2015 00:00,705187,1321.58,REVENUE,PHILIA LODGE REST HOME,OLDER PEOPLE RESIDENTIAL CARE
Peterborough,http://opendatacommunities.org/id/unitary-authority/peterborough,Peterborough City Council,Adult Social Care,Older People,Supplies and Services,07/01/2015 00:00,705206,1991,REVENUE,PHILIA LODGE REST HOME,OLDER PEOPLE RESIDENTIAL CARE
Peterborough,http://opendatacommunities.org/id/unitary-authority/peterborough,Peterborough City Council,Adult Social Care,Older People,Supplies and Services,07/01/2015 00:00,705207,2230,REVENUE,PHILIA LODGE REST HOME,OLDER PEOPLE RESIDENTIAL CARE
Peterborough,http://opendatacommunities.org/id/unitary-authority/peterborough,Peterborough City Council,Capital,Capital,Capital Pending Update to BS,07/01/2015 00:00,705305,29591.91,CAPITAL,Garfield Builders Ltd,BUILDING AND SITE WORKS
Peterborough,http://opendatacommunities.org/id/unitary-authority/peterborough,Peterborough City Council,Capital,Capital,Capital Pending Update to BS,07/01/2015 00:00,705306,36674.46,CAPITAL,Garfield Builders Ltd,BUILDING AND SITE WORKS
Peterborough,http://opendatacommunities.org/id/unitary-authority/peterborough,Peterborough City Council,Adult Social Care,Older People,Supplies and Services,07/01/2015 00:00,705336,-611.27,REVENUE,Hales Group Ltd,PHYSICAL DISABILITY HOME CARE
Peterborough,http://opendatacommunities.org/id/unitary-authority/peterborough,Peterborough City Council,Adult Social Care,Adult Learning Disabilities,Supplies and Services,07/01/2015 00:00,705365,985.32,REVENUE,Augusta Care Ltd,LEARNING DISABILITY HOME CARE
Peterborough,http://opendatacommunities.org/id/unitary-authority/peterborough,Peterborough City Council,Adult Social Care,Older People,Supplies and Services,07/01/2015 00:00,705366,4840.63,REVENUE,Augusta Care Ltd,LEARNING DISABILITY HOME CARE
Peterborough,http://opendatacommunities.org/id/unitary-authority/peterborough,Peterborough City Council,Adult Social Care,Older People,Supplies and Services,07/01/2015 00:00,705502,918.54,REVENUE,Carers Trust Cambridgeshire,OLDER PEOPLE HOME CARE
Peterborough,http://opendatacommunities.org/id/unitary-authority/peterborough,Peterborough City Council,Adult Social Care,Older People,Supplies and Services,07/01/2015 00:00,705503,665.28,REVENUE,Carers Trust Cambridgeshire,OLDER PEOPLE HOME CARE
Peterborough,http://opendatacommunities.org/id/unitary-authority/peterborough,Peterborough City Council,Adult Social Care,Older People,Supplies and Services,07/01/2015 00:00,705511,751.18,REVENUE,MEARS GROUP,SENSORY IMPAIRED HOME CARE
Peterborough,http://opendatacommunities.org/id/unitary-authority/peterborough,Peterborough City Council,Adult Social Care,Older People,Supplies and Services,07/01/2015 00:00,705515,1139.42,REVENUE,MEARS GROUP,OLDER PEOPLE HOME CARE
Peterborough,http://opendatacommunities.org/id/unitary-authority/peterborough,Peterborough City Council,Adult Social Care,Older People,Supplies and Services,07/01/2015 00:00,705518,693.91,REVENUE,MEARS GROUP,OLDER PEOPLE HOME CARE
Peterborough,http://opendatacommunities.org/id/unitary-authority/peterborough,Peterborough City Council,Adult Social Care,Older People,Supplies and Services,07/01/2015 00:00,705519,617.09,REVENUE,MEARS GROUP,MH OLDER PEOPLE HOME CARE
Peterborough,http://opendatacommunities.org/id/unitary-authority/peterborough,Peterborough City Council,Adult Social Care,Older People,Supplies and Services,07/01/2015 00:00,705520,801.78,REVENUE,MEARS GROUP,OLDER PEOPLE HOME CARE
Peterborough,http://opendatacommunities.org/id/unitary-authority/peterborough,Peterborough City Council,Adult Social Care,Older People,Supplies and Services,07/01/2015 00:00,705521,853.76,REVENUE,MEARS GROUP,OLDER PEOPLE HOME CARE
Peterborough,http://opendatacommunities.org/id/unitary-authority/peterborough,Peterborough City Council,Adult Social Care,Older People,Supplies and Services,07/01/2015 00:00,705522,522.1,REVENUE,MEARS GROUP,OLDER PEOPLE HOME CARE
Peterborough,http://opendatacommunities.org/id/unitary-authority/peterborough,Peterborough City Council,Adult Social Care,Older People,Supplies and Services,07/01/2015 00:00,705523,551.54,REVENUE,MEARS GROUP,OLDER PEOPLE HOME CARE
Peterborough,http://opendatacommunities.org/id/unitary-authority/peterborough,Peterborough City Council,Adult Social Care,Older People,Supplies and Services,07/01/2015 00:00,705527,792.81,REVENUE,MEARS GROUP,OLDER PEOPLE HOME CARE
Peterborough,http://opendatacommunities.org/id/unitary-authority/peterborough,Peterborough City Council,Adult Social Care,Older People,Supplies and Services,07/01/2015 00:00,705531,519.11,REVENUE,MEARS GROUP,MH OLDER PEOPLE HOME CARE
Peterborough,http://opendatacommunities.org/id/unitary-authority/peterborough,Peterborough City Council,Adult Social Care,Older People,Supplies and Services,07/01/2015 00:00,705537,617.78,REVENUE,MEARS GROUP,OLDER PEOPLE HOME CARE
Peterborough,http://opendatacommunities.org/id/unitary-authority/peterborough,Peterborough City Council,Adult Social Care,Older People,Supplies and Services,07/01/2015 00:00,705538,580.06,REVENUE,MEARS GROUP,OLDER PEOPLE HOME CARE
Peterborough,http://opendatacommunities.org/id/unitary-authority/peterborough,Peterborough City Council,Adult Social Care,Older People,Supplies and Services,07/01/2015 00:00,705542,518.65,REVENUE,MEARS GROUP,OLDER PEOPLE HOME CARE
Peterborough,http://opendatacommunities.org/id/unitary-authority/peterborough,Peterborough City Council,Adult Social Care,Older People,Supplies and Services,07/01/2015 00:00,705545,613.64,REVENUE,MEARS GROUP,OLDER PEOPLE HOME CARE
Peterborough,http://opendatacommunities.org/id/unitary-authority/peterborough,Peterborough City Council,Adult Social Care,Older People,Supplies and Services,07/01/2015 00:00,705554,581.44,REVENUE,MEARS GROUP,OLDER PEOPLE HOME CARE
Peterborough,http://opendatacommunities.org/id/unitary-authority/peterborough,Peterborough City Council,Adult Social Care,Older People,Supplies and Services,07/01/2015 00:00,705559,652.05,REVENUE,MEARS GROUP,OLDER PEOPLE HOME CARE
Peterborough,http://opendatacommunities.org/id/unitary-authority/peterborough,Peterborough City Council,Adult Social Care,Older People,Supplies and Services,07/01/2015 00:00,705562,1622.65,REVENUE,MEARS GROUP,OLDER PEOPLE HOME CARE
Peterborough,http://opendatacommunities.org/id/unitary-authority/peterborough,Peterborough City Council,Adult Social Care,Older People,Supplies and Services,07/01/2015 00:00,705569,1425.31,REVENUE,MEARS GROUP,PHYSICAL DISABILITY HOME CARE
Peterborough,http://opendatacommunities.org/id/unitary-authority/peterborough,Peterborough City Council,Adult Social Care,Older People,Supplies and Services,07/01/2015 00:00,705571,520.95,REVENUE,MEARS GROUP,OLDER PEOPLE HOME CARE
Peterborough,http://opendatacommunities.org/id/unitary-authority/peterborough,Peterborough City Council,Adult Social Care,Older People,Supplies and Services,07/01/2015 00:00,705573,924.37,REVENUE,MEARS GROUP,PHYSICAL DISABILITY HOME CARE
Peterborough,http://opendatacommunities.org/id/unitary-authority/peterborough,Peterborough City Council,Adult Social Care,Older People,Supplies and Services,07/01/2015 00:00,705574,523.71,REVENUE,MEARS GROUP,OLDER PEOPLE HOME CARE
Peterborough,http://opendatacommunities.org/id/unitary-authority/peterborough,Peterborough City Council,Adult Social Care,Older People,Supplies and Services,07/01/2015 00:00,705582,917.93,REVENUE,MEARS GROUP,OLDER PEOPLE HOME CARE
Peterborough,http://opendatacommunities.org/id/unitary-authority/peterborough,Peterborough City Council,Adult Social Care,Older People,Supplies and Services,07/01/2015 00:00,705590,1318.64,REVENUE,MEARS GROUP,OLDER PEOPLE HOME CARE
Peterborough,http://opendatacommunities.org/id/unitary-authority/peterborough,Peterborough City Council,Adult Social Care,Older People,Supplies and Services,07/01/2015 00:00,705591,587.79,REVENUE,MEARS GROUP,OLDER PEOPLE HOME CARE
Peterborough,http://opendatacommunities.org/id/unitary-authority/peterborough,Peterborough City Council,Adult Social Care,Older People,Supplies and Services,07/01/2015 00:00,705592,1558.11,REVENUE,MEARS GROUP,PHYSICAL DISABILITY HOME CARE
Peterborough,http://opendatacommunities.org/id/unitary-authority/peterborough,Peterborough City Council,Adult Social Care,Older People,Supplies and Services,07/01/2015 00:00,705593,609.56,REVENUE,MEARS GROUP,OLDER PEOPLE HOME CARE
Peterborough,http://opendatacommunities.org/id/unitary-authority/peterborough,Peterborough City Council,Adult Social Care,Older People,Supplies and Services,07/01/2015 00:00,705594,715.3,REVENUE,MEARS GROUP,OLDER PEOPLE HOME CARE
Peterborough,http://opendatacommunities.org/id/unitary-authority/peterborough,Peterborough City Council,Adult Social Care,Older People,Supplies and Services,07/01/2015 00:00,705596,511.52,REVENUE,MEARS GROUP,PHYSICAL DISABILITY HOME CARE
Peterborough,http://opendatacommunities.org/id/unitary-authority/peterborough,Peterborough City Council,Adult Social Care,Older People,Supplies and Services,07/01/2015 00:00,705598,609.56,REVENUE,MEARS GROUP,OLDER PEOPLE HOME CARE
Peterborough,http://opendatacommunities.org/id/unitary-authority/peterborough,Peterborough City Council,Adult Social Care,Older People,Supplies and Services,07/01/2015 00:00,705603,609.56,REVENUE,MEARS GROUP,OLDER PEOPLE HOME CARE
Peterborough,http://opendatacommunities.org/id/unitary-authority/peterborough,Peterborough City Council,Adult Social Care,Older People,Supplies and Services,07/01/2015 00:00,705604,609.56,REVENUE,MEARS GROUP,OLDER PEOPLE HOME CARE
Peterborough,http://opendatacommunities.org/id/unitary-authority/peterborough,Peterborough City Council,Adult Social Care,Older People,Supplies and Services,07/01/2015 00:00,705605,2089.92,REVENUE,MEARS GROUP,OLDER PEOPLE HOME CARE
Peterborough,http://opendatacommunities.org/id/unitary-authority/peterborough,Peterborough City Council,Adult Social Care,Older People,Supplies and Services,07/01/2015 00:00,705607,696.64,REVENUE,MEARS GROUP,OLDER PEOPLE HOME CARE
Peterborough,http://opendatacommunities.org/id/unitary-authority/peterborough,Peterborough City Council,Adult Social Care,Older People,Supplies and Services,07/01/2015 00:00,705609,886.35,REVENUE,MEARS GROUP,MH OLDER PEOPLE HOME CARE
Peterborough,http://opendatacommunities.org/id/unitary-authority/peterborough,Peterborough City Council,Adult Social Care,Older People,Supplies and Services,07/01/2015 00:00,705610,2708.81,REVENUE,MEARS GROUP,MH OLDER PEOPLE HOME CARE
Peterborough,http://opendatacommunities.org/id/unitary-authority/peterborough,Peterborough City Council,Adult Social Care,Older People,Supplies and Services,07/01/2015 00:00,705612,1757.15,REVENUE,MEARS GROUP,OLDER PEOPLE HOME CARE
Peterborough,http://opendatacommunities.org/id/unitary-authority/peterborough,Peterborough City Council,Adult Social Care,Older People,Supplies and Services,07/01/2015 00:00,705619,522.48,REVENUE,MEARS GROUP,OLDER PEOPLE HOME CARE
Peterborough,http://opendatacommunities.org/id/unitary-authority/peterborough,Peterborough City Council,Adult Social Care,Older People,Supplies and Services,07/01/2015 00:00,705621,905.28,REVENUE,MEARS GROUP,PHYSICAL DISABILITY HOME CARE
Peterborough,http://opendatacommunities.org/id/unitary-authority/peterborough,Peterborough City Council,Adult Social Care,Older People,Supplies and Services,07/01/2015 00:00,705622,680.8,REVENUE,MEARS GROUP,PHYSICAL DISABILITY HOME CARE
Peterborough,http://opendatacommunities.org/id/unitary-authority/peterborough,Peterborough City Council,Adult Social Care,Older People,Supplies and Services,07/01/2015 00:00,705623,1575.96,REVENUE,MEARS GROUP,OLDER PEOPLE HOME CARE
Peterborough,http://opendatacommunities.org/id/unitary-authority/peterborough,Peterborough City Council,Adult Social Care,Older People,Supplies and Services,07/01/2015 00:00,705625,534.75,REVENUE,MEARS GROUP,MH OLDER PEOPLE HOME CARE
Peterborough,http://opendatacommunities.org/id/unitary-authority/peterborough,Peterborough City Council,Adult Social Care,Older People,Supplies and Services,07/01/2015 00:00,705628,510.04,REVENUE,MEARS GROUP,OLDER PEOPLE HOME CARE
Peterborough,http://opendatacommunities.org/id/unitary-authority/peterborough,Peterborough City Council,Adult Social Care,Older People,Supplies and Services,07/01/2015 00:00,705633,658.72,REVENUE,MEARS GROUP,OLDER PEOPLE HOME CARE
Peterborough,http://opendatacommunities.org/id/unitary-authority/peterborough,Peterborough City Council,Adult Social Care,Older People,Supplies and Services,07/01/2015 00:00,705638,901.6,REVENUE,MEARS GROUP,PHYSICAL DISABILITY HOME CARE
Peterborough,http://opendatacommunities.org/id/unitary-authority/peterborough,Peterborough City Council,Adult Social Care,Older People,Supplies and Services,07/01/2015 00:00,705640,685.63,REVENUE,MEARS GROUP,OLDER PEOPLE HOME CARE
Peterborough,http://opendatacommunities.org/id/unitary-authority/peterborough,Peterborough City Council,Adult Social Care,Older People,Supplies and Services,07/01/2015 00:00,705643,1074.79,REVENUE,MEARS GROUP,OLDER PEOPLE HOME CARE
Peterborough,http://opendatacommunities.org/id/unitary-authority/peterborough,Peterborough City Council,Adult Social Care,Older People,Supplies and Services,07/01/2015 00:00,705645,543.26,REVENUE,MEARS GROUP,PHYSICAL DISABILITY HOME CARE
Peterborough,http://opendatacommunities.org/id/unitary-authority/peterborough,Peterborough City Council,Adult Social Care,Older People,Supplies and Services,07/01/2015 00:00,705650,755.55,REVENUE,MEARS GROUP,OLDER PEOPLE HOME CARE
Peterborough,http://opendatacommunities.org/id/unitary-authority/peterborough,Peterborough City Council,Adult Social Care,Older People,Supplies and Services,07/01/2015 00:00,705652,600.3,REVENUE,MEARS GROUP,OLDER PEOPLE HOME CARE
Peterborough,http://opendatacommunities.org/id/unitary-authority/peterborough,Peterborough City Council,Adult Social Care,Older People,Supplies and Services,07/01/2015 00:00,705656,683.56,REVENUE,MEARS GROUP,OLDER PEOPLE HOME CARE
Peterborough,http://opendatacommunities.org/id/unitary-authority/peterborough,Peterborough City Council,Adult Social Care,Adult Learning Disabilities,Supplies and Services,07/01/2015 00:00,705674,3576.32,REVENUE,GLASALLT FAWR,LEARNING DISABILITY RESIDENTIAL CARE
Peterborough,http://opendatacommunities.org/id/unitary-authority/peterborough,Peterborough City Council,Adult Social Care,Adult Learning Disabilities,Supplies and Services,07/01/2015 00:00,705675,3576.32,REVENUE,GLASALLT FAWR,LEARNING DISABILITY RESIDENTIAL CARE
Peterborough,http://opendatacommunities.org/id/unitary-authority/peterborough,Peterborough City Council,Adult Social Care,Adult Learning Disabilities,Supplies and Services,07/01/2015 00:00,705677,3576.32,REVENUE,GLASALLT FAWR,LEARNING DISABILITY RESIDENTIAL CARE
Peterborough,http://opendatacommunities.org/id/unitary-authority/peterborough,Peterborough City Council,Adult Social Care,Adult Learning Disabilities,Supplies and Services,07/01/2015 00:00,705678,3576.32,REVENUE,GLASALLT FAWR,LEARNING DISABILITY RESIDENTIAL CARE
Peterborough,http://opendatacommunities.org/id/unitary-authority/peterborough,Peterborough City Council,Adult Social Care,Adult Learning Disabilities,Supplies and Services,07/01/2015 00:00,705679,3576.32,REVENUE,GLASALLT FAWR,LEARNING DISABILITY RESIDENTIAL CARE
Peterborough,http://opendatacommunities.org/id/unitary-authority/peterborough,Peterborough City Council,Adult Social Care,Adult Learning Disabilities,Supplies and Services,07/01/2015 00:00,705711,6238.68,REVENUE,Autism Care (UK) Ltd,LEARNING DISABILITY RESIDENTIAL CARE
Peterborough,http://opendatacommunities.org/id/unitary-authority/peterborough,Peterborough City Council,Adult Social Care,Older People,Supplies and Services,07/01/2015 00:00,705715,830,REVENUE,PHILIA LODGE REST HOME,OLDER PEOPLE RESIDENTIAL CARE
Peterborough,http://opendatacommunities.org/id/unitary-authority/peterborough,Peterborough City Council,Children's & Education Services - Education,Secondary,Employees,07/01/2015 00:00,705720,686.25,REVENUE,Families First Ltd,EDUCATION SUPPORT STAFF
Peterborough,http://opendatacommunities.org/id/unitary-authority/peterborough,Peterborough City Council,Public Health,Smoking and tobacco,Third Party Payments,07/01/2015 00:00,705721,570.7,REVENUE,Kenzi Holistic Therapies,THIRD PARTY PAYMENTS - CONTRACT
Peterborough,http://opendatacommunities.org/id/unitary-authority/peterborough,Peterborough City Council,Planning Services,Community Development,Third Party Payments,07/01/2015 00:00,705738,11500,REVENUE,Peterborough Womens Aid,GRANT-THIRD PARTY
Peterborough,http://opendatacommunities.org/id/unitary-authority/peterborough,Peterborough City Council,Support Services,Support Services,More than one Expenses Type,07/01/2015 00:00,705766,12597.99,REVENUE,Peterborough City Council,Numerous
Peterborough,http://opendatacommunities.org/id/unitary-authority/peterborough,Peterborough City Council,Adult Social Care,Adult Learning Disabilities,Supplies and Services,07/01/2015 00:00,705770,5682.8,REVENUE,WYCAR LEYS,LEARNING DISABILITY RESIDENTIAL CARE
Peterborough,http://opendatacommunities.org/id/unitary-authority/peterborough,Peterborough City Council,Adult Social Care,Adult Mental Health,Supplies and Services,07/01/2015 00:00,705771,579.6,REVENUE,Axiom Housing Association,PROFESSIONAL SERVICES
Peterborough,http://opendatacommunities.org/id/unitary-authority/peterborough,Peterborough City Council,Adult Social Care,Older People,Supplies and Services,07/01/2015 00:00,705773,955.41,REVENUE,STAR RESIDENTIAL HOME LTD,OLDER PEOPLE RESIDENTIAL CARE
Peterborough,http://opendatacommunities.org/id/unitary-authority/peterborough,Peterborough City Council,Adult Social Care,Older People,Supplies and Services,07/01/2015 00:00,705774,2504.32,REVENUE,STAR RESIDENTIAL HOME LTD,OLDER PEOPLE RESIDENTIAL CARE
Peterborough,http://opendatacommunities.org/id/unitary-authority/peterborough,Peterborough City Council,Adult Social Care,Older People,Supplies and Services,07/01/2015 00:00,705775,1240.38,REVENUE,STAR RESIDENTIAL HOME LTD,OLDER PEOPLE RESIDENTIAL CARE
Peterborough,http://opendatacommunities.org/id/unitary-authority/peterborough,Peterborough City Council,Adult Social Care,Older People,Supplies and Services,07/01/2015 00:00,705776,2232.72,REVENUE,STAR RESIDENTIAL HOME LTD,OLDER PEOPLE RESIDENTIAL CARE
Peterborough,http://opendatacommunities.org/id/unitary-authority/peterborough,Peterborough City Council,Adult Social Care,Older People,Supplies and Services,07/01/2015 00:00,705777,1262.25,REVENUE,STAR RESIDENTIAL HOME LTD,OLDER PEOPLE RESIDENTIAL CARE
Peterborough,http://opendatacommunities.org/id/unitary-authority/peterborough,Peterborough City Council,Adult Social Care,Older People,Supplies and Services,07/01/2015 00:00,705781,2547.72,REVENUE,STAR RESIDENTIAL HOME LTD,OLDER PEOPLE RESIDENTIAL CARE
Peterborough,http://opendatacommunities.org/id/unitary-authority/peterborough,Peterborough City Council,Adult Social Care,Older People,Supplies and Services,07/01/2015 00:00,705784,3043.56,REVENUE,STAR RESIDENTIAL HOME LTD,OLDER PEOPLE RESIDENTIAL CARE
Peterborough,http://opendatacommunities.org/id/unitary-authority/peterborough,Peterborough City Council,Adult Social Care,Older People,Supplies and Services,07/01/2015 00:00,705785,1290.25,REVENUE,STAR RESIDENTIAL HOME LTD,OLDER PEOPLE RESIDENTIAL CARE
Peterborough,http://opendatacommunities.org/id/unitary-authority/peterborough,Peterborough City Council,Adult Social Care,Older People,Supplies and Services,07/01/2015 00:00,705790,33290.72,REVENUE,Longueville Court (Barchester),OLDER PEOPLE RESIDENTIAL CARE
Peterborough,http://opendatacommunities.org/id/unitary-authority/peterborough,Peterborough City Council,Adult Social Care,Older People,Supplies and Services,07/01/2015 00:00,705792,1321.58,REVENUE,STAR RESIDENTIAL HOME LTD,OLDER PEOPLE RESIDENTIAL CARE
Peterborough,http://opendatacommunities.org/id/unitary-authority/peterborough,Peterborough City Council,Adult Social Care,Older People,Supplies and Services,07/01/2015 00:00,705794,2436,REVENUE,Castle View School,PHYSICAL DISABILITY RESIDENTIAL CARE
Peterborough,http://opendatacommunities.org/id/unitary-authority/peterborough,Peterborough City Council,Planning Services,Economic Development,Third Party Payments,07/01/2015 00:00,705841,102000,REVENUE,Peterborough Citizens Advice Bureau,GRANT-THIRD PARTY
Peterborough,http://opendatacommunities.org/id/unitary-authority/peterborough,Peterborough City Council,Children's & Education Services - Education,All Schools - apportion across sectors,Supplies and Services,07/01/2015 00:00,705850,750,REVENUE,Abbey College,GRANT PAYMENT
Peterborough,http://opendatacommunities.org/id/unitary-authority/peterborough,Peterborough City Council,Children's & Education Services - Education,All Schools - apportion across sectors,Supplies and Services,07/01/2015 00:00,705852,1500,REVENUE,Alderman Jacobs School,GRANT PAYMENT
Peterborough,http://opendatacommunities.org/id/unitary-authority/peterborough,Peterborough City Council,Children's & Education Services - Education,All Schools - apportion across sectors,Supplies and Services,07/01/2015 00:00,705853,2250,REVENUE,Ashton C of E Middle School,GRANT PAYMENT
Peterborough,http://opendatacommunities.org/id/unitary-authority/peterborough,Peterborough City Council,Children's & Education Services - Education,All Schools - apportion across sectors,Supplies and Services,07/01/2015 00:00,705854,750,REVENUE,Banovallum School,GRANT PAYMENT
Peterborough,http://opendatacommunities.org/id/unitary-authority/peterborough,Peterborough City Council,Children's & Education Services - Education,All Schools - apportion across sectors,Supplies and Services,07/01/2015 00:00,705857,750,REVENUE,Bourne Grammar School,GRANT PAYMENT
Peterborough,http://opendatacommunities.org/id/unitary-authority/peterborough,Peterborough City Council,Children's & Education Services - Education,All Schools - apportion across sectors,Supplies and Services,07/01/2015 00:00,705858,2250,REVENUE,Bourne RM Academy,GRANT PAYMENT
Peterborough,http://opendatacommunities.org/id/unitary-authority/peterborough,Peterborough City Council,Children's & Education Services - Education,All Schools - apportion across sectors,Supplies and Services,07/01/2015 00:00,705860,750,REVENUE,Broom Leys Primary School,GRANT PAYMENT
Peterborough,http://opendatacommunities.org/id/unitary-authority/peterborough,Peterborough City Council,Children's & Education Services - Education,All Schools - apportion across sectors,Supplies and Services,07/01/2015 00:00,705862,1500,REVENUE,Longsands Academy,GRANT PAYMENT
Peterborough,http://opendatacommunities.org/id/unitary-authority/peterborough,Peterborough City Council,Children's & Education Services - Education,All Schools - apportion across sectors,Supplies and Services,07/01/2015 00:00,705864,750,REVENUE,Welshpool High School,GRANT PAYMENT
Peterborough,http://opendatacommunities.org/id/unitary-authority/peterborough,Peterborough City Council,Children's & Education Services - Education,All Schools - apportion across sectors,Supplies and Services,07/01/2015 00:00,705865,750,REVENUE,Manshead School,GRANT PAYMENT
Peterborough,http://opendatacommunities.org/id/unitary-authority/peterborough,Peterborough City Council,Children's & Education Services - Education,All Schools - apportion across sectors,Supplies and Services,07/01/2015 00:00,705866,1500,REVENUE,Thomas Clarkson Academy,GRANT PAYMENT
Peterborough,http://opendatacommunities.org/id/unitary-authority/peterborough,Peterborough City Council,Children's & Education Services - Education,All Schools - apportion across sectors,Supplies and Services,07/01/2015 00:00,705867,750,REVENUE,Deeping St Nicholas Primary School,GRANT PAYMENT
Peterborough,http://opendatacommunities.org/id/unitary-authority/peterborough,Peterborough City Council,Children's & Education Services - Education,All Schools - apportion across sectors,Supplies and Services,07/01/2015 00:00,705868,2250,REVENUE,Market Deeping Community Primary School,GRANT PAYMENT
Peterborough,http://opendatacommunities.org/id/unitary-authority/peterborough,Peterborough City Council,Children's & Education Services - Education,All Schools - apportion across sectors,Supplies and Services,07/01/2015 00:00,705869,750,REVENUE,The Wellington Academy,GRANT PAYMENT
Peterborough,http://opendatacommunities.org/id/unitary-authority/peterborough,Peterborough City Council,Children's & Education Services - Education,All Schools - apportion across sectors,Supplies and Services,07/01/2015 00:00,705870,750,REVENUE,Cromwell Community College,GRANT PAYMENT
Peterborough,http://opendatacommunities.org/id/unitary-authority/peterborough,Peterborough City Council,Children's & Education Services - Education,All Schools - apportion across sectors,Supplies and Services,07/01/2015 00:00,705871,750,REVENUE,Marshland High School,GRANT PAYMENT
Peterborough,http://opendatacommunities.org/id/unitary-authority/peterborough,Peterborough City Council,Children's & Education Services - Education,All Schools - apportion across sectors,Supplies and Services,07/01/2015 00:00,705872,1500,REVENUE,Thorndown Primary School,GRANT PAYMENT
Peterborough,http://opendatacommunities.org/id/unitary-authority/peterborough,Peterborough City Council,Children's & Education Services - Education,All Schools - apportion across sectors,Supplies and Services,07/01/2015 00:00,705873,750,REVENUE,Earith Primary School,GRANT PAYMENT
Peterborough,http://opendatacommunities.org/id/unitary-authority/peterborough,Peterborough City Council,Children's & Education Services - Education,All Schools - apportion across sectors,Supplies and Services,07/01/2015 00:00,705874,750,REVENUE,Townley Primary School,GRANT PAYMENT
Peterborough,http://opendatacommunities.org/id/unitary-authority/peterborough,Peterborough City Council,Children's & Education Services - Education,All Schools - apportion across sectors,Supplies and Services,07/01/2015 00:00,705875,1500,REVENUE,Neale Wade Academy,GRANT PAYMENT
Peterborough,http://opendatacommunities.org/id/unitary-authority/peterborough,Peterborough City Council,Children's & Education Services - Education,All Schools - apportion across sectors,Supplies and Services,07/01/2015 00:00,705876,750,REVENUE,Farcet C.E. (C) Primary School,GRANT PAYMENT
Peterborough,http://opendatacommunities.org/id/unitary-authority/peterborough,Peterborough City Council,Children's & Education Services - Education,All Schools - apportion across sectors,Supplies and Services,07/01/2015 00:00,705877,1500,REVENUE,The Deepings School,GRANT PAYMENT
Peterborough,http://opendatacommunities.org/id/unitary-authority/peterborough,Peterborough City Council,Children's & Education Services - Education,All Schools - apportion across sectors,Supplies and Services,07/01/2015 00:00,705879,1500,REVENUE,Fourfields Community Primary School,GRANT PAYMENT
Peterborough,http://opendatacommunities.org/id/unitary-authority/peterborough,Peterborough City Council,Children's & Education Services - Education,All Schools - apportion across sectors,Supplies and Services,07/01/2015 00:00,705880,750,REVENUE,Lodge Park Academy,GRANT PAYMENT
Peterborough,http://opendatacommunities.org/id/unitary-authority/peterborough,Peterborough City Council,Children's & Education Services - Education,All Schools - apportion across sectors,Supplies and Services,07/01/2015 00:00,705881,750,REVENUE,Helpringham Primary School,GRANT PAYMENT
Peterborough,http://opendatacommunities.org/id/unitary-authority/peterborough,Peterborough City Council,Children's & Education Services - Education,All Schools - apportion across sectors,Supplies and Services,07/01/2015 00:00,705882,750,REVENUE,Ramsey Spinning Infant School,GRANT PAYMENT
Peterborough,http://opendatacommunities.org/id/unitary-authority/peterborough,Peterborough City Council,Children's & Education Services - Education,All Schools - apportion across sectors,Supplies and Services,07/01/2015 00:00,705883,1500,REVENUE,Glebelands Primary School,GRANT PAYMENT
Peterborough,http://opendatacommunities.org/id/unitary-authority/peterborough,Peterborough City Council,Children's & Education Services - Education,All Schools - apportion across sectors,Supplies and Services,07/01/2015 00:00,705884,750,REVENUE,University Academy Holbeach,GRANT PAYMENT
Peterborough,http://opendatacommunities.org/id/unitary-authority/peterborough,Peterborough City Council,Children's & Education Services - Education,All Schools - apportion across sectors,Supplies and Services,07/01/2015 00:00,705886,750,REVENUE,Lincoln Castle Academy,GRANT PAYMENT
Peterborough,http://opendatacommunities.org/id/unitary-authority/peterborough,Peterborough City Council,Children's & Education Services - Education,All Schools - apportion across sectors,Supplies and Services,07/01/2015 00:00,705887,750,REVENUE,Upwell Community Primary School,GRANT PAYMENT
Peterborough,http://opendatacommunities.org/id/unitary-authority/peterborough,Peterborough City Council,Children's & Education Services - Education,All Schools - apportion across sectors,Supplies and Services,07/01/2015 00:00,705888,750,REVENUE,Ramsey Community Junior School,GRANT PAYMENT
Peterborough,http://opendatacommunities.org/id/unitary-authority/peterborough,Peterborough City Council,Children's & Education Services - Education,All Schools - apportion across sectors,Supplies and Services,07/01/2015 00:00,705889,750,REVENUE,Sawtry Junior School,GRANT PAYMENT
Peterborough,http://opendatacommunities.org/id/unitary-authority/peterborough,Peterborough City Council,Children's & Education Services - Education,All Schools - apportion across sectors,Supplies and Services,07/01/2015 00:00,705890,750,REVENUE,Stowmarket Middle School,GRANT PAYMENT
Peterborough,http://opendatacommunities.org/id/unitary-authority/peterborough,Peterborough City Council,Children's & Education Services - Education,All Schools - apportion across sectors,Supplies and Services,07/01/2015 00:00,705891,2250,REVENUE,Sir Harry Smith Community College,GRANT PAYMENT
Peterborough,http://opendatacommunities.org/id/unitary-authority/peterborough,Peterborough City Council,Children's & Education Services - Education,All Schools - apportion across sectors,Supplies and Services,07/01/2015 00:00,705892,750,REVENUE,St Georges Church of England Primary School,GRANT PAYMENT
Peterborough,http://opendatacommunities.org/id/unitary-authority/peterborough,Peterborough City Council,Children's & Education Services - Education,All Schools - apportion across sectors,Supplies and Services,07/01/2015 00:00,705893,750,REVENUE,Sirius Academy,GRANT PAYMENT
Peterborough,http://opendatacommunities.org/id/unitary-authority/peterborough,Peterborough City Council,Children's & Education Services - Education,All Schools - apportion across sectors,Supplies and Services,07/01/2015 00:00,705894,750,REVENUE,Sturton by Stow Primary School,GRANT PAYMENT
Peterborough,http://opendatacommunities.org/id/unitary-authority/peterborough,Peterborough City Council,Children's & Education Services - Education,All Schools - apportion across sectors,Supplies and Services,07/01/2015 00:00,705895,750,REVENUE,Swavesey Village College,GRANT PAYMENT
Peterborough,http://opendatacommunities.org/id/unitary-authority/peterborough,Peterborough City Council,Children's & Education Services - Education,All Schools - apportion across sectors,Supplies and Services,07/01/2015 00:00,705896,750,REVENUE,South View Community Primary School,GRANT PAYMENT
Peterborough,http://opendatacommunities.org/id/unitary-authority/peterborough,Peterborough City Council,Children's & Education Services - Education,All Schools - apportion across sectors,Supplies and Services,07/01/2015 00:00,705897,1500,REVENUE,St Ivo School,GRANT PAYMENT
Peterborough,http://opendatacommunities.org/id/unitary-authority/peterborough,Peterborough City Council,Children's & Education Services - Education,All Schools - apportion across sectors,Supplies and Services,07/01/2015 00:00,705898,750,REVENUE,Stockland Green School,GRANT PAYMENT
Peterborough,http://opendatacommunities.org/id/unitary-authority/peterborough,Peterborough City Council,Children's & Education Services - Education,All Schools - apportion across sectors,Supplies and Services,07/01/2015 00:00,705900,750,REVENUE,The Lincoln St Christopher School,GRANT PAYMENT
Peterborough,http://opendatacommunities.org/id/unitary-authority/peterborough,Peterborough City Council,Children's & Education Services - Education,All Schools - apportion across sectors,Supplies and Services,07/01/2015 00:00,705901,750,REVENUE,Whitehill Primary School,GRANT PAYMENT
Peterborough,http://opendatacommunities.org/id/unitary-authority/peterborough,Peterborough City Council,Children's & Education Services - Education,All Schools - apportion across sectors,Supplies and Services,07/01/2015 00:00,705902,750,REVENUE,Westfield Special School,GRANT PAYMENT
Peterborough,http://opendatacommunities.org/id/unitary-authority/peterborough,Peterborough City Council,Children's & Education Services - Education,All Schools - apportion across sectors,Supplies and Services,07/01/2015 00:00,705905,750,REVENUE,Samworth Enterprise Academy,GRANT PAYMENT
Peterborough,http://opendatacommunities.org/id/unitary-authority/peterborough,Peterborough City Council,Children's & Education Services - Children's Social Care,Children Looked After,Supplies and Services - Transfer Payments,07/01/2015 00:00,705929,9399.88,REVENUE,Acorn Homes UK Ltd,BOARDING - OUT ALLOWANCES
Peterborough,http://opendatacommunities.org/id/unitary-authority/peterborough,Peterborough City Council,Children's & Education Services - Education,Other School -related Education Functions,Supplies and Services - Transfer Payments,07/01/2015 00:00,705937,30091,REVENUE,Cedar House School,BOARDING - OUT ALLOWANCES
Peterborough,http://opendatacommunities.org/id/unitary-authority/peterborough,Peterborough City Council,Children's & Education Services - Education,Other School -related Education Functions,Transport,07/01/2015 00:00,705967,1680,REVENUE,Peterborough Cars,HIRED TRANSPORT
Peterborough,http://opendatacommunities.org/id/unitary-authority/peterborough,Peterborough City Council,Children's & Education Services - Education,Other School -related Education Functions,Transport,07/01/2015 00:00,705968,1440,REVENUE,Peterborough Cars,HIRED TRANSPORT
Peterborough,http://opendatacommunities.org/id/unitary-authority/peterborough,Peterborough City Council,Children's & Education Services - Education,Other School -related Education Functions,Transport,07/01/2015 00:00,705969,1559.76,REVENUE,Peterborough Cars,HIRED TRANSPORT
Peterborough,http://opendatacommunities.org/id/unitary-authority/peterborough,Peterborough City Council,Children's & Education Services - Education,Other School -related Education Functions,Transport,07/01/2015 00:00,705973,811.2,REVENUE,Redacted Personal Data,HIRED TRANSPORT
Peterborough,http://opendatacommunities.org/id/unitary-authority/peterborough,Peterborough City Council,Children's & Education Services - Education,Other School -related Education Functions,Transport,07/01/2015 00:00,705975,545.52,REVENUE,Redacted Personal Data,HIRED TRANSPORT
Peterborough,http://opendatacommunities.org/id/unitary-authority/peterborough,Peterborough City Council,Children's & Education Services - Education,Other School -related Education Functions,Supplies and Services - Transfer Payments,07/01/2015 00:00,705986,11669.68,REVENUE,Sedbergh School,BOARDING - OUT ALLOWANCES
Peterborough,http://opendatacommunities.org/id/unitary-authority/peterborough,Peterborough City Council,Children's & Education Services - Education,Other School -related Education Functions,More than one Expenses Type,07/01/2015 00:00,705994,1080.72,REVENUE,Peterborough Cars,HIRED TRANSPORT
Peterborough,http://opendatacommunities.org/id/unitary-authority/peterborough,Peterborough City Council,Children's & Education Services - Education,Other School -related Education Functions,Transport,07/01/2015 00:00,705995,695.76,REVENUE,Peterborough Cars,HIRED TRANSPORT
Peterborough,http://opendatacommunities.org/id/unitary-authority/peterborough,Peterborough City Council,Children's & Education Services - Education,Other School -related Education Functions,Transport,07/01/2015 00:00,705996,1322.16,REVENUE,Peterborough Cars,HIRED TRANSPORT
Peterborough,http://opendatacommunities.org/id/unitary-authority/peterborough,Peterborough City Council,Children's & Education Services - Children's Social Care,Children Looked After,Transport,07/01/2015 00:00,705997,648,REVENUE,Peterborough Cars,HIRED TRANSPORT
Peterborough,http://opendatacommunities.org/id/unitary-authority/peterborough,Peterborough City Council,Children's & Education Services - Children's Social Care,Children Looked After,Transport,07/01/2015 00:00,705998,720,REVENUE,Peterborough Cars,HIRED TRANSPORT
Peterborough,http://opendatacommunities.org/id/unitary-authority/peterborough,Peterborough City Council,Children's & Education Services - Education,Other School -related Education Functions,Transport,07/01/2015 00:00,705999,1319.76,REVENUE,Peterborough Cars,HIRED TRANSPORT
Peterborough,http://opendatacommunities.org/id/unitary-authority/peterborough,Peterborough City Council,Children's & Education Services - Education,Other School -related Education Functions,Transport,07/01/2015 00:00,706000,1439.76,REVENUE,Peterborough Cars,HIRED TRANSPORT
Peterborough,http://opendatacommunities.org/id/unitary-authority/peterborough,Peterborough City Council,Children's & Education Services - Education,Other School -related Education Functions,Transport,07/01/2015 00:00,706001,1319.76,REVENUE,Peterborough Cars,HIRED TRANSPORT
Peterborough,http://opendatacommunities.org/id/unitary-authority/peterborough,Peterborough City Council,Children's & Education Services - Education,Other School -related Education Functions,Transport,07/01/2015 00:00,706002,1931.76,REVENUE,Peterborough Cars,HIRED TRANSPORT
Peterborough,http://opendatacommunities.org/id/unitary-authority/peterborough,Peterborough City Council,Children's & Education Services - Education,Other School -related Education Functions,Transport,07/01/2015 00:00,706003,1813.92,REVENUE,Peterborough Cars,HIRED TRANSPORT
Peterborough,http://opendatacommunities.org/id/unitary-authority/peterborough,Peterborough City Council,Children's & Education Services - Education,Other School -related Education Functions,Transport,07/01/2015 00:00,706004,1415.76,REVENUE,Peterborough Cars,HIRED TRANSPORT
Peterborough,http://opendatacommunities.org/id/unitary-authority/peterborough,Peterborough City Council,Children's & Education Services - Education,Other School -related Education Functions,Transport,07/01/2015 00:00,706005,1320,REVENUE,Peterborough Cars,HIRED TRANSPORT
Peterborough,http://opendatacommunities.org/id/unitary-authority/peterborough,Peterborough City Council,Children's & Education Services - Education,Other School -related Education Functions,Transport,07/01/2015 00:00,706006,1007.76,REVENUE,Peterborough Cars,HIRED TRANSPORT
Peterborough,http://opendatacommunities.org/id/unitary-authority/peterborough,Peterborough City Council,Children's & Education Services - Education,Other School -related Education Functions,Transport,07/01/2015 00:00,706007,1439.76,REVENUE,Peterborough Cars,HIRED TRANSPORT
Peterborough,http://opendatacommunities.org/id/unitary-authority/peterborough,Peterborough City Council,Children's & Education Services - Education,All Schools - apportion across sectors,Supplies and Services,07/01/2015 00:00,706017,2250,REVENUE,Sawtry Community College,GRANT PAYMENT
Peterborough,http://opendatacommunities.org/id/unitary-authority/peterborough,Peterborough City Council,Children's & Education Services - Education,All Schools - apportion across sectors,Supplies and Services,07/01/2015 00:00,706019,1500,REVENUE,The Holbeach William Stukeley Primary School,GRANT PAYMENT
Peterborough,http://opendatacommunities.org/id/unitary-authority/peterborough,Peterborough City Council,Children's & Education Services - Education,All Schools - apportion across sectors,Supplies and Services,07/01/2015 00:00,706020,750,REVENUE,William Westley CE School,GRANT PAYMENT
Peterborough,http://opendatacommunities.org/id/unitary-authority/peterborough,Peterborough City Council,Housing Services,Homelessness,Supplies and Services,07/01/2015 00:00,706021,1620,REVENUE,Dunham Property Agents,FINANCIAL ASSISTANCE
Peterborough,http://opendatacommunities.org/id/unitary-authority/peterborough,Peterborough City Council,Housing Services,Homelessness,Supplies and Services,07/01/2015 00:00,706023,717.34,REVENUE,Cross Keys Homes,FINANCIAL ASSISTANCE
Peterborough,http://opendatacommunities.org/id/unitary-authority/peterborough,Peterborough City Council,Housing Services,Homelessness,Supplies and Services,07/01/2015 00:00,706024,694.2,REVENUE,Cross Keys Homes,FINANCIAL ASSISTANCE
Peterborough,http://opendatacommunities.org/id/unitary-authority/peterborough,Peterborough City Council,Children's & Education Services - Education,All Schools - apportion across sectors,Supplies and Services,07/01/2015 00:00,706025,750,REVENUE,Woolsery Primary School,GRANT PAYMENT
Peterborough,http://opendatacommunities.org/id/unitary-authority/peterborough,Peterborough City Council,Housing Services,Homelessness,Supplies and Services,07/01/2015 00:00,706026,717.34,REVENUE,Cross Keys Homes,FINANCIAL ASSISTANCE
Peterborough,http://opendatacommunities.org/id/unitary-authority/peterborough,Peterborough City Council,Children's & Education Services - Education,All Schools - apportion across sectors,Supplies and Services,07/01/2015 00:00,706028,750,REVENUE,Woodfield School,GRANT PAYMENT
Peterborough,http://opendatacommunities.org/id/unitary-authority/peterborough,Peterborough City Council,Children's & Education Services - Education,All Schools - apportion across sectors,Supplies and Services,07/01/2015 00:00,706029,750,REVENUE,Willoughby School,GRANT PAYMENT
Peterborough,http://opendatacommunities.org/id/unitary-authority/peterborough,Peterborough City Council,Children's & Education Services - Children's Social Care,Children Looked After,Supplies and Services - Transfer Payments,07/01/2015 00:00,706095,15500,REVENUE,Advanced Childcare,BOARDING - OUT ALLOWANCES
Peterborough,http://opendatacommunities.org/id/unitary-authority/peterborough,Peterborough City Council,Support Services,Support Services,Supplies and Services,07/01/2015 00:00,706117,3802.34,REVENUE,Serco Ltd,ICT SERVICES
Peterborough,http://opendatacommunities.org/id/unitary-authority/peterborough,Peterborough City Council,Adult Social Care,Adult Learning Disabilities,Supplies and Services,07/01/2015 00:00,706125,518.16,REVENUE,Betta Cars (UK) Ltd,HIRED TRANSPORT
Peterborough,http://opendatacommunities.org/id/unitary-authority/peterborough,Peterborough City Council,Cultural and Related Services,Tourism,Supplies and Services,07/01/2015 00:00,706131,1046.76,REVENUE,Peterborough United Football Club,ITEMS FOR RESALE
Peterborough,http://opendatacommunities.org/id/unitary-authority/peterborough,Peterborough City Council,Adult Social Care,Older People,More than one Expenses Type,07/01/2015 00:00,706185,3540,REVENUE,Fieldwork Admin Team (IMPREST),Numerous
Peterborough,http://opendatacommunities.org/id/unitary-authority/peterborough,Peterborough City Council,Adult Social Care,Older People,Supplies and Services,09/01/2015 00:00,684197,1284.12,REVENUE,ADR CARE HOMES LTD,MH OLDER PEOPLE RESIDENTIAL CARE
Peterborough,http://opendatacommunities.org/id/unitary-authority/peterborough,Peterborough City Council,Children's & Education Services - Education,Other School -related Education Functions,Supplies and Services,09/01/2015 00:00,688428,1260,REVENUE,Tribal Education Ltd,CONSULTANTS FEES
Peterborough,http://opendatacommunities.org/id/unitary-authority/peterborough,Peterborough City Council,Public Health,More than one Service Division,Third Party Payments,09/01/2015 00:00,691856,8771.42,REVENUE,Cambs & P'boro NHS Foundation Trust,THIRD PARTY PAYMENTS - CONTRACT
Peterborough,http://opendatacommunities.org/id/unitary-authority/peterborough,Peterborough City Council,Children's & Education Services - Education,Other School -related Education Functions,Supplies and Services,09/01/2015 00:00,693953,720,REVENUE,Hallam Learning Consultancy Ltd,HIRED SERVICES
Peterborough,http://opendatacommunities.org/id/unitary-authority/peterborough,Peterborough City Council,Capital,Capital,Capital Pending Update to BS,09/01/2015 00:00,698195,1952.23,CAPITAL,Honeywell Control Systems Ltd,BUILDING AND SITE WORKS
Peterborough,http://opendatacommunities.org/id/unitary-authority/peterborough,Peterborough City Council,Children's & Education Services - Children's Social Care,Other Children's & Families Services,Supplies and Services,09/01/2015 00:00,701467,2497,REVENUE,Adoptionplus Ltd,PURCHASED SOCIAL CARE SERVICES
Peterborough,http://opendatacommunities.org/id/unitary-authority/peterborough,Peterborough City Council,Children's & Education Services - Children's Social Care,Other Children's & Families Services,Employees,09/01/2015 00:00,701530,1837.26,REVENUE,Sanctuary Personnel Ltd,EXTERNAL TEMPORARY STAFF
Peterborough,http://opendatacommunities.org/id/unitary-authority/peterborough,Peterborough City Council,Support Services,Support Services,Supplies and Services,09/01/2015 00:00,704258,1562,REVENUE,Cambridgeshire County Council,COURSE INSTRUCTORS FEES
Peterborough,http://opendatacommunities.org/id/unitary-authority/peterborough,Peterborough City Council,Children's & Education Services - Children's Social Care,Children Looked After,More than one Expenses Type,09/01/2015 00:00,704845,3349.61,REVENUE,The K A Wing Group Ltd,BUILDING MAINTENANCE
Peterborough,http://opendatacommunities.org/id/unitary-authority/peterborough,Peterborough City Council,Children's & Education Services - Children's Social Care,Children Looked After,Supplies and Services,09/01/2015 00:00,704900,723.35,REVENUE,Sarah Borthwick Ltd,ADMINISTRATION EXPENSES
Peterborough,http://opendatacommunities.org/id/unitary-authority/peterborough,Peterborough City Council,Highways and Transport Services,Public Transport,Supplies and Services,09/01/2015 00:00,705060,178298.79,REVENUE,Stagecoach in Peterborough,CONTRACTORS
Peterborough,http://opendatacommunities.org/id/unitary-authority/peterborough,Peterborough City Council,Planning Services,Community Development,Third Party Payments,09/01/2015 00:00,705737,67661.75,REVENUE,Peterborough Womens Aid,THIRD PARTY PAYMENTS - CONTRACT
Peterborough,http://opendatacommunities.org/id/unitary-authority/peterborough,Peterborough City Council,Central Services to the Public,Local Land Charges,Supplies and Services,09/01/2015 00:00,705741,2222.5,REVENUE,Bevan Brittan LLP,COMPENSATION
Peterborough,http://opendatacommunities.org/id/unitary-authority/peterborough,Peterborough City Council,Children's & Education Services - Education,All Schools - apportion across sectors,Supplies and Services,09/01/2015 00:00,705903,750,REVENUE,The Nene County Infant & Nursery School,GRANT PAYMENT
Peterborough,http://opendatacommunities.org/id/unitary-authority/peterborough,Peterborough City Council,Children's & Education Services - Education,All Schools - apportion across sectors,Supplies and Services,09/01/2015 00:00,705982,750,REVENUE,Stickney Primary School,GRANT PAYMENT
Peterborough,http://opendatacommunities.org/id/unitary-authority/peterborough,Peterborough City Council,Planning Services,Economic Development,Third Party Payments,09/01/2015 00:00,706054,7500,REVENUE,Dial Peterborough,GRANT-THIRD PARTY
Peterborough,http://opendatacommunities.org/id/unitary-authority/peterborough,Peterborough City Council,Adult Social Care,Older People,Supplies and Services,09/01/2015 00:00,706100,11047.32,REVENUE,Barchester Healthcare (Werrington Lodge),OLDER PEOPLE RESIDENTIAL CARE
Peterborough,http://opendatacommunities.org/id/unitary-authority/peterborough,Peterborough City Council,Adult Social Care,Older People,Supplies and Services,09/01/2015 00:00,706101,-1963.92,REVENUE,Barchester Healthcare (Werrington Lodge),OLDER PEOPLE RESIDENTIAL CARE
Peterborough,http://opendatacommunities.org/id/unitary-authority/peterborough,Peterborough City Council,Cultural and Related Services,Recreation & Sport,Premises,09/01/2015 00:00,706112,5000,REVENUE,Gladstone Connect Ltd,RENT
Peterborough,http://opendatacommunities.org/id/unitary-authority/peterborough,Peterborough City Council,Children's & Education Services - Children's Social Care,Children Looked After,Transport,09/01/2015 00:00,706196,1579.05,REVENUE,Redacted Personal Data,HIRED TRANSPORT
Peterborough,http://opendatacommunities.org/id/unitary-authority/peterborough,Peterborough City Council,Children's & Education Services - Children's Social Care,Children Looked After,Transport,09/01/2015 00:00,706197,1366.65,REVENUE,Redacted Personal Data,HIRED TRANSPORT
Peterborough,http://opendatacommunities.org/id/unitary-authority/peterborough,Peterborough City Council,Children's & Education Services - Children's Social Care,Children Looked After,Transport,09/01/2015 00:00,706198,1094.4,REVENUE,Redacted Personal Data,HIRED TRANSPORT
Peterborough,http://opendatacommunities.org/id/unitary-authority/peterborough,Peterborough City Council,Children's & Education Services - Children's Social Care,Children Looked After,Transport,09/01/2015 00:00,706200,1984.95,REVENUE,Redacted Personal Data,HIRED TRANSPORT
Peterborough,http://opendatacommunities.org/id/unitary-authority/peterborough,Peterborough City Council,More than one Service Area Category,More than one Service Division,More than one Expenses Type,09/01/2015 00:00,706201,1355.7,REVENUE,Redacted Personal Data,HIRED TRANSPORT
Peterborough,http://opendatacommunities.org/id/unitary-authority/peterborough,Peterborough City Council,Children's & Education Services - Children's Social Care,Children Looked After,Transport,09/01/2015 00:00,706205,951.3,REVENUE,Redacted Personal Data,HIRED TRANSPORT
Peterborough,http://opendatacommunities.org/id/unitary-authority/peterborough,Peterborough City Council,Children's & Education Services - Children's Social Care,Children Looked After,Transport,09/01/2015 00:00,706206,1744.65,REVENUE,Redacted Personal Data,HIRED TRANSPORT
Peterborough,http://opendatacommunities.org/id/unitary-authority/peterborough,Peterborough City Council,Children's & Education Services - Children's Social Care,Children's Services - Commissioning and Social Work,Premises,09/01/2015 00:00,706210,718.39,REVENUE,British Gas Business,ELECTRICITY
Peterborough,http://opendatacommunities.org/id/unitary-authority/peterborough,Peterborough City Council,More than one Service Area Category,More than one Service Division,Premises,09/01/2015 00:00,706211,1098.81,REVENUE,British Gas Business,ELECTRICITY
Peterborough,http://opendatacommunities.org/id/unitary-authority/peterborough,Peterborough City Council,More than one Service Area Category,More than one Service Division,Premises,09/01/2015 00:00,706212,8271.66,REVENUE,British Gas Business,ELECTRICITY
Peterborough,http://opendatacommunities.org/id/unitary-authority/peterborough,Peterborough City Council,More than one Service Area Category,More than one Service Division,Premises,09/01/2015 00:00,706213,2185.99,REVENUE,British Gas Business,ELECTRICITY
Peterborough,http://opendatacommunities.org/id/unitary-authority/peterborough,Peterborough City Council,Children's & Education Services - Education,Other School -related Education Functions,Transport,09/01/2015 00:00,706224,1665.6,REVENUE,Ash School Transport,HIRED TRANSPORT
Peterborough,http://opendatacommunities.org/id/unitary-authority/peterborough,Peterborough City Council,Children's & Education Services - Education,Other School -related Education Functions,Transport,09/01/2015 00:00,706227,1363.01,REVENUE,Peterborough Cars,HIRED TRANSPORT
Peterborough,http://opendatacommunities.org/id/unitary-authority/peterborough,Peterborough City Council,Children's & Education Services - Education,Other School -related Education Functions,Transport,09/01/2015 00:00,706242,1062,REVENUE,King Cabz,HIRED TRANSPORT
Peterborough,http://opendatacommunities.org/id/unitary-authority/peterborough,Peterborough City Council,More than one Service Area Category,More than one Service Division,More than one Expenses Type,09/01/2015 00:00,706247,1924.8,"Mixture of Capital, Revenue and/or Balance Sheet",Allworks Home Improvements Ltd,GRANT PAYMENT
Peterborough,http://opendatacommunities.org/id/unitary-authority/peterborough,Peterborough City Council,More than one Service Area Category,More than one Service Division,More than one Expenses Type,09/01/2015 00:00,706248,4250,"Mixture of Capital, Revenue and/or Balance Sheet",EMS Stairlifts,GRANT PAYMENT
Peterborough,http://opendatacommunities.org/id/unitary-authority/peterborough,Peterborough City Council,More than one Service Area Category,More than one Service Division,More than one Expenses Type,09/01/2015 00:00,706256,4216,"Mixture of Capital, Revenue and/or Balance Sheet",M J Greaves,GRANT PAYMENT
Peterborough,http://opendatacommunities.org/id/unitary-authority/peterborough,Peterborough City Council,More than one Service Area Category,More than one Service Division,More than one Expenses Type,09/01/2015 00:00,706259,3055.24,"Mixture of Capital, Revenue and/or Balance Sheet",Rawheat Heating & Plumbing Eng.,GRANT PAYMENT
Peterborough,http://opendatacommunities.org/id/unitary-authority/peterborough,Peterborough City Council,Highways and Transport Services,Traffic management & Road Safety,Supplies and Services,09/01/2015 00:00,706261,625.12,REVENUE,Telent Technology Services Ltd,CONTRACTORS
Peterborough,http://opendatacommunities.org/id/unitary-authority/peterborough,Peterborough City Council,Children's & Education Services - Education,Other School -related Education Functions,Supplies and Services,09/01/2015 00:00,706262,2088.28,REVENUE,Farcet C.E. (C) Primary School,OUT OF AREA EDUCATION COSTS
Peterborough,http://opendatacommunities.org/id/unitary-authority/peterborough,Peterborough City Council,More than one Service Area Category,More than one Service Division,More than one Expenses Type,09/01/2015 00:00,706265,4565.4,"Mixture of Capital, Revenue and/or Balance Sheet",Jones Heating Ltd,GRANT PAYMENT
Peterborough,http://opendatacommunities.org/id/unitary-authority/peterborough,Peterborough City Council,Cultural and Related Services,Culture & Heritage,Supplies and Services,09/01/2015 00:00,706267,960,REVENUE,R J Mason Blacksmith & Farrier,CONTRACTORS
Peterborough,http://opendatacommunities.org/id/unitary-authority/peterborough,Peterborough City Council,Children's & Education Services - Education,All Schools - apportion across sectors,Supplies and Services,09/01/2015 00:00,706270,750,REVENUE,Wainscott Primary School,GRANT PAYMENT
Peterborough,http://opendatacommunities.org/id/unitary-authority/peterborough,Peterborough City Council,Adult Social Care,Adult Physical Disability & Sensory Impairment,Fees and Charges,09/01/2015 00:00,706352,1718.64,REVENUE,Redacted Personal Data,ADULT SOCIAL CARE DIRECT PAYMENTS
Peterborough,http://opendatacommunities.org/id/unitary-authority/peterborough,Peterborough City Council,Adult Social Care,Older People,More than one Expenses Type,09/01/2015 00:00,706353,534.56,REVENUE,Redacted Personal Data,ADULT SOCIAL CARE DIRECT PAYMENTS
Peterborough,http://opendatacommunities.org/id/unitary-authority/peterborough,Peterborough City Council,Adult Social Care,Older People,Supplies and Services,09/01/2015 00:00,706354,515.44,REVENUE,Redacted Personal Data,ADULT SOCIAL CARE DIRECT PAYMENTS
Peterborough,http://opendatacommunities.org/id/unitary-authority/peterborough,Peterborough City Council,Adult Social Care,Adult Learning Disabilities,Supplies and Services,09/01/2015 00:00,706357,994.25,REVENUE,Redacted Personal Data,ADULT SOCIAL CARE DIRECT PAYMENTS
Peterborough,http://opendatacommunities.org/id/unitary-authority/peterborough,Peterborough City Council,Adult Social Care,Older People,Supplies and Services,09/01/2015 00:00,706359,4468,REVENUE,Redacted Personal Data,ADULT SOCIAL CARE DIRECT PAYMENTS
Peterborough,http://opendatacommunities.org/id/unitary-authority/peterborough,Peterborough City Council,Adult Social Care,Older People,Supplies and Services,09/01/2015 00:00,706360,13686.7,REVENUE,Redacted Personal Data,ADULT SOCIAL CARE DIRECT PAYMENTS
Peterborough,http://opendatacommunities.org/id/unitary-authority/peterborough,Peterborough City Council,More than one Service Area Category,More than one Service Division,More than one Expenses Type,09/01/2015 00:00,706374,4301.85,"Mixture of Capital, Revenue and/or Balance Sheet",Jones Heating Ltd,GRANT PAYMENT
Peterborough,http://opendatacommunities.org/id/unitary-authority/peterborough,Peterborough City Council,More than one Service Area Category,More than one Service Division,More than one Expenses Type,09/01/2015 00:00,706375,4716,"Mixture of Capital, Revenue and/or Balance Sheet",Morley Building Services,GRANT PAYMENT
Peterborough,http://opendatacommunities.org/id/unitary-authority/peterborough,Peterborough City Council,More than one Service Area Category,More than one Service Division,More than one Expenses Type,09/01/2015 00:00,706376,5583,"Mixture of Capital, Revenue and/or Balance Sheet",Allworks Home Improvements Ltd,GRANT PAYMENT
Peterborough,http://opendatacommunities.org/id/unitary-authority/peterborough,Peterborough City Council,More than one Service Area Category,More than one Service Division,More than one Expenses Type,09/01/2015 00:00,706378,4779,"Mixture of Capital, Revenue and/or Balance Sheet",Morley Building Services,GRANT PAYMENT
Peterborough,http://opendatacommunities.org/id/unitary-authority/peterborough,Peterborough City Council,More than one Service Area Category,More than one Service Division,More than one Expenses Type,09/01/2015 00:00,706383,2105,"Mixture of Capital, Revenue and/or Balance Sheet",8/5 Electrical,GRANT PAYMENT
Peterborough,http://opendatacommunities.org/id/unitary-authority/peterborough,Peterborough City Council,More than one Service Area Category,More than one Service Division,More than one Expenses Type,09/01/2015 00:00,706384,3485,"Mixture of Capital, Revenue and/or Balance Sheet",Casbon Building Services,GRANT PAYMENT
Peterborough,http://opendatacommunities.org/id/unitary-authority/peterborough,Peterborough City Council,More than one Service Area Category,More than one Service Division,More than one Expenses Type,09/01/2015 00:00,706385,4495.05,"Mixture of Capital, Revenue and/or Balance Sheet",Rawheat Heating & Plumbing Eng.,GRANT PAYMENT
Peterborough,http://opendatacommunities.org/id/unitary-authority/peterborough,Peterborough City Council,Children's & Education Services - Education,Other School -related Education Functions,Employees,09/01/2015 00:00,706393,27102.47,REVENUE,Teachers Pensions,PENSIONS
Peterborough,http://opendatacommunities.org/id/unitary-authority/peterborough,Peterborough City Council,More than one Service Area Category,More than one Service Division,More than one Expenses Type,09/01/2015 00:00,706396,2066.4,"Mixture of Capital, Revenue and/or Balance Sheet",Allworks Home Improvements Ltd,GRANT PAYMENT
Peterborough,http://opendatacommunities.org/id/unitary-authority/peterborough,Peterborough City Council,More than one Service Area Category,More than one Service Division,More than one Expenses Type,09/01/2015 00:00,706397,3945,"Mixture of Capital, Revenue and/or Balance Sheet",Morley Building Services,GRANT PAYMENT
Peterborough,http://opendatacommunities.org/id/unitary-authority/peterborough,Peterborough City Council,More than one Service Area Category,More than one Service Division,More than one Expenses Type,09/01/2015 00:00,706398,3484,"Mixture of Capital, Revenue and/or Balance Sheet",Heating & Plumbing Services Wisbech Ltd,GRANT PAYMENT
Peterborough,http://opendatacommunities.org/id/unitary-authority/peterborough,Peterborough City Council,Children's & Education Services - Children's Social Care,More than one Service Division,More than one Expenses Type,09/01/2015 00:00,706409,741.55,REVENUE,Cherry Lodge (Imprest),Numerous
Peterborough,http://opendatacommunities.org/id/unitary-authority/peterborough,Peterborough City Council,Children's & Education Services - Education,Other School -related Education Functions,Supplies and Services - Transfer Payments,09/01/2015 00:00,706418,10950,REVENUE,The Regard Partnership Limited,BOARDING - OUT ALLOWANCES
Peterborough,http://opendatacommunities.org/id/unitary-authority/peterborough,Peterborough City Council,Children's & Education Services - Education,Other School -related Education Functions,Supplies and Services - Transfer Payments,09/01/2015 00:00,706419,21512,REVENUE,The Regard Partnership Limited,BOARDING - OUT ALLOWANCES
Peterborough,http://opendatacommunities.org/id/unitary-authority/peterborough,Peterborough City Council,Children's & Education Services - Education,Other School -related Education Functions,Supplies and Services - Transfer Payments,09/01/2015 00:00,706420,10950,REVENUE,The Regard Partnership Limited,BOARDING - OUT ALLOWANCES
Peterborough,http://opendatacommunities.org/id/unitary-authority/peterborough,Peterborough City Council,Children's & Education Services - Children's Social Care,Children Looked After,Transport,09/01/2015 00:00,706455,840,REVENUE,Redacted Personal Data,HIRED TRANSPORT
Peterborough,http://opendatacommunities.org/id/unitary-authority/peterborough,Peterborough City Council,Children's & Education Services - Children's Social Care,Children Looked After,Transport,09/01/2015 00:00,706456,524.7,REVENUE,Redacted Personal Data,HIRED TRANSPORT
Peterborough,http://opendatacommunities.org/id/unitary-authority/peterborough,Peterborough City Council,Central Services to the Public,Elections,Supplies and Services,12/01/2015 00:00,621712,3015.44,REVENUE,Association of Electoral Administrators,CONSULTANTS FEES
Peterborough,http://opendatacommunities.org/id/unitary-authority/peterborough,Peterborough City Council,Central Services to the Public,Elections,Supplies and Services,12/01/2015 00:00,643194,3005.18,REVENUE,Association of Electoral Administrators,CONSULTANTS FEES
Peterborough,http://opendatacommunities.org/id/unitary-authority/peterborough,Peterborough City Council,Support Services,Support Services,Employees,12/01/2015 00:00,689277,2409.56,REVENUE,Venn Group Ltd,EXTERNAL TEMPORARY STAFF
Peterborough,http://opendatacommunities.org/id/unitary-authority/peterborough,Peterborough City Council,Children's & Education Services - Children's Social Care,Other Children's & Families Services,Supplies and Services,12/01/2015 00:00,691713,1510.59,REVENUE,CAPITA Translation and Interpreting,INTERPRETATION EXPENSES
Peterborough,http://opendatacommunities.org/id/unitary-authority/peterborough,Peterborough City Council,Support Services,Support Services,Employees,12/01/2015 00:00,691995,2291.06,REVENUE,Venn Group Ltd,EXTERNAL TEMPORARY STAFF
Peterborough,http://opendatacommunities.org/id/unitary-authority/peterborough,Peterborough City Council,Environmental and Regulatory Services,Waste Collection,Supplies and Services,12/01/2015 00:00,692050,63462.19,REVENUE,AmeyCespa (East) Ltd,RECYCLING
Peterborough,http://opendatacommunities.org/id/unitary-authority/peterborough,Peterborough City Council,Children's & Education Services - Children's Social Care,Children Looked After,Supplies and Services - Transfer Payments,12/01/2015 00:00,692096,16673.57,REVENUE,Halliwell Homes Ltd,BOARDING - OUT ALLOWANCES
Peterborough,http://opendatacommunities.org/id/unitary-authority/peterborough,Peterborough City Council,Highways and Transport Services,Public Transport,Supplies and Services,12/01/2015 00:00,693928,693.54,REVENUE,Diamond Coaches,CONTRACTORS
Peterborough,http://opendatacommunities.org/id/unitary-authority/peterborough,Peterborough City Council,Children's & Education Services - Children's Social Care,Children Looked After,Supplies and Services,12/01/2015 00:00,696863,727.2,REVENUE,Pearson Education,EXAM FEES
Peterborough,http://opendatacommunities.org/id/unitary-authority/peterborough,Peterborough City Council,Children's & Education Services - Children's Social Care,Other Children's & Families Services,Supplies and Services,12/01/2015 00:00,697941,1016.46,REVENUE,CAPITA Translation and Interpreting,INTERPRETATION EXPENSES
Peterborough,http://opendatacommunities.org/id/unitary-authority/peterborough,Peterborough City Council,Children's & Education Services - Children's Social Care,Other Children's & Families Services,Supplies and Services,12/01/2015 00:00,697946,532.31,REVENUE,CAPITA Translation and Interpreting,INTERPRETATION EXPENSES
Peterborough,http://opendatacommunities.org/id/unitary-authority/peterborough,Peterborough City Council,Children's & Education Services - Children's Social Care,Other Children's & Families Services,Supplies and Services,12/01/2015 00:00,697967,1784.7,REVENUE,CAPITA Translation and Interpreting,INTERPRETATION EXPENSES
Peterborough,http://opendatacommunities.org/id/unitary-authority/peterborough,Peterborough City Council,Children's & Education Services - Children's Social Care,Children Looked After,Employees,12/01/2015 00:00,698010,1032.66,REVENUE,Service Care Solutions Ltd,EXTERNAL TEMPORARY STAFF
Peterborough,http://opendatacommunities.org/id/unitary-authority/peterborough,Peterborough City Council,Children's & Education Services - Children's Social Care,Other Children's & Families Services,Supplies and Services,12/01/2015 00:00,698287,1867.33,REVENUE,CAPITA Translation and Interpreting,INTERPRETATION EXPENSES
Peterborough,http://opendatacommunities.org/id/unitary-authority/peterborough,Peterborough City Council,Support Services,Support Services,Supplies and Services,12/01/2015 00:00,699979,2776.92,REVENUE,Bisbey Ltd,EXPERT WITNESSES
Peterborough,http://opendatacommunities.org/id/unitary-authority/peterborough,Peterborough City Council,More than one Service Area Category,More than one Service Division,Supplies and Services,12/01/2015 00:00,699980,6682.99,REVENUE,Loomis UK Ltd,CASH COLLECTION SERVICES
Peterborough,http://opendatacommunities.org/id/unitary-authority/peterborough,Peterborough City Council,Support Services,Support Services,Supplies and Services,12/01/2015 00:00,700029,540,REVENUE,"Hunt, Miss Alison",LEGAL COSTS
Peterborough,http://opendatacommunities.org/id/unitary-authority/peterborough,Peterborough City Council,Support Services,Support Services,Employees,12/01/2015 00:00,700936,1738.04,REVENUE,Venn Group Ltd,EXTERNAL TEMPORARY STAFF
Peterborough,http://opendatacommunities.org/id/unitary-authority/peterborough,Peterborough City Council,Children's & Education Services - Education,Other School -related Education Functions,Supplies and Services,12/01/2015 00:00,701044,841.2,REVENUE,Vision for Education Ltd,EDUCATION EXPENSES
Peterborough,http://opendatacommunities.org/id/unitary-authority/peterborough,Peterborough City Council,Children's & Education Services - Education,Other School -related Education Functions,Supplies and Services,12/01/2015 00:00,701046,954,REVENUE,Vision for Education Ltd,EDUCATION EXPENSES
Peterborough,http://opendatacommunities.org/id/unitary-authority/peterborough,Peterborough City Council,Children's & Education Services - Education,Other School -related Education Functions,Supplies and Services,12/01/2015 00:00,701049,954,REVENUE,Vision for Education Ltd,EDUCATION EXPENSES
Peterborough,http://opendatacommunities.org/id/unitary-authority/peterborough,Peterborough City Council,Environmental and Regulatory Services,Waste Collection,Supplies and Services,12/01/2015 00:00,701071,6367.21,REVENUE,AmeyCespa (East) Ltd,RECYCLING
Peterborough,http://opendatacommunities.org/id/unitary-authority/peterborough,Peterborough City Council,Adult Social Care,Older People,Supplies and Services,12/01/2015 00:00,701315,5972,REVENUE,BRAIN INJURY REHABILITATION TRUST,PHYSICAL DISABILITY RESIDENTIAL CARE
Peterborough,http://opendatacommunities.org/id/unitary-authority/peterborough,Peterborough City Council,Children's & Education Services - Children's Social Care,Children Looked After,Supplies and Services - Transfer Payments,12/01/2015 00:00,701532,3620.8,REVENUE,Archway Care Ltd,BOARDING - OUT ALLOWANCES
Peterborough,http://opendatacommunities.org/id/unitary-authority/peterborough,Peterborough City Council,Children's & Education Services - Children's Social Care,Children Looked After,Supplies and Services - Transfer Payments,12/01/2015 00:00,701535,3476.03,REVENUE,Archway Care Ltd,BOARDING - OUT ALLOWANCES
Peterborough,http://opendatacommunities.org/id/unitary-authority/peterborough,Peterborough City Council,Children's & Education Services - Children's Social Care,Children Looked After,Supplies and Services - Transfer Payments,12/01/2015 00:00,701536,3476.03,REVENUE,Archway Care Ltd,BOARDING - OUT ALLOWANCES
Peterborough,http://opendatacommunities.org/id/unitary-authority/peterborough,Peterborough City Council,Children's & Education Services - Children's Social Care,Children Looked After,Supplies and Services - Transfer Payments,12/01/2015 00:00,701538,3620.8,REVENUE,Archway Care Ltd,BOARDING - OUT ALLOWANCES
Peterborough,http://opendatacommunities.org/id/unitary-authority/peterborough,Peterborough City Council,Children's & Education Services - Children's Social Care,Children Looked After,Supplies and Services - Transfer Payments,12/01/2015 00:00,701540,3153.6,REVENUE,Archway Care Ltd,BOARDING - OUT ALLOWANCES
Peterborough,http://opendatacommunities.org/id/unitary-authority/peterborough,Peterborough City Council,Children's & Education Services - Children's Social Care,Children Looked After,Supplies and Services - Transfer Payments,12/01/2015 00:00,701542,3620.8,REVENUE,Archway Care Ltd,BOARDING - OUT ALLOWANCES
Peterborough,http://opendatacommunities.org/id/unitary-authority/peterborough,Peterborough City Council,Children's & Education Services - Children's Social Care,Children Looked After,Supplies and Services - Transfer Payments,12/01/2015 00:00,701544,3620.8,REVENUE,Archway Care Ltd,BOARDING - OUT ALLOWANCES
Peterborough,http://opendatacommunities.org/id/unitary-authority/peterborough,Peterborough City Council,Children's & Education Services - Children's Social Care,Children Looked After,Supplies and Services - Transfer Payments,12/01/2015 00:00,701545,3620.8,REVENUE,Archway Care Ltd,BOARDING - OUT ALLOWANCES
Peterborough,http://opendatacommunities.org/id/unitary-authority/peterborough,Peterborough City Council,Children's & Education Services - Children's Social Care,Children Looked After,Supplies and Services - Transfer Payments,12/01/2015 00:00,701546,3620.8,REVENUE,Archway Care Ltd,BOARDING - OUT ALLOWANCES
Peterborough,http://opendatacommunities.org/id/unitary-authority/peterborough,Peterborough City Council,Children's & Education Services - Children's Social Care,Other Children's & Families Services,Supplies and Services,12/01/2015 00:00,701592,1047.18,REVENUE,Terrier Management Services,CONSULTANTS FEES
Peterborough,http://opendatacommunities.org/id/unitary-authority/peterborough,Peterborough City Council,Children's & Education Services - Children's Social Care,Other Children's & Families Services,Employees,12/01/2015 00:00,701634,1465.2,REVENUE,SWP Consulting,EXTERNAL TEMPORARY STAFF
Peterborough,http://opendatacommunities.org/id/unitary-authority/peterborough,Peterborough City Council,Adult Social Care,Older People,Third Party Payments,12/01/2015 00:00,701673,2100,REVENUE,Mouchel Ltd,THIRD PARTY PAYMENTS - CONTRACT
Peterborough,http://opendatacommunities.org/id/unitary-authority/peterborough,Peterborough City Council,Children's & Education Services - Children's Social Care,Children Looked After,Supplies and Services - Transfer Payments,12/01/2015 00:00,701724,3832.06,REVENUE,Foster Care Associates Ltd FCA,BOARDING - OUT ALLOWANCES
Peterborough,http://opendatacommunities.org/id/unitary-authority/peterborough,Peterborough City Council,Children's & Education Services - Children's Social Care,Children Looked After,Supplies and Services - Transfer Payments,12/01/2015 00:00,701725,3556.01,REVENUE,Foster Care Associates Ltd FCA,BOARDING - OUT ALLOWANCES
Peterborough,http://opendatacommunities.org/id/unitary-authority/peterborough,Peterborough City Council,Children's & Education Services - Children's Social Care,Children Looked After,Supplies and Services - Transfer Payments,12/01/2015 00:00,701726,3556.01,REVENUE,Foster Care Associates Ltd FCA,BOARDING - OUT ALLOWANCES
Peterborough,http://opendatacommunities.org/id/unitary-authority/peterborough,Peterborough City Council,Children's & Education Services - Children's Social Care,Children Looked After,Supplies and Services - Transfer Payments,12/01/2015 00:00,701729,3556.01,REVENUE,Foster Care Associates Ltd FCA,BOARDING - OUT ALLOWANCES
Peterborough,http://opendatacommunities.org/id/unitary-authority/peterborough,Peterborough City Council,Children's & Education Services - Children's Social Care,Children Looked After,Supplies and Services - Transfer Payments,12/01/2015 00:00,701730,3556.01,REVENUE,Foster Care Associates Ltd FCA,BOARDING - OUT ALLOWANCES
Peterborough,http://opendatacommunities.org/id/unitary-authority/peterborough,Peterborough City Council,Children's & Education Services - Children's Social Care,Children Looked After,Supplies and Services - Transfer Payments,12/01/2015 00:00,701733,3556.01,REVENUE,Foster Care Associates Ltd FCA,BOARDING - OUT ALLOWANCES
Peterborough,http://opendatacommunities.org/id/unitary-authority/peterborough,Peterborough City Council,Children's & Education Services - Children's Social Care,Children Looked After,Supplies and Services - Transfer Payments,12/01/2015 00:00,701734,3555.7,REVENUE,Foster Care Associates Ltd FCA,BOARDING - OUT ALLOWANCES
Peterborough,http://opendatacommunities.org/id/unitary-authority/peterborough,Peterborough City Council,Children's & Education Services - Children's Social Care,Children Looked After,Supplies and Services - Transfer Payments,12/01/2015 00:00,701736,3484.89,REVENUE,Foster Care Associates Ltd FCA,BOARDING - OUT ALLOWANCES
Peterborough,http://opendatacommunities.org/id/unitary-authority/peterborough,Peterborough City Council,Children's & Education Services - Children's Social Care,Children Looked After,Supplies and Services - Transfer Payments,12/01/2015 00:00,701737,4292.69,REVENUE,Foster Care Associates Ltd FCA,BOARDING - OUT ALLOWANCES
Peterborough,http://opendatacommunities.org/id/unitary-authority/peterborough,Peterborough City Council,Children's & Education Services - Children's Social Care,Children Looked After,Supplies and Services - Transfer Payments,12/01/2015 00:00,701740,3555.7,REVENUE,Foster Care Associates Ltd FCA,BOARDING - OUT ALLOWANCES
Peterborough,http://opendatacommunities.org/id/unitary-authority/peterborough,Peterborough City Council,Children's & Education Services - Children's Social Care,Children Looked After,Supplies and Services - Transfer Payments,12/01/2015 00:00,701741,4292.69,REVENUE,Foster Care Associates Ltd FCA,BOARDING - OUT ALLOWANCES
Peterborough,http://opendatacommunities.org/id/unitary-authority/peterborough,Peterborough City Council,Environmental and Regulatory Services,Waste Collection,Premises,12/01/2015 00:00,702293,1920,REVENUE,FCC Recycling (UK) Limited,REFUSE COLLECTION
Peterborough,http://opendatacommunities.org/id/unitary-authority/peterborough,Peterborough City Council,Children's & Education Services - Education,Other School -related Education Functions,Supplies and Services,12/01/2015 00:00,702308,3367.31,REVENUE,Worcestershire County Council,EDUCATION EXPENSES
Peterborough,http://opendatacommunities.org/id/unitary-authority/peterborough,Peterborough City Council,Planning Services,Environmental Initiatives,Supplies and Services,12/01/2015 00:00,702309,3420,REVENUE,Peterborough Environment City Trust,CONSULTANTS FEES
Peterborough,http://opendatacommunities.org/id/unitary-authority/peterborough,Peterborough City Council,Children's & Education Services - Education,Other School -related Education Functions,Premises,12/01/2015 00:00,702313,840,REVENUE,Deafblind Uk Trading Ltd,HIRE OF PREMISES
Peterborough,http://opendatacommunities.org/id/unitary-authority/peterborough,Peterborough City Council,Deficit/(Surplus) on Trading Undertakings,Trading Account Surpluses & Deficits,Supplies and Services,12/01/2015 00:00,702375,2387.71,REVENUE,Dieselprods limited,ITEMS FOR RESALE
Peterborough,http://opendatacommunities.org/id/unitary-authority/peterborough,Peterborough City Council,Planning Services,Environmental Initiatives,Supplies and Services,12/01/2015 00:00,702390,22596.36,REVENUE,Pinsent Masons,LEGAL COSTS
Peterborough,http://opendatacommunities.org/id/unitary-authority/peterborough,Peterborough City Council,Children's & Education Services - Children's Social Care,Children Looked After,Supplies and Services - Transfer Payments,12/01/2015 00:00,702397,4336.5,REVENUE,Foster Care Associates Ltd FCA,BOARDING - OUT ALLOWANCES
Peterborough,http://opendatacommunities.org/id/unitary-authority/peterborough,Peterborough City Council,Children's & Education Services - Children's Social Care,Children Looked After,Supplies and Services - Transfer Payments,12/01/2015 00:00,702398,3555.7,REVENUE,Foster Care Associates Ltd FCA,BOARDING - OUT ALLOWANCES
Peterborough,http://opendatacommunities.org/id/unitary-authority/peterborough,Peterborough City Council,Children's & Education Services - Children's Social Care,Children Looked After,Supplies and Services - Transfer Payments,12/01/2015 00:00,702399,2907.49,REVENUE,Foster Care Associates Ltd FCA,BOARDING - OUT ALLOWANCES
Peterborough,http://opendatacommunities.org/id/unitary-authority/peterborough,Peterborough City Council,Children's & Education Services - Children's Social Care,Children Looked After,Supplies and Services - Transfer Payments,12/01/2015 00:00,702400,3052.57,REVENUE,Foster Care Associates Ltd FCA,BOARDING - OUT ALLOWANCES
Peterborough,http://opendatacommunities.org/id/unitary-authority/peterborough,Peterborough City Council,Children's & Education Services - Children's Social Care,Children Looked After,Supplies and Services - Transfer Payments,12/01/2015 00:00,702401,2960.99,REVENUE,Foster Care Associates Ltd FCA,BOARDING - OUT ALLOWANCES
Peterborough,http://opendatacommunities.org/id/unitary-authority/peterborough,Peterborough City Council,Children's & Education Services - Children's Social Care,Children Looked After,Supplies and Services - Transfer Payments,12/01/2015 00:00,702402,3052.57,REVENUE,Foster Care Associates Ltd FCA,BOARDING - OUT ALLOWANCES
Peterborough,http://opendatacommunities.org/id/unitary-authority/peterborough,Peterborough City Council,Children's & Education Services - Children's Social Care,Children Looked After,Supplies and Services - Transfer Payments,12/01/2015 00:00,702403,4096.34,REVENUE,Foster Care Associates Ltd FCA,BOARDING - OUT ALLOWANCES
Peterborough,http://opendatacommunities.org/id/unitary-authority/peterborough,Peterborough City Council,Children's & Education Services - Children's Social Care,Children Looked After,Supplies and Services - Transfer Payments,12/01/2015 00:00,702404,3449.03,REVENUE,Foster Care Associates Ltd FCA,BOARDING - OUT ALLOWANCES
Peterborough,http://opendatacommunities.org/id/unitary-authority/peterborough,Peterborough City Council,Children's & Education Services - Children's Social Care,Children Looked After,Supplies and Services - Transfer Payments,12/01/2015 00:00,702405,3555.7,REVENUE,Foster Care Associates Ltd FCA,BOARDING - OUT ALLOWANCES
Peterborough,http://opendatacommunities.org/id/unitary-authority/peterborough,Peterborough City Council,Capital,Capital,Capital Pending Update to BS,12/01/2015 00:00,702539,21127.2,CAPITAL,Garfield Builders Ltd,BUILDING AND SITE WORKS
Peterborough,http://opendatacommunities.org/id/unitary-authority/peterborough,Peterborough City Council,Children's & Education Services - Children's Social Care,Children's Services - Commissioning and Social Work,Supplies and Services,12/01/2015 00:00,702623,1237.2,REVENUE,Wrixon Care Services,PURCHASED SOCIAL CARE SERVICES
Peterborough,http://opendatacommunities.org/id/unitary-authority/peterborough,Peterborough City Council,Planning Services,Environmental Initiatives,Supplies and Services,12/01/2015 00:00,702645,2030,REVENUE,Leicester City Council,DISBURSEMENTS
Peterborough,http://opendatacommunities.org/id/unitary-authority/peterborough,Peterborough City Council,Highways and Transport Services,Traffic management & Road Safety,Supplies and Services,12/01/2015 00:00,702646,7312.48,REVENUE,Telent Technology Services Ltd,CONTRACTORS
Peterborough,http://opendatacommunities.org/id/unitary-authority/peterborough,Peterborough City Council,Deficit/(Surplus) on Trading Undertakings,Trading Account Surpluses & Deficits,Supplies and Services,12/01/2015 00:00,702652,6618,REVENUE,RMS Engineers LTD,EQUIPMENT REPAIRS
Peterborough,http://opendatacommunities.org/id/unitary-authority/peterborough,Peterborough City Council,Children's & Education Services - Children's Social Care,Children Looked After,Supplies and Services - Transfer Payments,12/01/2015 00:00,702655,3376.74,REVENUE,Fostering Solutions,BOARDING - OUT ALLOWANCES
Peterborough,http://opendatacommunities.org/id/unitary-authority/peterborough,Peterborough City Council,Children's & Education Services - Children's Social Care,Children Looked After,Supplies and Services - Transfer Payments,12/01/2015 00:00,702656,3554.46,REVENUE,Fostering Solutions,BOARDING - OUT ALLOWANCES
Peterborough,http://opendatacommunities.org/id/unitary-authority/peterborough,Peterborough City Council,Children's & Education Services - Children's Social Care,Children Looked After,Supplies and Services - Transfer Payments,12/01/2015 00:00,702657,3376.74,REVENUE,Fostering Solutions,BOARDING - OUT ALLOWANCES
Peterborough,http://opendatacommunities.org/id/unitary-authority/peterborough,Peterborough City Council,Children's & Education Services - Children's Social Care,Children Looked After,Supplies and Services - Transfer Payments,12/01/2015 00:00,702658,3207.9,REVENUE,Fostering Solutions,BOARDING - OUT ALLOWANCES
Peterborough,http://opendatacommunities.org/id/unitary-authority/peterborough,Peterborough City Council,Children's & Education Services - Children's Social Care,Children Looked After,Supplies and Services - Transfer Payments,12/01/2015 00:00,702659,3554.46,REVENUE,Fostering Solutions,BOARDING - OUT ALLOWANCES
Peterborough,http://opendatacommunities.org/id/unitary-authority/peterborough,Peterborough City Council,Children's & Education Services - Children's Social Care,Children Looked After,Supplies and Services - Transfer Payments,12/01/2015 00:00,702660,2860.77,REVENUE,Fostering Solutions,BOARDING - OUT ALLOWANCES
Peterborough,http://opendatacommunities.org/id/unitary-authority/peterborough,Peterborough City Council,Children's & Education Services - Children's Social Care,Children Looked After,Supplies and Services - Transfer Payments,12/01/2015 00:00,702661,3376.74,REVENUE,Fostering Solutions,BOARDING - OUT ALLOWANCES
Peterborough,http://opendatacommunities.org/id/unitary-authority/peterborough,Peterborough City Council,Children's & Education Services - Children's Social Care,Children Looked After,Supplies and Services - Transfer Payments,12/01/2015 00:00,702662,3376.74,REVENUE,Fostering Solutions,BOARDING - OUT ALLOWANCES
Peterborough,http://opendatacommunities.org/id/unitary-authority/peterborough,Peterborough City Council,Children's & Education Services - Children's Social Care,Children Looked After,Supplies and Services - Transfer Payments,12/01/2015 00:00,702663,2990.26,REVENUE,Fostering Solutions,BOARDING - OUT ALLOWANCES
Peterborough,http://opendatacommunities.org/id/unitary-authority/peterborough,Peterborough City Council,Children's & Education Services - Children's Social Care,Children Looked After,Supplies and Services - Transfer Payments,12/01/2015 00:00,702664,2860.77,REVENUE,Fostering Solutions,BOARDING - OUT ALLOWANCES
Peterborough,http://opendatacommunities.org/id/unitary-authority/peterborough,Peterborough City Council,Children's & Education Services - Children's Social Care,Children Looked After,Supplies and Services - Transfer Payments,12/01/2015 00:00,702665,3007.62,REVENUE,Fostering Solutions,BOARDING - OUT ALLOWANCES
Peterborough,http://opendatacommunities.org/id/unitary-authority/peterborough,Peterborough City Council,Children's & Education Services - Children's Social Care,Children Looked After,Supplies and Services - Transfer Payments,12/01/2015 00:00,702666,3554.46,REVENUE,Fostering Solutions,BOARDING - OUT ALLOWANCES
Peterborough,http://opendatacommunities.org/id/unitary-authority/peterborough,Peterborough City Council,Children's & Education Services - Children's Social Care,Children Looked After,Supplies and Services - Transfer Payments,12/01/2015 00:00,702667,7517.81,REVENUE,Heath Farm Family Services Ltd,BOARDING - OUT ALLOWANCES
Peterborough,http://opendatacommunities.org/id/unitary-authority/peterborough,Peterborough City Council,Children's & Education Services - Children's Social Care,Children Looked After,Supplies and Services - Transfer Payments,12/01/2015 00:00,702668,3122.01,REVENUE,Fostering Solutions,BOARDING - OUT ALLOWANCES
Peterborough,http://opendatacommunities.org/id/unitary-authority/peterborough,Peterborough City Council,Children's & Education Services - Children's Social Care,Children Looked After,Supplies and Services - Transfer Payments,12/01/2015 00:00,702669,3207.9,REVENUE,Fostering Solutions,BOARDING - OUT ALLOWANCES
Peterborough,http://opendatacommunities.org/id/unitary-authority/peterborough,Peterborough City Council,Children's & Education Services - Children's Social Care,Children Looked After,Supplies and Services - Transfer Payments,12/01/2015 00:00,702670,2990.26,REVENUE,Fostering Solutions,BOARDING - OUT ALLOWANCES
Peterborough,http://opendatacommunities.org/id/unitary-authority/peterborough,Peterborough City Council,Children's & Education Services - Children's Social Care,Children Looked After,Supplies and Services - Transfer Payments,12/01/2015 00:00,702671,2886.41,REVENUE,Fostering Solutions,BOARDING - OUT ALLOWANCES
Peterborough,http://opendatacommunities.org/id/unitary-authority/peterborough,Peterborough City Council,Children's & Education Services - Children's Social Care,Children's Services - Commissioning and Social Work,Supplies and Services - Transfer Payments,12/01/2015 00:00,702673,6120.33,REVENUE,Heath Farm Family Services Ltd,BOARDING - OUT ALLOWANCES
Peterborough,http://opendatacommunities.org/id/unitary-authority/peterborough,Peterborough City Council,Children's & Education Services - Children's Social Care,Children Looked After,Supplies and Services - Transfer Payments,12/01/2015 00:00,702674,5156.54,REVENUE,Families First Ltd,BOARDING - OUT ALLOWANCES
Peterborough,http://opendatacommunities.org/id/unitary-authority/peterborough,Peterborough City Council,Children's & Education Services - Children's Social Care,Children's Services - Commissioning and Social Work,Supplies and Services,12/01/2015 00:00,702679,825,REVENUE,Circles Network,PURCHASED SOCIAL CARE SERVICES
Peterborough,http://opendatacommunities.org/id/unitary-authority/peterborough,Peterborough City Council,Public Health,Substance Misuse,Supplies and Services,12/01/2015 00:00,702694,1700,REVENUE,UK Health Forum,SUBSCRIPTIONS
Peterborough,http://opendatacommunities.org/id/unitary-authority/peterborough,Peterborough City Council,Children's & Education Services - Education,Other School -related Education Functions,Supplies and Services,12/01/2015 00:00,702699,16879.84,REVENUE,Cambridgeshire County Council,EDUCATION EXPENSES
Peterborough,http://opendatacommunities.org/id/unitary-authority/peterborough,Peterborough City Council,Children's & Education Services - Children's Social Care,Other Children's & Families Services,Employees,12/01/2015 00:00,702702,2640,REVENUE,Medicare First,EXTERNAL TEMPORARY STAFF
Peterborough,http://opendatacommunities.org/id/unitary-authority/peterborough,Peterborough City Council,Children's & Education Services - Children's Social Care,Other Children's & Families Services,Employees,12/01/2015 00:00,702705,2331,REVENUE,Medicare First,EXTERNAL TEMPORARY STAFF
Peterborough,http://opendatacommunities.org/id/unitary-authority/peterborough,Peterborough City Council,Children's & Education Services - Children's Social Care,Other Children's & Families Services,Employees,12/01/2015 00:00,702707,1620.6,REVENUE,Medicare First,EXTERNAL TEMPORARY STAFF
Peterborough,http://opendatacommunities.org/id/unitary-authority/peterborough,Peterborough City Council,Children's & Education Services - Children's Social Care,Other Children's & Families Services,Employees,12/01/2015 00:00,702709,1398.6,REVENUE,Medicare First,EXTERNAL TEMPORARY STAFF
Peterborough,http://opendatacommunities.org/id/unitary-authority/peterborough,Peterborough City Council,Children's & Education Services - Children's Social Care,Other Children's & Families Services,Employees,12/01/2015 00:00,702713,2175.6,REVENUE,Medicare First,EXTERNAL TEMPORARY STAFF
Peterborough,http://opendatacommunities.org/id/unitary-authority/peterborough,Peterborough City Council,Children's & Education Services - Children's Social Care,Other Children's & Families Services,Employees,12/01/2015 00:00,702715,2175.6,REVENUE,Medicare First,EXTERNAL TEMPORARY STAFF
Peterborough,http://opendatacommunities.org/id/unitary-authority/peterborough,Peterborough City Council,Children's & Education Services - Children's Social Care,Other Children's & Families Services,Employees,12/01/2015 00:00,702716,1749.18,REVENUE,Medicare First,EXTERNAL TEMPORARY STAFF
Peterborough,http://opendatacommunities.org/id/unitary-authority/peterborough,Peterborough City Council,Children's & Education Services - Children's Social Care,Other Children's & Families Services,Employees,12/01/2015 00:00,702719,2131.2,REVENUE,Medicare First,EXTERNAL TEMPORARY STAFF
Peterborough,http://opendatacommunities.org/id/unitary-authority/peterborough,Peterborough City Council,Deficit/(Surplus) on Trading Undertakings,Trading Account Surpluses & Deficits,Supplies and Services,12/01/2015 00:00,702722,7410,REVENUE,RMS Engineers LTD,EQUIPMENT REPAIRS
Peterborough,http://opendatacommunities.org/id/unitary-authority/peterborough,Peterborough City Council,Children's & Education Services - Children's Social Care,Other Children's & Families Services,Employees,12/01/2015 00:00,702723,2640,REVENUE,Medicare First,EXTERNAL TEMPORARY STAFF
Peterborough,http://opendatacommunities.org/id/unitary-authority/peterborough,Peterborough City Council,Adult Social Care,Adult Mental Health,Supplies and Services,12/01/2015 00:00,702728,1213.25,REVENUE,GSE Residential Ltd,PROFESSIONAL SERVICES
Peterborough,http://opendatacommunities.org/id/unitary-authority/peterborough,Peterborough City Council,Adult Social Care,Adult Mental Health,Supplies and Services,12/01/2015 00:00,702733,2540.64,REVENUE,GSE Residential Ltd,PROFESSIONAL SERVICES
Peterborough,http://opendatacommunities.org/id/unitary-authority/peterborough,Peterborough City Council,Adult Social Care,Adult Mental Health,Supplies and Services,12/01/2015 00:00,702735,1283.68,REVENUE,GSE Residential Ltd,PROFESSIONAL SERVICES
Peterborough,http://opendatacommunities.org/id/unitary-authority/peterborough,Peterborough City Council,Adult Social Care,Adult Mental Health,Supplies and Services,12/01/2015 00:00,702739,520,REVENUE,Klair House Residential Care Homes,PROFESSIONAL SERVICES
Peterborough,http://opendatacommunities.org/id/unitary-authority/peterborough,Peterborough City Council,Adult Social Care,Adult Learning Disabilities,Supplies and Services,12/01/2015 00:00,702746,4275.8,REVENUE,Mencap,LEARNING DISABILITY HOME CARE
Peterborough,http://opendatacommunities.org/id/unitary-authority/peterborough,Peterborough City Council,Adult Social Care,Older People,Supplies and Services,12/01/2015 00:00,702749,3644,REVENUE,Bandrum Nursing Home Ltd,PHYSICAL DISABILITY NURSING CARE
Peterborough,http://opendatacommunities.org/id/unitary-authority/peterborough,Peterborough City Council,Children's & Education Services - Education,Services to Young People,Supplies and Services,12/01/2015 00:00,702758,15380,REVENUE,City College Peterborough,PROGRAMMES
Peterborough,http://opendatacommunities.org/id/unitary-authority/peterborough,Peterborough City Council,Adult Social Care,Adult Learning Disabilities,Supplies and Services,12/01/2015 00:00,702766,4316.4,REVENUE,Mencap,LEARNING DISABILITY HOME CARE
Peterborough,http://opendatacommunities.org/id/unitary-authority/peterborough,Peterborough City Council,Adult Social Care,Older People,Supplies and Services,12/01/2015 00:00,702798,1134.2,REVENUE,Pilgrim Havens,OLDER PEOPLE RESIDENTIAL CARE
Peterborough,http://opendatacommunities.org/id/unitary-authority/peterborough,Peterborough City Council,Adult Social Care,Older People,Supplies and Services,12/01/2015 00:00,702800,1052.32,REVENUE,Pilgrim Havens,OLDER PEOPLE RESIDENTIAL CARE
Peterborough,http://opendatacommunities.org/id/unitary-authority/peterborough,Peterborough City Council,Adult Social Care,Older People,Third Party Payments,12/01/2015 00:00,702801,1437.54,REVENUE,Pilgrim Havens,THIRD PARTY PAYMENTS - CONTRACT
Peterborough,http://opendatacommunities.org/id/unitary-authority/peterborough,Peterborough City Council,Adult Social Care,Older People,Supplies and Services,12/01/2015 00:00,702803,927.12,REVENUE,Pilgrim Havens,OLDER PEOPLE RESIDENTIAL CARE
Peterborough,http://opendatacommunities.org/id/unitary-authority/peterborough,Peterborough City Council,Adult Social Care,Adult Learning Disabilities,Supplies and Services,12/01/2015 00:00,702804,4275.8,REVENUE,Mencap,LEARNING DISABILITY HOME CARE
Peterborough,http://opendatacommunities.org/id/unitary-authority/peterborough,Peterborough City Council,Adult Social Care,Adult Learning Disabilities,Supplies and Services,12/01/2015 00:00,702811,830,REVENUE,Mencap,LEARNING DISABILITY HOME CARE
Peterborough,http://opendatacommunities.org/id/unitary-authority/peterborough,Peterborough City Council,Adult Social Care,Older People,Supplies and Services,12/01/2015 00:00,702833,1076.32,REVENUE,OAKHOUSE HOMECARE LTD,OLDER PEOPLE HOME CARE
Peterborough,http://opendatacommunities.org/id/unitary-authority/peterborough,Peterborough City Council,Adult Social Care,Adult Mental Health,Supplies and Services,12/01/2015 00:00,702844,49468,REVENUE,Peterborough & Fenland MIND,SUBSCRIPTIONS
Peterborough,http://opendatacommunities.org/id/unitary-authority/peterborough,Peterborough City Council,Highways and Transport Services,"Transport planning, policy and strategy",Supplies and Services,12/01/2015 00:00,702847,765,REVENUE,Playbus Ltd,CONFERENCES/EVENTS
Peterborough,http://opendatacommunities.org/id/unitary-authority/peterborough,Peterborough City Council,Corporate & Democratic Core,Democratic Representation & Managemetn,Supplies and Services,12/01/2015 00:00,702876,900,REVENUE,Access Independent Limited,ADMINISTRATION EXPENSES
Peterborough,http://opendatacommunities.org/id/unitary-authority/peterborough,Peterborough City Council,Children's & Education Services - Education,Other School -related Education Functions,Supplies and Services - Transfer Payments,12/01/2015 00:00,703418,25796,REVENUE,Wilds Lodge School,BOARDING - OUT ALLOWANCES
